Workbook

Sheet التكويد
A1: الكود | B1: اللون | C1: الوصف | D1: المقاس | E1: اللون | F1: رصيد اول كيلو | G1: رصيد اول متر | H1: رصيد اول قطع | I1: وارد كيلو | J1: وارد متر | K1: وارد قطع | L1: منصرف كيلو | M1: منصرف متر | N1: منصرف قطع | O1: مرتجع كيلو | P1: مرتجع متر | Q1: مرتجع قطع | R1: رصيد اخر كيلو | S1: رصيد اخر متر | T1: رصيد اخر قطع | X1: 100 | AJ1: الكود
A2: 1 | B2: ابيض | C2: استك طبي | E2: =B2&" "&C2&" "&D2 -> ابيض استك طبي | F2: 38.3 | I2: =SUMIFS(MN!$G:$G,MN!$E:$E,A2,MN!B:B,"<>" & "") -> 108 | J2: =SUMIFS(MN!$I:$I,MN!$E:$E,A2,MN!$B:$B,"<>" & "") -> 112 | K2: =SUMIFS(MN!$J:$J,MN!$E:$E,A2,MN!$B:$B,"<>" & "") -> 118 | L2: =SUMIFS(MN!$G:$G,MN!$E:$E,A2,MN!$C:$C,"<>" & "") -> 89 | M2: =SUMIFS(MN!$I:$I,MN!$E:$E,A2,MN!$C:$C,"<>" & "") -> 91 | N2: =SUMIFS(MN!$J:$J,MN!$E:$E,A2,MN!$C:$C,"<>" & "") -> 83 | O2: =SUMIFS(MN!$G:$G,MN!$E:$E,A2,MN!$D:$D,"<>" & "") -> 11 | P2: =SUMIFS(MN!$I:$I,MN!$E:$E,A2,MN!$D:$D,"<>" & "") -> 13 | Q2: =SUMIFS(MN!$J:$J,MN!$E:$E,A2,MN!$D:$D,"<>" & "") -> 15 | R2: =F2+I2+O2-L2 -> 68.3 | S2: 34 | T2: 50 | AA2: 5 | AG2: =IFERROR(VLOOKUP(ROWS(AG2:AG2),AI2:AJ186,2,0),"") -> 5 | AH2: =OFFSET(AG2,,COUNTIF(AG2:AG186,"?*")) -> 5 | AI2: =IF(ISNUMBER(SEARCH(AL2,AJ2)),MAX(AI1:AI1)+1,0) -> 1 | AJ2: 5
A3: 2 | B3: ابيض | C3: كروشيه | D3: 1.2سم | E3: ابيض كروشيه 1.2سم | F3: 7.64 | G3: 686 | I3: =SUMIFS(MN!$G:$G,MN!$E:$E,A3,MN!B:B,"<>" & "") -> 13 | J3: =SUMIFS(MN!$I:$I,MN!$E:$E,A3,MN!$B:$B,"<>" & "") -> 14 | K3: =SUMIFS(MN!$J:$J,MN!$E:$E,A3,MN!$B:$B,"<>" & "") -> 15 | L3: =SUMIFS(MN!$G:$G,MN!$E:$E,A3,MN!$C:$C,"<>" & "") -> 16 | M3: =SUMIFS(MN!$I:$I,MN!$E:$E,A3,MN!$C:$C,"<>" & "") -> 17 | N3: =SUMIFS(MN!$J:$J,MN!$E:$E,A3,MN!$C:$C,"<>" & "") -> 18 | O3: =SUMIFS(MN!$G:$G,MN!$E:$E,A3,MN!$D:$D,"<>" & "") -> 19 | P3: =SUMIFS(MN!$I:$I,MN!$E:$E,A3,MN!$D:$D,"<>" & "") -> 20 | Q3: =SUMIFS(MN!$J:$J,MN!$E:$E,A3,MN!$D:$D,"<>" & "") -> 21 | R3: 23.64 | S3: 703 | T3: 18 | AA3: 10 | AG3: =IFERROR(VLOOKUP(ROWS(AG2:AG3),AI2:AJ186,2,0),"") -> 10 | AI3: =IF(ISNUMBER(SEARCH(AL2,AJ3)),MAX(AI1:AI2)+1,0) -> 2 | AJ3: 10
A4: 3 | B4: ابيض | C4: كروشيه | D4: 1.3سم | E4: ابيض كروشيه 1.3سم | I4: =SUMIFS(MN!$G:$G,MN!$E:$E,A4,MN!B:B,"<>" & "") -> 0 | J4: =SUMIFS(MN!$I:$I,MN!$E:$E,A4,MN!$B:$B,"<>" & "") -> 0 | K4: =SUMIFS(MN!$J:$J,MN!$E:$E,A4,MN!$B:$B,"<>" & "") -> 0 | L4: =SUMIFS(MN!$G:$G,MN!$E:$E,A4,MN!$C:$C,"<>" & "") -> 0 | M4: =SUMIFS(MN!$I:$I,MN!$E:$E,A4,MN!$C:$C,"<>" & "") -> 0 | N4: =SUMIFS(MN!$J:$J,MN!$E:$E,A4,MN!$C:$C,"<>" & "") -> 0 | O4: =SUMIFS(MN!$G:$G,MN!$E:$E,A4,MN!$D:$D,"<>" & "") -> 0 | P4: =SUMIFS(MN!$I:$I,MN!$E:$E,A4,MN!$D:$D,"<>" & "") -> 0 | Q4: =SUMIFS(MN!$J:$J,MN!$E:$E,A4,MN!$D:$D,"<>" & "") -> 0 | R4: 0 | S4: 0 | T4: 0 | AA4: 15 | AG4: =IFERROR(VLOOKUP(ROWS(AG2:AG4),AI2:AJ186,2,0),"") -> 15 | AI4: =IF(ISNUMBER(SEARCH(AL2,AJ4)),MAX(AI1:AI3)+1,0) -> 3 | AJ4: 15
A5: 4 | B5: ابيض | C5: كروشيه | D5: 1.5سم | E5: ابيض كروشيه 1.5سم | F5: 38.2 | G5: 7440 | I5: =SUMIFS(MN!$G:$G,MN!$E:$E,A5,MN!B:B,"<>" & "") -> 0 | J5: =SUMIFS(MN!$I:$I,MN!$E:$E,A5,MN!$B:$B,"<>" & "") -> 0 | K5: =SUMIFS(MN!$J:$J,MN!$E:$E,A5,MN!$B:$B,"<>" & "") -> 0 | L5: =SUMIFS(MN!$G:$G,MN!$E:$E,A5,MN!$C:$C,"<>" & "") -> 0 | M5: =SUMIFS(MN!$I:$I,MN!$E:$E,A5,MN!$C:$C,"<>" & "") -> 0 | N5: =SUMIFS(MN!$J:$J,MN!$E:$E,A5,MN!$C:$C,"<>" & "") -> 0 | O5: =SUMIFS(MN!$G:$G,MN!$E:$E,A5,MN!$D:$D,"<>" & "") -> 0 | P5: =SUMIFS(MN!$I:$I,MN!$E:$E,A5,MN!$D:$D,"<>" & "") -> 0 | Q5: =SUMIFS(MN!$J:$J,MN!$E:$E,A5,MN!$D:$D,"<>" & "") -> 0 | R5: 38.2 | S5: 7440 | T5: 0 | AA5: 20 | AG5: =IFERROR(VLOOKUP(ROWS(AG2:AG5),AI2:AJ186,2,0),"") -> 20 | AI5: =IF(ISNUMBER(SEARCH(AL2,AJ5)),MAX(AI1:AI4)+1,0) -> 4 | AJ5: 20
A6: 5 | B6: ابيض | C6: كروشيه | D6: 1.8سم | E6: ابيض كروشيه 1.8سم | I6: =SUMIFS(MN!$G:$G,MN!$E:$E,A6,MN!B:B,"<>" & "") -> 0 | J6: =SUMIFS(MN!$I:$I,MN!$E:$E,A6,MN!$B:$B,"<>" & "") -> 0 | K6: =SUMIFS(MN!$J:$J,MN!$E:$E,A6,MN!$B:$B,"<>" & "") -> 0 | L6: =SUMIFS(MN!$G:$G,MN!$E:$E,A6,MN!$C:$C,"<>" & "") -> 0 | M6: =SUMIFS(MN!$I:$I,MN!$E:$E,A6,MN!$C:$C,"<>" & "") -> 0 | N6: =SUMIFS(MN!$J:$J,MN!$E:$E,A6,MN!$C:$C,"<>" & "") -> 0 | O6: =SUMIFS(MN!$G:$G,MN!$E:$E,A6,MN!$D:$D,"<>" & "") -> 0 | P6: =SUMIFS(MN!$I:$I,MN!$E:$E,A6,MN!$D:$D,"<>" & "") -> 0 | Q6: =SUMIFS(MN!$J:$J,MN!$E:$E,A6,MN!$D:$D,"<>" & "") -> 0 | R6: 0 | S6: 0 | T6: 0 | AA6: 25 | AG6: =IFERROR(VLOOKUP(ROWS(AG2:AG6),AI2:AJ186,2,0),"") -> 25 | AI6: =IF(ISNUMBER(SEARCH(AL2,AJ6)),MAX(AI1:AI5)+1,0) -> 5 | AJ6: 25
A7: 6 | B7: ابيض | C7: كروشيه | D7: 1سم | E7: ابيض كروشيه 1سم | F7: 15.28 | G7: 1306 | I7: =SUMIFS(MN!$G:$G,MN!$E:$E,A7,MN!B:B,"<>" & "") -> 0 | J7: =SUMIFS(MN!$I:$I,MN!$E:$E,A7,MN!$B:$B,"<>" & "") -> 0 | K7: =SUMIFS(MN!$J:$J,MN!$E:$E,A7,MN!$B:$B,"<>" & "") -> 0 | L7: =SUMIFS(MN!$G:$G,MN!$E:$E,A7,MN!$C:$C,"<>" & "") -> 0 | M7: =SUMIFS(MN!$I:$I,MN!$E:$E,A7,MN!$C:$C,"<>" & "") -> 0 | N7: =SUMIFS(MN!$J:$J,MN!$E:$E,A7,MN!$C:$C,"<>" & "") -> 0 | O7: =SUMIFS(MN!$G:$G,MN!$E:$E,A7,MN!$D:$D,"<>" & "") -> 0 | P7: =SUMIFS(MN!$I:$I,MN!$E:$E,A7,MN!$D:$D,"<>" & "") -> 0 | Q7: =SUMIFS(MN!$J:$J,MN!$E:$E,A7,MN!$D:$D,"<>" & "") -> 0 | R7: 15.28 | S7: 1306 | T7: 0 | AA7: 30 | AG7: =IFERROR(VLOOKUP(ROWS(AG2:AG7),AI2:AJ186,2,0),"") -> 30 | AI7: =IF(ISNUMBER(SEARCH(AL2,AJ7)),MAX(AI1:AI6)+1,0) -> 6 | AJ7: 30
A8: 7 | B8: ابيض | C8: كروشيه | D8: 2.2سم | E8: ابيض كروشيه 2.2سم | F8: 168.08 | G8: 14608 | I8: =SUMIFS(MN!$G:$G,MN!$E:$E,A8,MN!B:B,"<>" & "") -> 0 | J8: =SUMIFS(MN!$I:$I,MN!$E:$E,A8,MN!$B:$B,"<>" & "") -> 0 | K8: =SUMIFS(MN!$J:$J,MN!$E:$E,A8,MN!$B:$B,"<>" & "") -> 0 | L8: =SUMIFS(MN!$G:$G,MN!$E:$E,A8,MN!$C:$C,"<>" & "") -> 0 | M8: =SUMIFS(MN!$I:$I,MN!$E:$E,A8,MN!$C:$C,"<>" & "") -> 0 | N8: =SUMIFS(MN!$J:$J,MN!$E:$E,A8,MN!$C:$C,"<>" & "") -> 0 | O8: =SUMIFS(MN!$G:$G,MN!$E:$E,A8,MN!$D:$D,"<>" & "") -> 0 | P8: =SUMIFS(MN!$I:$I,MN!$E:$E,A8,MN!$D:$D,"<>" & "") -> 0 | Q8: =SUMIFS(MN!$J:$J,MN!$E:$E,A8,MN!$D:$D,"<>" & "") -> 0 | R8: 168.08 | S8: 14608 | T8: 0 | AA8: 35 | AG8: =IFERROR(VLOOKUP(ROWS(AG2:AG8),AI2:AJ186,2,0),"") -> 35 | AI8: =IF(ISNUMBER(SEARCH(AL2,AJ8)),MAX(AI1:AI7)+1,0) -> 7 | AJ8: 35
A9: 8 | B9: ابيض | C9: كروشيه | D9: 2.5سم | E9: ابيض كروشيه 2.5سم | F9: 101.42 | G9: 7568 | I9: =SUMIFS(MN!$G:$G,MN!$E:$E,A9,MN!B:B,"<>" & "") -> 0 | J9: =SUMIFS(MN!$I:$I,MN!$E:$E,A9,MN!$B:$B,"<>" & "") -> 0 | K9: =SUMIFS(MN!$J:$J,MN!$E:$E,A9,MN!$B:$B,"<>" & "") -> 0 | L9: =SUMIFS(MN!$G:$G,MN!$E:$E,A9,MN!$C:$C,"<>" & "") -> 0 | M9: =SUMIFS(MN!$I:$I,MN!$E:$E,A9,MN!$C:$C,"<>" & "") -> 0 | N9: =SUMIFS(MN!$J:$J,MN!$E:$E,A9,MN!$C:$C,"<>" & "") -> 0 | O9: =SUMIFS(MN!$G:$G,MN!$E:$E,A9,MN!$D:$D,"<>" & "") -> 0 | P9: =SUMIFS(MN!$I:$I,MN!$E:$E,A9,MN!$D:$D,"<>" & "") -> 0 | Q9: =SUMIFS(MN!$J:$J,MN!$E:$E,A9,MN!$D:$D,"<>" & "") -> 0 | R9: 101.42 | S9: 7568 | T9: 0 | AA9: 40 | AG9: =IFERROR(VLOOKUP(ROWS(AG2:AG9),AI2:AJ186,2,0),"") -> 40 | AI9: =IF(ISNUMBER(SEARCH(AL2,AJ9)),MAX(AI1:AI8)+1,0) -> 8 | AJ9: 40
A10: 9 | B10: ابيض | C10: كروشيه | D10: 2سم | E10: ابيض كروشيه 2سم | F10: 1321.72 | G10: 123522 | I10: =SUMIFS(MN!$G:$G,MN!$E:$E,A10,MN!B:B,"<>" & "") -> 0 | J10: =SUMIFS(MN!$I:$I,MN!$E:$E,A10,MN!$B:$B,"<>" & "") -> 0 | K10: =SUMIFS(MN!$J:$J,MN!$E:$E,A10,MN!$B:$B,"<>" & "") -> 0 | L10: =SUMIFS(MN!$G:$G,MN!$E:$E,A10,MN!$C:$C,"<>" & "") -> 0 | M10: =SUMIFS(MN!$I:$I,MN!$E:$E,A10,MN!$C:$C,"<>" & "") -> 0 | N10: =SUMIFS(MN!$J:$J,MN!$E:$E,A10,MN!$C:$C,"<>" & "") -> 0 | O10: =SUMIFS(MN!$G:$G,MN!$E:$E,A10,MN!$D:$D,"<>" & "") -> 0 | P10: =SUMIFS(MN!$I:$I,MN!$E:$E,A10,MN!$D:$D,"<>" & "") -> 0 | Q10: =SUMIFS(MN!$J:$J,MN!$E:$E,A10,MN!$D:$D,"<>" & "") -> 0 | R10: 1321.72 | S10: 123522 | T10: 0 | AA10: 45 | AG10: =IFERROR(VLOOKUP(ROWS(AG2:AG10),AI2:AJ186,2,0),"") -> 45 | AI10: =IF(ISNUMBER(SEARCH(AL2,AJ10)),MAX(AI1:AI9)+1,0) -> 9 | AJ10: 45
A11: 10 | B11: ابيض | C11: كروشيه | D11: 3.2سم | E11: ابيض كروشيه 3.2سم | F11: 18.44 | G11: 1096 | I11: =SUMIFS(MN!$G:$G,MN!$E:$E,A11,MN!B:B,"<>" & "") -> 10 | J11: =SUMIFS(MN!$I:$I,MN!$E:$E,A11,MN!$B:$B,"<>" & "") -> 10 | K11: =SUMIFS(MN!$J:$J,MN!$E:$E,A11,MN!$B:$B,"<>" & "") -> 10 | L11: =SUMIFS(MN!$G:$G,MN!$E:$E,A11,MN!$C:$C,"<>" & "") -> 10 | M11: =SUMIFS(MN!$I:$I,MN!$E:$E,A11,MN!$C:$C,"<>" & "") -> 10 | N11: =SUMIFS(MN!$J:$J,MN!$E:$E,A11,MN!$C:$C,"<>" & "") -> 10 | O11: =SUMIFS(MN!$G:$G,MN!$E:$E,A11,MN!$D:$D,"<>" & "") -> 0 | P11: =SUMIFS(MN!$I:$I,MN!$E:$E,A11,MN!$D:$D,"<>" & "") -> 0 | Q11: =SUMIFS(MN!$J:$J,MN!$E:$E,A11,MN!$D:$D,"<>" & "") -> 0 | R11: 18.44 | S11: 1096 | T11: 0 | AA11: 50 | AG11: =IFERROR(VLOOKUP(ROWS(AG2:AG11),AI2:AJ186,2,0),"") -> 50 | AI11: =IF(ISNUMBER(SEARCH(AL2,AJ11)),MAX(AI1:AI10)+1,0) -> 10 | AJ11: 50
A12: 11 | B12: ابيض | C12: كروشيه | D12: 3.5سم | E12: ابيض كروشيه 3.5سم | F12: 4471.7 | G12: 235225 | I12: =SUMIFS(MN!$G:$G,MN!$E:$E,A12,MN!B:B,"<>" & "") -> 0 | J12: =SUMIFS(MN!$I:$I,MN!$E:$E,A12,MN!$B:$B,"<>" & "") -> 0 | K12: =SUMIFS(MN!$J:$J,MN!$E:$E,A12,MN!$B:$B,"<>" & "") -> 0 | L12: =SUMIFS(MN!$G:$G,MN!$E:$E,A12,MN!$C:$C,"<>" & "") -> 0 | M12: =SUMIFS(MN!$I:$I,MN!$E:$E,A12,MN!$C:$C,"<>" & "") -> 0 | N12: =SUMIFS(MN!$J:$J,MN!$E:$E,A12,MN!$C:$C,"<>" & "") -> 0 | O12: =SUMIFS(MN!$G:$G,MN!$E:$E,A12,MN!$D:$D,"<>" & "") -> 0 | P12: =SUMIFS(MN!$I:$I,MN!$E:$E,A12,MN!$D:$D,"<>" & "") -> 0 | Q12: =SUMIFS(MN!$J:$J,MN!$E:$E,A12,MN!$D:$D,"<>" & "") -> 0 | R12: 4471.7 | S12: 235225 | T12: 0 | AA12: 55 | AG12: =IFERROR(VLOOKUP(ROWS(AG2:AG12),AI2:AJ186,2,0),"") -> 55 | AI12: =IF(ISNUMBER(SEARCH(AL2,AJ12)),MAX(AI1:AI11)+1,0) -> 11 | AJ12: 55
A13: 12 | B13: ابيض | C13: كروشيه | D13: 3سم | E13: ابيض كروشيه 3سم | F13: 4545.46 | G13: 275094 | I13: =SUMIFS(MN!$G:$G,MN!$E:$E,A13,MN!B:B,"<>" & "") -> 0 | J13: =SUMIFS(MN!$I:$I,MN!$E:$E,A13,MN!$B:$B,"<>" & "") -> 0 | K13: =SUMIFS(MN!$J:$J,MN!$E:$E,A13,MN!$B:$B,"<>" & "") -> 0 | L13: =SUMIFS(MN!$G:$G,MN!$E:$E,A13,MN!$C:$C,"<>" & "") -> 0 | M13: =SUMIFS(MN!$I:$I,MN!$E:$E,A13,MN!$C:$C,"<>" & "") -> 0 | N13: =SUMIFS(MN!$J:$J,MN!$E:$E,A13,MN!$C:$C,"<>" & "") -> 0 | O13: =SUMIFS(MN!$G:$G,MN!$E:$E,A13,MN!$D:$D,"<>" & "") -> 0 | P13: =SUMIFS(MN!$I:$I,MN!$E:$E,A13,MN!$D:$D,"<>" & "") -> 0 | Q13: =SUMIFS(MN!$J:$J,MN!$E:$E,A13,MN!$D:$D,"<>" & "") -> 0 | R13: 4545.46 | S13: 275094 | T13: 0 | AA13: 60 | AG13: =IFERROR(VLOOKUP(ROWS(AG2:AG13),AI2:AJ186,2,0),"") -> 60 | AI13: =IF(ISNUMBER(SEARCH(AL2,AJ13)),MAX(AI1:AI12)+1,0) -> 12 | AJ13: 60
A14: 13 | B14: ابيض | C14: كروشيه | D14: 4.5سم | E14: ابيض كروشيه 4.5سم | F14: 497.88 | G14: 22626 | I14: =SUMIFS(MN!$G:$G,MN!$E:$E,A14,MN!B:B,"<>" & "") -> 0 | J14: =SUMIFS(MN!$I:$I,MN!$E:$E,A14,MN!$B:$B,"<>" & "") -> 0 | K14: =SUMIFS(MN!$J:$J,MN!$E:$E,A14,MN!$B:$B,"<>" & "") -> 0 | L14: =SUMIFS(MN!$G:$G,MN!$E:$E,A14,MN!$C:$C,"<>" & "") -> 0 | M14: =SUMIFS(MN!$I:$I,MN!$E:$E,A14,MN!$C:$C,"<>" & "") -> 0 | N14: =SUMIFS(MN!$J:$J,MN!$E:$E,A14,MN!$C:$C,"<>" & "") -> 0 | O14: =SUMIFS(MN!$G:$G,MN!$E:$E,A14,MN!$D:$D,"<>" & "") -> 0 | P14: =SUMIFS(MN!$I:$I,MN!$E:$E,A14,MN!$D:$D,"<>" & "") -> 0 | Q14: =SUMIFS(MN!$J:$J,MN!$E:$E,A14,MN!$D:$D,"<>" & "") -> 0 | R14: 497.88 | S14: 22626 | T14: 0 | AA14: 65 | AG14: =IFERROR(VLOOKUP(ROWS(AG2:AG14),AI2:AJ186,2,0),"") -> 65 | AI14: =IF(ISNUMBER(SEARCH(AL2,AJ14)),MAX(AI1:AI13)+1,0) -> 13 | AJ14: 65
A15: 14 | B15: ابيض | C15: كروشيه | D15: 4سم | E15: ابيض كروشيه 4سم | F15: 3024.16 | G15: 132512 | I15: =SUMIFS(MN!$G:$G,MN!$E:$E,A15,MN!B:B,"<>" & "") -> 0 | J15: =SUMIFS(MN!$I:$I,MN!$E:$E,A15,MN!$B:$B,"<>" & "") -> 0 | K15: =SUMIFS(MN!$J:$J,MN!$E:$E,A15,MN!$B:$B,"<>" & "") -> 0 | L15: =SUMIFS(MN!$G:$G,MN!$E:$E,A15,MN!$C:$C,"<>" & "") -> 0 | M15: =SUMIFS(MN!$I:$I,MN!$E:$E,A15,MN!$C:$C,"<>" & "") -> 0 | N15: =SUMIFS(MN!$J:$J,MN!$E:$E,A15,MN!$C:$C,"<>" & "") -> 0 | O15: =SUMIFS(MN!$G:$G,MN!$E:$E,A15,MN!$D:$D,"<>" & "") -> 0 | P15: =SUMIFS(MN!$I:$I,MN!$E:$E,A15,MN!$D:$D,"<>" & "") -> 0 | Q15: =SUMIFS(MN!$J:$J,MN!$E:$E,A15,MN!$D:$D,"<>" & "") -> 0 | R15: 3024.16 | S15: 132512 | T15: 0 | AA15: 70 | AG15: =IFERROR(VLOOKUP(ROWS(AG2:AG15),AI2:AJ186,2,0),"") -> 70 | AI15: =IF(ISNUMBER(SEARCH(AL2,AJ15)),MAX(AI1:AI14)+1,0) -> 14 | AJ15: 70
A16: 15 | B16: ابيض | C16: كروشيه | D16: 5.3سم | E16: ابيض كروشيه 5.3سم | F16: 9.22 | G16: 237 | I16: =SUMIFS(MN!$G:$G,MN!$E:$E,A16,MN!B:B,"<>" & "") -> 0 | J16: =SUMIFS(MN!$I:$I,MN!$E:$E,A16,MN!$B:$B,"<>" & "") -> 0 | K16: =SUMIFS(MN!$J:$J,MN!$E:$E,A16,MN!$B:$B,"<>" & "") -> 0 | L16: =SUMIFS(MN!$G:$G,MN!$E:$E,A16,MN!$C:$C,"<>" & "") -> 0 | M16: =SUMIFS(MN!$I:$I,MN!$E:$E,A16,MN!$C:$C,"<>" & "") -> 0 | N16: =SUMIFS(MN!$J:$J,MN!$E:$E,A16,MN!$C:$C,"<>" & "") -> 0 | O16: =SUMIFS(MN!$G:$G,MN!$E:$E,A16,MN!$D:$D,"<>" & "") -> 0 | P16: =SUMIFS(MN!$I:$I,MN!$E:$E,A16,MN!$D:$D,"<>" & "") -> 0 | Q16: =SUMIFS(MN!$J:$J,MN!$E:$E,A16,MN!$D:$D,"<>" & "") -> 0 | R16: 9.22 | S16: 237 | T16: 0 | AA16: 75 | AG16: =IFERROR(VLOOKUP(ROWS(AG2:AG16),AI2:AJ186,2,0),"") -> 75 | AI16: =IF(ISNUMBER(SEARCH(AL2,AJ16)),MAX(AI1:AI15)+1,0) -> 15 | AJ16: 75
A17: 16 | B17: ابيض | C17: كروشيه | D17: 5.5سم | E17: ابيض كروشيه 5.5سم | F17: 3494.38 | G17: 117111 | I17: =SUMIFS(MN!$G:$G,MN!$E:$E,A17,MN!B:B,"<>" & "") -> 0 | J17: =SUMIFS(MN!$I:$I,MN!$E:$E,A17,MN!$B:$B,"<>" & "") -> 0 | K17: =SUMIFS(MN!$J:$J,MN!$E:$E,A17,MN!$B:$B,"<>" & "") -> 0 | L17: =SUMIFS(MN!$G:$G,MN!$E:$E,A17,MN!$C:$C,"<>" & "") -> 0 | M17: =SUMIFS(MN!$I:$I,MN!$E:$E,A17,MN!$C:$C,"<>" & "") -> 0 | N17: =SUMIFS(MN!$J:$J,MN!$E:$E,A17,MN!$C:$C,"<>" & "") -> 0 | O17: =SUMIFS(MN!$G:$G,MN!$E:$E,A17,MN!$D:$D,"<>" & "") -> 0 | P17: =SUMIFS(MN!$I:$I,MN!$E:$E,A17,MN!$D:$D,"<>" & "") -> 0 | Q17: =SUMIFS(MN!$J:$J,MN!$E:$E,A17,MN!$D:$D,"<>" & "") -> 0 | R17: 3494.38 | S17: 117111 | T17: 0 | AA17: 80 | AG17: =IFERROR(VLOOKUP(ROWS(AG2:AG17),AI2:AJ186,2,0),"") -> 80 | AI17: =IF(ISNUMBER(SEARCH(AL2,AJ17)),MAX(AI1:AI16)+1,0) -> 16 | AJ17: 80
A18: 17 | B18: ابيض | C18: كروشيه | D18: 5.8سم | E18: ابيض كروشيه 5.8سم | F18: 9.22 | G18: 341 | I18: =SUMIFS(MN!$G:$G,MN!$E:$E,A18,MN!B:B,"<>" & "") -> 0 | J18: =SUMIFS(MN!$I:$I,MN!$E:$E,A18,MN!$B:$B,"<>" & "") -> 0 | K18: =SUMIFS(MN!$J:$J,MN!$E:$E,A18,MN!$B:$B,"<>" & "") -> 0 | L18: =SUMIFS(MN!$G:$G,MN!$E:$E,A18,MN!$C:$C,"<>" & "") -> 0 | M18: =SUMIFS(MN!$I:$I,MN!$E:$E,A18,MN!$C:$C,"<>" & "") -> 0 | N18: =SUMIFS(MN!$J:$J,MN!$E:$E,A18,MN!$C:$C,"<>" & "") -> 0 | O18: =SUMIFS(MN!$G:$G,MN!$E:$E,A18,MN!$D:$D,"<>" & "") -> 0 | P18: =SUMIFS(MN!$I:$I,MN!$E:$E,A18,MN!$D:$D,"<>" & "") -> 0 | Q18: =SUMIFS(MN!$J:$J,MN!$E:$E,A18,MN!$D:$D,"<>" & "") -> 0 | R18: 9.22 | S18: 341 | T18: 0 | AA18: 85 | AG18: =IFERROR(VLOOKUP(ROWS(AG2:AG18),AI2:AJ186,2,0),"") -> 85 | AI18: =IF(ISNUMBER(SEARCH(AL2,AJ18)),MAX(AI1:AI17)+1,0) -> 17 | AJ18: 85
A19: 18 | B19: ابيض | C19: كروشيه | D19: 5سم | E19: ابيض كروشيه 5سم | F19: 2341.88 | G19: 95504 | I19: =SUMIFS(MN!$G:$G,MN!$E:$E,A19,MN!B:B,"<>" & "") -> 0 | J19: =SUMIFS(MN!$I:$I,MN!$E:$E,A19,MN!$B:$B,"<>" & "") -> 0 | K19: =SUMIFS(MN!$J:$J,MN!$E:$E,A19,MN!$B:$B,"<>" & "") -> 0 | L19: =SUMIFS(MN!$G:$G,MN!$E:$E,A19,MN!$C:$C,"<>" & "") -> 0 | M19: =SUMIFS(MN!$I:$I,MN!$E:$E,A19,MN!$C:$C,"<>" & "") -> 0 | N19: =SUMIFS(MN!$J:$J,MN!$E:$E,A19,MN!$C:$C,"<>" & "") -> 0 | O19: =SUMIFS(MN!$G:$G,MN!$E:$E,A19,MN!$D:$D,"<>" & "") -> 0 | P19: =SUMIFS(MN!$I:$I,MN!$E:$E,A19,MN!$D:$D,"<>" & "") -> 0 | Q19: =SUMIFS(MN!$J:$J,MN!$E:$E,A19,MN!$D:$D,"<>" & "") -> 0 | R19: 2341.88 | S19: 95504 | T19: 0 | AA19: 90 | AG19: =IFERROR(VLOOKUP(ROWS(AG2:AG19),AI2:AJ186,2,0),"") -> 90 | AI19: =IF(ISNUMBER(SEARCH(AL2,AJ19)),MAX(AI1:AI18)+1,0) -> 18 | AJ19: 90
A20: 19 | B20: ابيض | C20: كروشيه | D20: 5مليمتر | E20: ابيض كروشيه 5مليمتر | F20: 5.84 | G20: 5178 | I20: =SUMIFS(MN!$G:$G,MN!$E:$E,A20,MN!B:B,"<>" & "") -> 0 | J20: =SUMIFS(MN!$I:$I,MN!$E:$E,A20,MN!$B:$B,"<>" & "") -> 0 | K20: =SUMIFS(MN!$J:$J,MN!$E:$E,A20,MN!$B:$B,"<>" & "") -> 0 | L20: =SUMIFS(MN!$G:$G,MN!$E:$E,A20,MN!$C:$C,"<>" & "") -> 0 | M20: =SUMIFS(MN!$I:$I,MN!$E:$E,A20,MN!$C:$C,"<>" & "") -> 0 | N20: =SUMIFS(MN!$J:$J,MN!$E:$E,A20,MN!$C:$C,"<>" & "") -> 0 | O20: =SUMIFS(MN!$G:$G,MN!$E:$E,A20,MN!$D:$D,"<>" & "") -> 0 | P20: =SUMIFS(MN!$I:$I,MN!$E:$E,A20,MN!$D:$D,"<>" & "") -> 0 | Q20: =SUMIFS(MN!$J:$J,MN!$E:$E,A20,MN!$D:$D,"<>" & "") -> 0 | R20: 5.84 | S20: 5178 | T20: 0 | AA20: 95 | AG20: =IFERROR(VLOOKUP(ROWS(AG2:AG20),AI2:AJ186,2,0),"") -> 95 | AI20: =IF(ISNUMBER(SEARCH(AL2,AJ20)),MAX(AI1:AI19)+1,0) -> 19 | AJ20: 95
A21: 20 | B21: ابيض | C21: كروشيه | D21: 6.5سم | E21: ابيض كروشيه 6.5سم | F21: 922 | G21: 27600 | I21: =SUMIFS(MN!$G:$G,MN!$E:$E,A21,MN!B:B,"<>" & "") -> 0 | J21: =SUMIFS(MN!$I:$I,MN!$E:$E,A21,MN!$B:$B,"<>" & "") -> 0 | K21: =SUMIFS(MN!$J:$J,MN!$E:$E,A21,MN!$B:$B,"<>" & "") -> 0 | L21: =SUMIFS(MN!$G:$G,MN!$E:$E,A21,MN!$C:$C,"<>" & "") -> 0 | M21: =SUMIFS(MN!$I:$I,MN!$E:$E,A21,MN!$C:$C,"<>" & "") -> 0 | N21: =SUMIFS(MN!$J:$J,MN!$E:$E,A21,MN!$C:$C,"<>" & "") -> 0 | O21: =SUMIFS(MN!$G:$G,MN!$E:$E,A21,MN!$D:$D,"<>" & "") -> 0 | P21: =SUMIFS(MN!$I:$I,MN!$E:$E,A21,MN!$D:$D,"<>" & "") -> 0 | Q21: =SUMIFS(MN!$J:$J,MN!$E:$E,A21,MN!$D:$D,"<>" & "") -> 0 | R21: 922 | S21: 27600 | T21: 0 | AA21: 100 | AG21: =IFERROR(VLOOKUP(ROWS(AG2:AG21),AI2:AJ186,2,0),"") -> 100 | AI21: =IF(ISNUMBER(SEARCH(AL2,AJ21)),MAX(AI1:AI20)+1,0) -> 20 | AJ21: 100
A22: 21 | B22: ابيض | C22: كروشيه | D22: 6مليمتر | E22: ابيض كروشيه 6مليمتر | F22: 23.36 | G22: 5712 | I22: =SUMIFS(MN!$G:$G,MN!$E:$E,A22,MN!B:B,"<>" & "") -> 0 | J22: =SUMIFS(MN!$I:$I,MN!$E:$E,A22,MN!$B:$B,"<>" & "") -> 0 | K22: =SUMIFS(MN!$J:$J,MN!$E:$E,A22,MN!$B:$B,"<>" & "") -> 0 | L22: =SUMIFS(MN!$G:$G,MN!$E:$E,A22,MN!$C:$C,"<>" & "") -> 0 | M22: =SUMIFS(MN!$I:$I,MN!$E:$E,A22,MN!$C:$C,"<>" & "") -> 0 | N22: =SUMIFS(MN!$J:$J,MN!$E:$E,A22,MN!$C:$C,"<>" & "") -> 0 | O22: =SUMIFS(MN!$G:$G,MN!$E:$E,A22,MN!$D:$D,"<>" & "") -> 0 | P22: =SUMIFS(MN!$I:$I,MN!$E:$E,A22,MN!$D:$D,"<>" & "") -> 0 | Q22: =SUMIFS(MN!$J:$J,MN!$E:$E,A22,MN!$D:$D,"<>" & "") -> 0 | R22: 23.36 | S22: 5712 | T22: 0 | AA22: 105 | AG22: =IFERROR(VLOOKUP(ROWS(AG2:AG22),AI2:AJ186,2,0),"") -> 105 | AI22: =IF(ISNUMBER(SEARCH(AL2,AJ22)),MAX(AI1:AI21)+1,0) -> 21 | AJ22: 105
A23: 22 | B23: ابيض | C23: كروشيه | D23: 7مليمتر | E23: ابيض كروشيه 7مليمتر | F23: 5.84 | G23: 1315 | I23: =SUMIFS(MN!$G:$G,MN!$E:$E,A23,MN!B:B,"<>" & "") -> 0 | J23: =SUMIFS(MN!$I:$I,MN!$E:$E,A23,MN!$B:$B,"<>" & "") -> 0 | K23: =SUMIFS(MN!$J:$J,MN!$E:$E,A23,MN!$B:$B,"<>" & "") -> 0 | L23: =SUMIFS(MN!$G:$G,MN!$E:$E,A23,MN!$C:$C,"<>" & "") -> 0 | M23: =SUMIFS(MN!$I:$I,MN!$E:$E,A23,MN!$C:$C,"<>" & "") -> 0 | N23: =SUMIFS(MN!$J:$J,MN!$E:$E,A23,MN!$C:$C,"<>" & "") -> 0 | O23: =SUMIFS(MN!$G:$G,MN!$E:$E,A23,MN!$D:$D,"<>" & "") -> 0 | P23: =SUMIFS(MN!$I:$I,MN!$E:$E,A23,MN!$D:$D,"<>" & "") -> 0 | Q23: =SUMIFS(MN!$J:$J,MN!$E:$E,A23,MN!$D:$D,"<>" & "") -> 0 | R23: 5.84 | S23: 1315 | T23: 0 | AA23: 110 | AG23: =IFERROR(VLOOKUP(ROWS(AG2:AG23),AI2:AJ186,2,0),"") -> 110 | AI23: =IF(ISNUMBER(SEARCH(AL2,AJ23)),MAX(AI1:AI22)+1,0) -> 22 | AJ23: 110
A24: 23 | B24: ابيض | C24: كروشيه | D24: 8مليمتر | E24: ابيض كروشيه 8مليمتر | F24: 5.85 | G24: 1168 | I24: =SUMIFS(MN!$G:$G,MN!$E:$E,A24,MN!B:B,"<>" & "") -> 0 | J24: =SUMIFS(MN!$I:$I,MN!$E:$E,A24,MN!$B:$B,"<>" & "") -> 0 | K24: =SUMIFS(MN!$J:$J,MN!$E:$E,A24,MN!$B:$B,"<>" & "") -> 0 | L24: =SUMIFS(MN!$G:$G,MN!$E:$E,A24,MN!$C:$C,"<>" & "") -> 0 | M24: =SUMIFS(MN!$I:$I,MN!$E:$E,A24,MN!$C:$C,"<>" & "") -> 0 | N24: =SUMIFS(MN!$J:$J,MN!$E:$E,A24,MN!$C:$C,"<>" & "") -> 0 | O24: =SUMIFS(MN!$G:$G,MN!$E:$E,A24,MN!$D:$D,"<>" & "") -> 0 | P24: =SUMIFS(MN!$I:$I,MN!$E:$E,A24,MN!$D:$D,"<>" & "") -> 0 | Q24: =SUMIFS(MN!$J:$J,MN!$E:$E,A24,MN!$D:$D,"<>" & "") -> 0 | R24: 5.85 | S24: 1168 | T24: 0 | AA24: 115 | AG24: =IFERROR(VLOOKUP(ROWS(AG2:AG24),AI2:AJ186,2,0),"") -> 115 | AI24: =IF(ISNUMBER(SEARCH(AL2,AJ24)),MAX(AI1:AI23)+1,0) -> 23 | AJ24: 115
A25: 24 | B25: ابيض | C25: ووفين | D25: 1.5سم | E25: ابيض ووفين 1.5سم | I25: =SUMIFS(MN!$G:$G,MN!$E:$E,A25,MN!B:B,"<>" & "") -> 0 | J25: =SUMIFS(MN!$I:$I,MN!$E:$E,A25,MN!$B:$B,"<>" & "") -> 0 | K25: =SUMIFS(MN!$J:$J,MN!$E:$E,A25,MN!$B:$B,"<>" & "") -> 0 | L25: =SUMIFS(MN!$G:$G,MN!$E:$E,A25,MN!$C:$C,"<>" & "") -> 0 | M25: =SUMIFS(MN!$I:$I,MN!$E:$E,A25,MN!$C:$C,"<>" & "") -> 0 | N25: =SUMIFS(MN!$J:$J,MN!$E:$E,A25,MN!$C:$C,"<>" & "") -> 0 | O25: =SUMIFS(MN!$G:$G,MN!$E:$E,A25,MN!$D:$D,"<>" & "") -> 0 | P25: =SUMIFS(MN!$I:$I,MN!$E:$E,A25,MN!$D:$D,"<>" & "") -> 0 | Q25: =SUMIFS(MN!$J:$J,MN!$E:$E,A25,MN!$D:$D,"<>" & "") -> 0 | R25: 0 | S25: 0 | T25: 0 | AA25: 120 | AG25: =IFERROR(VLOOKUP(ROWS(AG2:AG25),AI2:AJ186,2,0),"") -> 120 | AI25: =IF(ISNUMBER(SEARCH(AL2,AJ25)),MAX(AI1:AI24)+1,0) -> 24 | AJ25: 120
A26: 25 | B26: ابيض | C26: ووفين | D26: 2.5سم | E26: ابيض ووفين 2.5سم | I26: =SUMIFS(MN!$G:$G,MN!$E:$E,A26,MN!B:B,"<>" & "") -> 0 | J26: =SUMIFS(MN!$I:$I,MN!$E:$E,A26,MN!$B:$B,"<>" & "") -> 0 | K26: =SUMIFS(MN!$J:$J,MN!$E:$E,A26,MN!$B:$B,"<>" & "") -> 0 | L26: =SUMIFS(MN!$G:$G,MN!$E:$E,A26,MN!$C:$C,"<>" & "") -> 0 | M26: =SUMIFS(MN!$I:$I,MN!$E:$E,A26,MN!$C:$C,"<>" & "") -> 0 | N26: =SUMIFS(MN!$J:$J,MN!$E:$E,A26,MN!$C:$C,"<>" & "") -> 0 | O26: =SUMIFS(MN!$G:$G,MN!$E:$E,A26,MN!$D:$D,"<>" & "") -> 0 | P26: =SUMIFS(MN!$I:$I,MN!$E:$E,A26,MN!$D:$D,"<>" & "") -> 0 | Q26: =SUMIFS(MN!$J:$J,MN!$E:$E,A26,MN!$D:$D,"<>" & "") -> 0 | R26: 0 | S26: 0 | T26: 0 | AA26: 125 | AG26: =IFERROR(VLOOKUP(ROWS(AG2:AG26),AI2:AJ186,2,0),"") -> 125 | AI26: =IF(ISNUMBER(SEARCH(AL2,AJ26)),MAX(AI1:AI25)+1,0) -> 25 | AJ26: 125
A27: 26 | B27: ابيض | C27: ووفين ساندوتش | D27: 1.5سم | E27: ابيض ووفين ساندوتش 1.5سم | I27: =SUMIFS(MN!$G:$G,MN!$E:$E,A27,MN!B:B,"<>" & "") -> 0 | J27: =SUMIFS(MN!$I:$I,MN!$E:$E,A27,MN!$B:$B,"<>" & "") -> 0 | K27: =SUMIFS(MN!$J:$J,MN!$E:$E,A27,MN!$B:$B,"<>" & "") -> 0 | L27: =SUMIFS(MN!$G:$G,MN!$E:$E,A27,MN!$C:$C,"<>" & "") -> 0 | M27: =SUMIFS(MN!$I:$I,MN!$E:$E,A27,MN!$C:$C,"<>" & "") -> 0 | N27: =SUMIFS(MN!$J:$J,MN!$E:$E,A27,MN!$C:$C,"<>" & "") -> 0 | O27: =SUMIFS(MN!$G:$G,MN!$E:$E,A27,MN!$D:$D,"<>" & "") -> 0 | P27: =SUMIFS(MN!$I:$I,MN!$E:$E,A27,MN!$D:$D,"<>" & "") -> 0 | Q27: =SUMIFS(MN!$J:$J,MN!$E:$E,A27,MN!$D:$D,"<>" & "") -> 0 | R27: 0 | S27: 0 | T27: 0 | AA27: 130 | AG27: =IFERROR(VLOOKUP(ROWS(AG2:AG27),AI2:AJ186,2,0),"") -> 130 | AI27: =IF(ISNUMBER(SEARCH(AL2,AJ27)),MAX(AI1:AI26)+1,0) -> 26 | AJ27: 130
A28: 27 | B28: ابيض | C28: ووفين ساندوتش | D28: 2.2سم | E28: ابيض ووفين ساندوتش 2.2سم | I28: =SUMIFS(MN!$G:$G,MN!$E:$E,A28,MN!B:B,"<>" & "") -> 0 | J28: =SUMIFS(MN!$I:$I,MN!$E:$E,A28,MN!$B:$B,"<>" & "") -> 0 | K28: =SUMIFS(MN!$J:$J,MN!$E:$E,A28,MN!$B:$B,"<>" & "") -> 0 | L28: =SUMIFS(MN!$G:$G,MN!$E:$E,A28,MN!$C:$C,"<>" & "") -> 0 | M28: =SUMIFS(MN!$I:$I,MN!$E:$E,A28,MN!$C:$C,"<>" & "") -> 0 | N28: =SUMIFS(MN!$J:$J,MN!$E:$E,A28,MN!$C:$C,"<>" & "") -> 0 | O28: =SUMIFS(MN!$G:$G,MN!$E:$E,A28,MN!$D:$D,"<>" & "") -> 0 | P28: =SUMIFS(MN!$I:$I,MN!$E:$E,A28,MN!$D:$D,"<>" & "") -> 0 | Q28: =SUMIFS(MN!$J:$J,MN!$E:$E,A28,MN!$D:$D,"<>" & "") -> 0 | R28: 0 | S28: 0 | T28: 0 | AA28: 135 | AG28: =IFERROR(VLOOKUP(ROWS(AG2:AG28),AI2:AJ186,2,0),"") -> 135 | AI28: =IF(ISNUMBER(SEARCH(AL2,AJ28)),MAX(AI1:AI27)+1,0) -> 27 | AJ28: 135
A29: 28 | B29: ابيض | C29: ووفين ساندوتش | D29: 2.5سم | E29: ابيض ووفين ساندوتش 2.5سم | I29: =SUMIFS(MN!$G:$G,MN!$E:$E,A29,MN!B:B,"<>" & "") -> 0 | J29: =SUMIFS(MN!$I:$I,MN!$E:$E,A29,MN!$B:$B,"<>" & "") -> 0 | K29: =SUMIFS(MN!$J:$J,MN!$E:$E,A29,MN!$B:$B,"<>" & "") -> 0 | L29: =SUMIFS(MN!$G:$G,MN!$E:$E,A29,MN!$C:$C,"<>" & "") -> 0 | M29: =SUMIFS(MN!$I:$I,MN!$E:$E,A29,MN!$C:$C,"<>" & "") -> 0 | N29: =SUMIFS(MN!$J:$J,MN!$E:$E,A29,MN!$C:$C,"<>" & "") -> 0 | O29: =SUMIFS(MN!$G:$G,MN!$E:$E,A29,MN!$D:$D,"<>" & "") -> 0 | P29: =SUMIFS(MN!$I:$I,MN!$E:$E,A29,MN!$D:$D,"<>" & "") -> 0 | Q29: =SUMIFS(MN!$J:$J,MN!$E:$E,A29,MN!$D:$D,"<>" & "") -> 0 | R29: 0 | S29: 0 | T29: 0 | AA29: 140 | AG29: =IFERROR(VLOOKUP(ROWS(AG2:AG29),AI2:AJ186,2,0),"") -> 140 | AI29: =IF(ISNUMBER(SEARCH(AL2,AJ29)),MAX(AI1:AI28)+1,0) -> 28 | AJ29: 140
A30: 29 | B30: ابيض | C30: ووفين ساندوتش القطة | D30: 2.5سم | E30: ابيض ووفين ساندوتش القطة 2.5سم | I30: =SUMIFS(MN!$G:$G,MN!$E:$E,A30,MN!B:B,"<>" & "") -> 0 | J30: =SUMIFS(MN!$I:$I,MN!$E:$E,A30,MN!$B:$B,"<>" & "") -> 0 | K30: =SUMIFS(MN!$J:$J,MN!$E:$E,A30,MN!$B:$B,"<>" & "") -> 0 | L30: =SUMIFS(MN!$G:$G,MN!$E:$E,A30,MN!$C:$C,"<>" & "") -> 0 | M30: =SUMIFS(MN!$I:$I,MN!$E:$E,A30,MN!$C:$C,"<>" & "") -> 0 | N30: =SUMIFS(MN!$J:$J,MN!$E:$E,A30,MN!$C:$C,"<>" & "") -> 0 | O30: =SUMIFS(MN!$G:$G,MN!$E:$E,A30,MN!$D:$D,"<>" & "") -> 0 | P30: =SUMIFS(MN!$I:$I,MN!$E:$E,A30,MN!$D:$D,"<>" & "") -> 0 | Q30: =SUMIFS(MN!$J:$J,MN!$E:$E,A30,MN!$D:$D,"<>" & "") -> 0 | R30: 0 | S30: 0 | T30: 0 | AA30: 145 | AG30: =IFERROR(VLOOKUP(ROWS(AG2:AG30),AI2:AJ186,2,0),"") -> 145 | AI30: =IF(ISNUMBER(SEARCH(AL2,AJ30)),MAX(AI1:AI29)+1,0) -> 29 | AJ30: 145
A31: 30 | B31: ابيض | C31: ووفين ساندوتش قديم | D31: 1.5سم | E31: ابيض ووفين ساندوتش قديم 1.5سم | I31: =SUMIFS(MN!$G:$G,MN!$E:$E,A31,MN!B:B,"<>" & "") -> 0 | J31: =SUMIFS(MN!$I:$I,MN!$E:$E,A31,MN!$B:$B,"<>" & "") -> 0 | K31: =SUMIFS(MN!$J:$J,MN!$E:$E,A31,MN!$B:$B,"<>" & "") -> 0 | L31: =SUMIFS(MN!$G:$G,MN!$E:$E,A31,MN!$C:$C,"<>" & "") -> 0 | M31: =SUMIFS(MN!$I:$I,MN!$E:$E,A31,MN!$C:$C,"<>" & "") -> 0 | N31: =SUMIFS(MN!$J:$J,MN!$E:$E,A31,MN!$C:$C,"<>" & "") -> 0 | O31: =SUMIFS(MN!$G:$G,MN!$E:$E,A31,MN!$D:$D,"<>" & "") -> 0 | P31: =SUMIFS(MN!$I:$I,MN!$E:$E,A31,MN!$D:$D,"<>" & "") -> 0 | Q31: =SUMIFS(MN!$J:$J,MN!$E:$E,A31,MN!$D:$D,"<>" & "") -> 0 | R31: 0 | S31: 0 | T31: 0 | AA31: 150 | AG31: =IFERROR(VLOOKUP(ROWS(AG2:AG31),AI2:AJ186,2,0),"") -> 150 | AI31: =IF(ISNUMBER(SEARCH(AL2,AJ31)),MAX(AI1:AI30)+1,0) -> 30 | AJ31: 150
A32: 31 | B32: ابيض | C32: ووفين ساندوتش قديم | D32: 1.6 سم | E32: ابيض ووفين ساندوتش قديم 1.6 سم | I32: =SUMIFS(MN!$G:$G,MN!$E:$E,A32,MN!B:B,"<>" & "") -> 0 | J32: =SUMIFS(MN!$I:$I,MN!$E:$E,A32,MN!$B:$B,"<>" & "") -> 0 | K32: =SUMIFS(MN!$J:$J,MN!$E:$E,A32,MN!$B:$B,"<>" & "") -> 0 | L32: =SUMIFS(MN!$G:$G,MN!$E:$E,A32,MN!$C:$C,"<>" & "") -> 0 | M32: =SUMIFS(MN!$I:$I,MN!$E:$E,A32,MN!$C:$C,"<>" & "") -> 0 | N32: =SUMIFS(MN!$J:$J,MN!$E:$E,A32,MN!$C:$C,"<>" & "") -> 0 | O32: =SUMIFS(MN!$G:$G,MN!$E:$E,A32,MN!$D:$D,"<>" & "") -> 0 | P32: =SUMIFS(MN!$I:$I,MN!$E:$E,A32,MN!$D:$D,"<>" & "") -> 0 | Q32: =SUMIFS(MN!$J:$J,MN!$E:$E,A32,MN!$D:$D,"<>" & "") -> 0 | R32: 0 | S32: 0 | T32: 0 | AA32: 155 | AG32: =IFERROR(VLOOKUP(ROWS(AG2:AG32),AI2:AJ186,2,0),"") -> 155 | AI32: =IF(ISNUMBER(SEARCH(AL2,AJ32)),MAX(AI1:AI31)+1,0) -> 31 | AJ32: 155
A33: 32 | B33: ابيض | C33: ووفين فستون | D33: 1سم | E33: ابيض ووفين فستون 1سم | I33: =SUMIFS(MN!$G:$G,MN!$E:$E,A33,MN!B:B,"<>" & "") -> 0 | J33: =SUMIFS(MN!$I:$I,MN!$E:$E,A33,MN!$B:$B,"<>" & "") -> 0 | K33: =SUMIFS(MN!$J:$J,MN!$E:$E,A33,MN!$B:$B,"<>" & "") -> 0 | L33: =SUMIFS(MN!$G:$G,MN!$E:$E,A33,MN!$C:$C,"<>" & "") -> 0 | M33: =SUMIFS(MN!$I:$I,MN!$E:$E,A33,MN!$C:$C,"<>" & "") -> 0 | N33: =SUMIFS(MN!$J:$J,MN!$E:$E,A33,MN!$C:$C,"<>" & "") -> 0 | O33: =SUMIFS(MN!$G:$G,MN!$E:$E,A33,MN!$D:$D,"<>" & "") -> 0 | P33: =SUMIFS(MN!$I:$I,MN!$E:$E,A33,MN!$D:$D,"<>" & "") -> 0 | Q33: =SUMIFS(MN!$J:$J,MN!$E:$E,A33,MN!$D:$D,"<>" & "") -> 0 | R33: 0 | S33: 0 | T33: 0 | AA33: 160 | AG33: =IFERROR(VLOOKUP(ROWS(AG2:AG33),AI2:AJ186,2,0),"") -> 160 | AI33: =IF(ISNUMBER(SEARCH(AL2,AJ33)),MAX(AI1:AI32)+1,0) -> 32 | AJ33: 160
A34: 33 | B34: ابيض | C34: ووفين فستون | D34: 1سم | E34: ابيض ووفين فستون 1سم | I34: =SUMIFS(MN!$G:$G,MN!$E:$E,A34,MN!B:B,"<>" & "") -> 0 | J34: =SUMIFS(MN!$I:$I,MN!$E:$E,A34,MN!$B:$B,"<>" & "") -> 0 | K34: =SUMIFS(MN!$J:$J,MN!$E:$E,A34,MN!$B:$B,"<>" & "") -> 0 | L34: =SUMIFS(MN!$G:$G,MN!$E:$E,A34,MN!$C:$C,"<>" & "") -> 0 | M34: =SUMIFS(MN!$I:$I,MN!$E:$E,A34,MN!$C:$C,"<>" & "") -> 0 | N34: =SUMIFS(MN!$J:$J,MN!$E:$E,A34,MN!$C:$C,"<>" & "") -> 0 | O34: =SUMIFS(MN!$G:$G,MN!$E:$E,A34,MN!$D:$D,"<>" & "") -> 0 | P34: =SUMIFS(MN!$I:$I,MN!$E:$E,A34,MN!$D:$D,"<>" & "") -> 0 | Q34: =SUMIFS(MN!$J:$J,MN!$E:$E,A34,MN!$D:$D,"<>" & "") -> 0 | R34: 0 | S34: 0 | T34: 0 | AA34: 165 | AG34: =IFERROR(VLOOKUP(ROWS(AG2:AG34),AI2:AJ186,2,0),"") -> 165 | AI34: =IF(ISNUMBER(SEARCH(AL2,AJ34)),MAX(AI1:AI33)+1,0) -> 33 | AJ34: 165
A35: 34 | B35: ابيض 406 | C35: كروشيه | D35: 5سم | E35: ابيض 406 كروشيه 5سم | I35: =SUMIFS(MN!$G:$G,MN!$E:$E,A35,MN!B:B,"<>" & "") -> 0 | J35: =SUMIFS(MN!$I:$I,MN!$E:$E,A35,MN!$B:$B,"<>" & "") -> 0 | K35: =SUMIFS(MN!$J:$J,MN!$E:$E,A35,MN!$B:$B,"<>" & "") -> 0 | L35: =SUMIFS(MN!$G:$G,MN!$E:$E,A35,MN!$C:$C,"<>" & "") -> 0 | M35: =SUMIFS(MN!$I:$I,MN!$E:$E,A35,MN!$C:$C,"<>" & "") -> 0 | N35: =SUMIFS(MN!$J:$J,MN!$E:$E,A35,MN!$C:$C,"<>" & "") -> 0 | O35: =SUMIFS(MN!$G:$G,MN!$E:$E,A35,MN!$D:$D,"<>" & "") -> 0 | P35: =SUMIFS(MN!$I:$I,MN!$E:$E,A35,MN!$D:$D,"<>" & "") -> 0 | Q35: =SUMIFS(MN!$J:$J,MN!$E:$E,A35,MN!$D:$D,"<>" & "") -> 0 | R35: 0 | S35: 0 | T35: 0 | AA35: 170 | AG35: =IFERROR(VLOOKUP(ROWS(AG2:AG35),AI2:AJ186,2,0),"") -> 170 | AI35: =IF(ISNUMBER(SEARCH(AL2,AJ35)),MAX(AI1:AI34)+1,0) -> 34 | AJ35: 170
A36: 35 | B36: ابيض 510 | C36: كروشيه | D36: 2.3سم | E36: ابيض 510 كروشيه 2.3سم | I36: =SUMIFS(MN!$G:$G,MN!$E:$E,A36,MN!B:B,"<>" & "") -> 0 | J36: =SUMIFS(MN!$I:$I,MN!$E:$E,A36,MN!$B:$B,"<>" & "") -> 0 | K36: =SUMIFS(MN!$J:$J,MN!$E:$E,A36,MN!$B:$B,"<>" & "") -> 0 | L36: =SUMIFS(MN!$G:$G,MN!$E:$E,A36,MN!$C:$C,"<>" & "") -> 0 | M36: =SUMIFS(MN!$I:$I,MN!$E:$E,A36,MN!$C:$C,"<>" & "") -> 0 | N36: =SUMIFS(MN!$J:$J,MN!$E:$E,A36,MN!$C:$C,"<>" & "") -> 0 | O36: =SUMIFS(MN!$G:$G,MN!$E:$E,A36,MN!$D:$D,"<>" & "") -> 0 | P36: =SUMIFS(MN!$I:$I,MN!$E:$E,A36,MN!$D:$D,"<>" & "") -> 0 | Q36: =SUMIFS(MN!$J:$J,MN!$E:$E,A36,MN!$D:$D,"<>" & "") -> 0 | R36: 0 | S36: 0 | T36: 0 | AA36: 175 | AG36: =IFERROR(VLOOKUP(ROWS(AG2:AG36),AI2:AJ186,2,0),"") -> 175 | AI36: =IF(ISNUMBER(SEARCH(AL2,AJ36)),MAX(AI1:AI35)+1,0) -> 35 | AJ36: 175
A37: 36 | B37: ابيض 510 | C37: كروشيه | D37: 5سم | E37: ابيض 510 كروشيه 5سم | F37: 46.1 | G37: 1553 | I37: =SUMIFS(MN!$G:$G,MN!$E:$E,A37,MN!B:B,"<>" & "") -> 0 | J37: =SUMIFS(MN!$I:$I,MN!$E:$E,A37,MN!$B:$B,"<>" & "") -> 0 | K37: =SUMIFS(MN!$J:$J,MN!$E:$E,A37,MN!$B:$B,"<>" & "") -> 0 | L37: =SUMIFS(MN!$G:$G,MN!$E:$E,A37,MN!$C:$C,"<>" & "") -> 0 | M37: =SUMIFS(MN!$I:$I,MN!$E:$E,A37,MN!$C:$C,"<>" & "") -> 0 | N37: =SUMIFS(MN!$J:$J,MN!$E:$E,A37,MN!$C:$C,"<>" & "") -> 0 | O37: =SUMIFS(MN!$G:$G,MN!$E:$E,A37,MN!$D:$D,"<>" & "") -> 0 | P37: =SUMIFS(MN!$I:$I,MN!$E:$E,A37,MN!$D:$D,"<>" & "") -> 0 | Q37: =SUMIFS(MN!$J:$J,MN!$E:$E,A37,MN!$D:$D,"<>" & "") -> 0 | R37: 46.1 | S37: 1553 | T37: 0 | AA37: 180 | AG37: =IFERROR(VLOOKUP(ROWS(AG2:AG37),AI2:AJ186,2,0),"") -> 180 | AI37: =IF(ISNUMBER(SEARCH(AL2,AJ37)),MAX(AI1:AI36)+1,0) -> 36 | AJ37: 180
A38: 37 | B38: ابيض CO-IMG-40 | C38: كروشيه | D38: 4سم | E38: ابيض CO-IMG-40 كروشيه 4سم | G38: 11524 | I38: =SUMIFS(MN!$G:$G,MN!$E:$E,A38,MN!B:B,"<>" & "") -> 0 | J38: =SUMIFS(MN!$I:$I,MN!$E:$E,A38,MN!$B:$B,"<>" & "") -> 0 | K38: =SUMIFS(MN!$J:$J,MN!$E:$E,A38,MN!$B:$B,"<>" & "") -> 0 | L38: =SUMIFS(MN!$G:$G,MN!$E:$E,A38,MN!$C:$C,"<>" & "") -> 0 | M38: =SUMIFS(MN!$I:$I,MN!$E:$E,A38,MN!$C:$C,"<>" & "") -> 0 | N38: =SUMIFS(MN!$J:$J,MN!$E:$E,A38,MN!$C:$C,"<>" & "") -> 0 | O38: =SUMIFS(MN!$G:$G,MN!$E:$E,A38,MN!$D:$D,"<>" & "") -> 0 | P38: =SUMIFS(MN!$I:$I,MN!$E:$E,A38,MN!$D:$D,"<>" & "") -> 0 | Q38: =SUMIFS(MN!$J:$J,MN!$E:$E,A38,MN!$D:$D,"<>" & "") -> 0 | R38: 0 | S38: 11524 | T38: 0 | AA38: 185 | AG38: =IFERROR(VLOOKUP(ROWS(AG2:AG38),AI2:AJ186,2,0),"") -> 185 | AI38: =IF(ISNUMBER(SEARCH(AL2,AJ38)),MAX(AI1:AI37)+1,0) -> 37 | AJ38: 185
A39: 38 | B39: ابيض CO-IMG-50 | C39: كروشيه | D39: 5سم | E39: ابيض CO-IMG-50 كروشيه 5سم | G39: 3564 | I39: =SUMIFS(MN!$G:$G,MN!$E:$E,A39,MN!B:B,"<>" & "") -> 0 | J39: =SUMIFS(MN!$I:$I,MN!$E:$E,A39,MN!$B:$B,"<>" & "") -> 0 | K39: =SUMIFS(MN!$J:$J,MN!$E:$E,A39,MN!$B:$B,"<>" & "") -> 0 | L39: =SUMIFS(MN!$G:$G,MN!$E:$E,A39,MN!$C:$C,"<>" & "") -> 0 | M39: =SUMIFS(MN!$I:$I,MN!$E:$E,A39,MN!$C:$C,"<>" & "") -> 0 | N39: =SUMIFS(MN!$J:$J,MN!$E:$E,A39,MN!$C:$C,"<>" & "") -> 0 | O39: =SUMIFS(MN!$G:$G,MN!$E:$E,A39,MN!$D:$D,"<>" & "") -> 0 | P39: =SUMIFS(MN!$I:$I,MN!$E:$E,A39,MN!$D:$D,"<>" & "") -> 0 | Q39: =SUMIFS(MN!$J:$J,MN!$E:$E,A39,MN!$D:$D,"<>" & "") -> 0 | R39: 0 | S39: 3564 | T39: 0 | AA39: 190 | AG39: =IFERROR(VLOOKUP(ROWS(AG2:AG39),AI2:AJ186,2,0),"") -> 190 | AI39: =IF(ISNUMBER(SEARCH(AL2,AJ39)),MAX(AI1:AI38)+1,0) -> 38 | AJ39: 190
A40: 39 | B40: ابيض IT-IMG-40 | C40: كروشيه | D40: 4سم | E40: ابيض IT-IMG-40 كروشيه 4سم | G40: 7488 | I40: =SUMIFS(MN!$G:$G,MN!$E:$E,A40,MN!B:B,"<>" & "") -> 0 | J40: =SUMIFS(MN!$I:$I,MN!$E:$E,A40,MN!$B:$B,"<>" & "") -> 0 | K40: =SUMIFS(MN!$J:$J,MN!$E:$E,A40,MN!$B:$B,"<>" & "") -> 0 | L40: =SUMIFS(MN!$G:$G,MN!$E:$E,A40,MN!$C:$C,"<>" & "") -> 0 | M40: =SUMIFS(MN!$I:$I,MN!$E:$E,A40,MN!$C:$C,"<>" & "") -> 0 | N40: =SUMIFS(MN!$J:$J,MN!$E:$E,A40,MN!$C:$C,"<>" & "") -> 0 | O40: =SUMIFS(MN!$G:$G,MN!$E:$E,A40,MN!$D:$D,"<>" & "") -> 0 | P40: =SUMIFS(MN!$I:$I,MN!$E:$E,A40,MN!$D:$D,"<>" & "") -> 0 | Q40: =SUMIFS(MN!$J:$J,MN!$E:$E,A40,MN!$D:$D,"<>" & "") -> 0 | R40: 0 | S40: 7488 | T40: 0 | AA40: 195 | AG40: =IFERROR(VLOOKUP(ROWS(AG2:AG40),AI2:AJ186,2,0),"") -> 195 | AI40: =IF(ISNUMBER(SEARCH(AL2,AJ40)),MAX(AI1:AI39)+1,0) -> 39 | AJ40: 195
A41: 40 | B41: ابيض IT-IMG-50 | C41: كروشيه | D41: 5سم | E41: ابيض IT-IMG-50 كروشيه 5سم | G41: 40251.73 | I41: =SUMIFS(MN!$G:$G,MN!$E:$E,A41,MN!B:B,"<>" & "") -> 0 | J41: =SUMIFS(MN!$I:$I,MN!$E:$E,A41,MN!$B:$B,"<>" & "") -> 0 | K41: =SUMIFS(MN!$J:$J,MN!$E:$E,A41,MN!$B:$B,"<>" & "") -> 0 | L41: =SUMIFS(MN!$G:$G,MN!$E:$E,A41,MN!$C:$C,"<>" & "") -> 0 | M41: =SUMIFS(MN!$I:$I,MN!$E:$E,A41,MN!$C:$C,"<>" & "") -> 0 | N41: =SUMIFS(MN!$J:$J,MN!$E:$E,A41,MN!$C:$C,"<>" & "") -> 0 | O41: =SUMIFS(MN!$G:$G,MN!$E:$E,A41,MN!$D:$D,"<>" & "") -> 0 | P41: =SUMIFS(MN!$I:$I,MN!$E:$E,A41,MN!$D:$D,"<>" & "") -> 0 | Q41: =SUMIFS(MN!$J:$J,MN!$E:$E,A41,MN!$D:$D,"<>" & "") -> 0 | R41: 0 | S41: 40251.73 | T41: 0 | AA41: 200 | AG41: =IFERROR(VLOOKUP(ROWS(AG2:AG41),AI2:AJ186,2,0),"") -> 200 | AI41: =IF(ISNUMBER(SEARCH(AL2,AJ41)),MAX(AI1:AI40)+1,0) -> 40 | AJ41: 200
A42: 41 | B42: ابيض JA-IMG-45 | C42: كروشيه | D42: 4سم | E42: ابيض JA-IMG-45 كروشيه 4سم | G42: 36034 | I42: =SUMIFS(MN!$G:$G,MN!$E:$E,A42,MN!B:B,"<>" & "") -> 0 | J42: =SUMIFS(MN!$I:$I,MN!$E:$E,A42,MN!$B:$B,"<>" & "") -> 0 | K42: =SUMIFS(MN!$J:$J,MN!$E:$E,A42,MN!$B:$B,"<>" & "") -> 0 | L42: =SUMIFS(MN!$G:$G,MN!$E:$E,A42,MN!$C:$C,"<>" & "") -> 0 | M42: =SUMIFS(MN!$I:$I,MN!$E:$E,A42,MN!$C:$C,"<>" & "") -> 0 | N42: =SUMIFS(MN!$J:$J,MN!$E:$E,A42,MN!$C:$C,"<>" & "") -> 0 | O42: =SUMIFS(MN!$G:$G,MN!$E:$E,A42,MN!$D:$D,"<>" & "") -> 0 | P42: =SUMIFS(MN!$I:$I,MN!$E:$E,A42,MN!$D:$D,"<>" & "") -> 0 | Q42: =SUMIFS(MN!$J:$J,MN!$E:$E,A42,MN!$D:$D,"<>" & "") -> 0 | R42: 0 | S42: 36034 | T42: 0 | AA42: 205 | AG42: =IFERROR(VLOOKUP(ROWS(AG2:AG42),AI2:AJ186,2,0),"") -> 205 | AI42: =IF(ISNUMBER(SEARCH(AL2,AJ42)),MAX(AI1:AI41)+1,0) -> 41 | AJ42: 205
A43: 42 | B43: ابيض SD-IMG-12 | C43: كروشيه | D43: 1.2سم | E43: ابيض SD-IMG-12 كروشيه 1.2سم | G43: 4418 | I43: =SUMIFS(MN!$G:$G,MN!$E:$E,A43,MN!B:B,"<>" & "") -> 0 | J43: =SUMIFS(MN!$I:$I,MN!$E:$E,A43,MN!$B:$B,"<>" & "") -> 0 | K43: =SUMIFS(MN!$J:$J,MN!$E:$E,A43,MN!$B:$B,"<>" & "") -> 0 | L43: =SUMIFS(MN!$G:$G,MN!$E:$E,A43,MN!$C:$C,"<>" & "") -> 0 | M43: =SUMIFS(MN!$I:$I,MN!$E:$E,A43,MN!$C:$C,"<>" & "") -> 0 | N43: =SUMIFS(MN!$J:$J,MN!$E:$E,A43,MN!$C:$C,"<>" & "") -> 0 | O43: =SUMIFS(MN!$G:$G,MN!$E:$E,A43,MN!$D:$D,"<>" & "") -> 0 | P43: =SUMIFS(MN!$I:$I,MN!$E:$E,A43,MN!$D:$D,"<>" & "") -> 0 | Q43: =SUMIFS(MN!$J:$J,MN!$E:$E,A43,MN!$D:$D,"<>" & "") -> 0 | R43: 0 | S43: 4418 | T43: 0 | AA43: 210 | AG43: =IFERROR(VLOOKUP(ROWS(AG2:AG43),AI2:AJ186,2,0),"") -> 210 | AI43: =IF(ISNUMBER(SEARCH(AL2,AJ43)),MAX(AI1:AI42)+1,0) -> 42 | AJ43: 210
A44: 43 | B44: ابيض SD-IMG-30 | C44: كروشيه | D44: 3سم | E44: ابيض SD-IMG-30 كروشيه 3سم | G44: 53341 | I44: =SUMIFS(MN!$G:$G,MN!$E:$E,A44,MN!B:B,"<>" & "") -> 0 | J44: =SUMIFS(MN!$I:$I,MN!$E:$E,A44,MN!$B:$B,"<>" & "") -> 0 | K44: =SUMIFS(MN!$J:$J,MN!$E:$E,A44,MN!$B:$B,"<>" & "") -> 0 | L44: =SUMIFS(MN!$G:$G,MN!$E:$E,A44,MN!$C:$C,"<>" & "") -> 0 | M44: =SUMIFS(MN!$I:$I,MN!$E:$E,A44,MN!$C:$C,"<>" & "") -> 0 | N44: =SUMIFS(MN!$J:$J,MN!$E:$E,A44,MN!$C:$C,"<>" & "") -> 0 | O44: =SUMIFS(MN!$G:$G,MN!$E:$E,A44,MN!$D:$D,"<>" & "") -> 0 | P44: =SUMIFS(MN!$I:$I,MN!$E:$E,A44,MN!$D:$D,"<>" & "") -> 0 | Q44: =SUMIFS(MN!$J:$J,MN!$E:$E,A44,MN!$D:$D,"<>" & "") -> 0 | R44: 0 | S44: 53341 | T44: 0 | AA44: 215 | AG44: =IFERROR(VLOOKUP(ROWS(AG2:AG44),AI2:AJ186,2,0),"") -> 215 | AI44: =IF(ISNUMBER(SEARCH(AL2,AJ44)),MAX(AI1:AI43)+1,0) -> 43 | AJ44: 215
A45: 44 | B45: ابيض TM-IMG-16 | C45: كروشيه | D45: 1.6سم | E45: ابيض TM-IMG-16 كروشيه 1.6سم | G45: 15803 | I45: =SUMIFS(MN!$G:$G,MN!$E:$E,A45,MN!B:B,"<>" & "") -> 0 | J45: =SUMIFS(MN!$I:$I,MN!$E:$E,A45,MN!$B:$B,"<>" & "") -> 0 | K45: =SUMIFS(MN!$J:$J,MN!$E:$E,A45,MN!$B:$B,"<>" & "") -> 0 | L45: =SUMIFS(MN!$G:$G,MN!$E:$E,A45,MN!$C:$C,"<>" & "") -> 0 | M45: =SUMIFS(MN!$I:$I,MN!$E:$E,A45,MN!$C:$C,"<>" & "") -> 0 | N45: =SUMIFS(MN!$J:$J,MN!$E:$E,A45,MN!$C:$C,"<>" & "") -> 0 | O45: =SUMIFS(MN!$G:$G,MN!$E:$E,A45,MN!$D:$D,"<>" & "") -> 0 | P45: =SUMIFS(MN!$I:$I,MN!$E:$E,A45,MN!$D:$D,"<>" & "") -> 0 | Q45: =SUMIFS(MN!$J:$J,MN!$E:$E,A45,MN!$D:$D,"<>" & "") -> 0 | R45: 0 | S45: 15803 | T45: 0 | AA45: 220 | AG45: =IFERROR(VLOOKUP(ROWS(AG2:AG45),AI2:AJ186,2,0),"") -> 220 | AI45: =IF(ISNUMBER(SEARCH(AL2,AJ45)),MAX(AI1:AI44)+1,0) -> 44 | AJ45: 220
A46: 45 | B46: ابيض TM-IMG-63 | C46: كروشيه | D46: 6.3سم | E46: ابيض TM-IMG-63 كروشيه 6.3سم | G46: 290 | I46: =SUMIFS(MN!$G:$G,MN!$E:$E,A46,MN!B:B,"<>" & "") -> 0 | J46: =SUMIFS(MN!$I:$I,MN!$E:$E,A46,MN!$B:$B,"<>" & "") -> 0 | K46: =SUMIFS(MN!$J:$J,MN!$E:$E,A46,MN!$B:$B,"<>" & "") -> 0 | L46: =SUMIFS(MN!$G:$G,MN!$E:$E,A46,MN!$C:$C,"<>" & "") -> 0 | M46: =SUMIFS(MN!$I:$I,MN!$E:$E,A46,MN!$C:$C,"<>" & "") -> 0 | N46: =SUMIFS(MN!$J:$J,MN!$E:$E,A46,MN!$C:$C,"<>" & "") -> 0 | O46: =SUMIFS(MN!$G:$G,MN!$E:$E,A46,MN!$D:$D,"<>" & "") -> 0 | P46: =SUMIFS(MN!$I:$I,MN!$E:$E,A46,MN!$D:$D,"<>" & "") -> 0 | Q46: =SUMIFS(MN!$J:$J,MN!$E:$E,A46,MN!$D:$D,"<>" & "") -> 0 | R46: 0 | S46: 290 | T46: 0 | AA46: 225 | AG46: =IFERROR(VLOOKUP(ROWS(AG2:AG46),AI2:AJ186,2,0),"") -> 225 | AI46: =IF(ISNUMBER(SEARCH(AL2,AJ46)),MAX(AI1:AI45)+1,0) -> 45 | AJ46: 225
A47: 46 | B47: ابيض TM-IMG-65 | C47: كروشيه | D47: 6.5سم | E47: ابيض TM-IMG-65 كروشيه 6.5سم | G47: 26618.5 | I47: =SUMIFS(MN!$G:$G,MN!$E:$E,A47,MN!B:B,"<>" & "") -> 0 | J47: =SUMIFS(MN!$I:$I,MN!$E:$E,A47,MN!$B:$B,"<>" & "") -> 0 | K47: =SUMIFS(MN!$J:$J,MN!$E:$E,A47,MN!$B:$B,"<>" & "") -> 0 | L47: =SUMIFS(MN!$G:$G,MN!$E:$E,A47,MN!$C:$C,"<>" & "") -> 0 | M47: =SUMIFS(MN!$I:$I,MN!$E:$E,A47,MN!$C:$C,"<>" & "") -> 0 | N47: =SUMIFS(MN!$J:$J,MN!$E:$E,A47,MN!$C:$C,"<>" & "") -> 0 | O47: =SUMIFS(MN!$G:$G,MN!$E:$E,A47,MN!$D:$D,"<>" & "") -> 0 | P47: =SUMIFS(MN!$I:$I,MN!$E:$E,A47,MN!$D:$D,"<>" & "") -> 0 | Q47: =SUMIFS(MN!$J:$J,MN!$E:$E,A47,MN!$D:$D,"<>" & "") -> 0 | R47: 0 | S47: 26618.5 | T47: 0 | AA47: 230 | AG47: =IFERROR(VLOOKUP(ROWS(AG2:AG47),AI2:AJ186,2,0),"") -> 230 | AI47: =IF(ISNUMBER(SEARCH(AL2,AJ47)),MAX(AI1:AI46)+1,0) -> 46 | AJ47: 230
A48: 47 | B48: ابيض TM-IMG-70 | C48: كروشيه | D48: 7سم | E48: ابيض TM-IMG-70 كروشيه 7سم | G48: 3353 | I48: =SUMIFS(MN!$G:$G,MN!$E:$E,A48,MN!B:B,"<>" & "") -> 0 | J48: =SUMIFS(MN!$I:$I,MN!$E:$E,A48,MN!$B:$B,"<>" & "") -> 0 | K48: =SUMIFS(MN!$J:$J,MN!$E:$E,A48,MN!$B:$B,"<>" & "") -> 0 | L48: =SUMIFS(MN!$G:$G,MN!$E:$E,A48,MN!$C:$C,"<>" & "") -> 0 | M48: =SUMIFS(MN!$I:$I,MN!$E:$E,A48,MN!$C:$C,"<>" & "") -> 0 | N48: =SUMIFS(MN!$J:$J,MN!$E:$E,A48,MN!$C:$C,"<>" & "") -> 0 | O48: =SUMIFS(MN!$G:$G,MN!$E:$E,A48,MN!$D:$D,"<>" & "") -> 0 | P48: =SUMIFS(MN!$I:$I,MN!$E:$E,A48,MN!$D:$D,"<>" & "") -> 0 | Q48: =SUMIFS(MN!$J:$J,MN!$E:$E,A48,MN!$D:$D,"<>" & "") -> 0 | R48: 0 | S48: 3353 | T48: 0 | AA48: 235 | AG48: =IFERROR(VLOOKUP(ROWS(AG2:AG48),AI2:AJ186,2,0),"") -> 235 | AI48: =IF(ISNUMBER(SEARCH(AL2,AJ48)),MAX(AI1:AI47)+1,0) -> 47 | AJ48: 235
A49: 48 | B49: ابيض TM-IMG-82 | C49: كروشيه | D49: 8.2سم | E49: ابيض TM-IMG-82 كروشيه 8.2سم | G49: 173 | I49: =SUMIFS(MN!$G:$G,MN!$E:$E,A49,MN!B:B,"<>" & "") -> 0 | J49: =SUMIFS(MN!$I:$I,MN!$E:$E,A49,MN!$B:$B,"<>" & "") -> 0 | K49: =SUMIFS(MN!$J:$J,MN!$E:$E,A49,MN!$B:$B,"<>" & "") -> 0 | L49: =SUMIFS(MN!$G:$G,MN!$E:$E,A49,MN!$C:$C,"<>" & "") -> 0 | M49: =SUMIFS(MN!$I:$I,MN!$E:$E,A49,MN!$C:$C,"<>" & "") -> 0 | N49: =SUMIFS(MN!$J:$J,MN!$E:$E,A49,MN!$C:$C,"<>" & "") -> 0 | O49: =SUMIFS(MN!$G:$G,MN!$E:$E,A49,MN!$D:$D,"<>" & "") -> 0 | P49: =SUMIFS(MN!$I:$I,MN!$E:$E,A49,MN!$D:$D,"<>" & "") -> 0 | Q49: =SUMIFS(MN!$J:$J,MN!$E:$E,A49,MN!$D:$D,"<>" & "") -> 0 | R49: 0 | S49: 173 | T49: 0 | AA49: 240 | AG49: =IFERROR(VLOOKUP(ROWS(AG2:AG49),AI2:AJ186,2,0),"") -> 240 | AI49: =IF(ISNUMBER(SEARCH(AL2,AJ49)),MAX(AI1:AI48)+1,0) -> 48 | AJ49: 240
A50: 49 | B50: ابيض فلاش | C50: كروشيه | D50: 2سم | E50: ابيض فلاش كروشيه 2سم | F50: 313.48 | G50: 22168 | I50: =SUMIFS(MN!$G:$G,MN!$E:$E,A50,MN!B:B,"<>" & "") -> 0 | J50: =SUMIFS(MN!$I:$I,MN!$E:$E,A50,MN!$B:$B,"<>" & "") -> 0 | K50: =SUMIFS(MN!$J:$J,MN!$E:$E,A50,MN!$B:$B,"<>" & "") -> 0 | L50: =SUMIFS(MN!$G:$G,MN!$E:$E,A50,MN!$C:$C,"<>" & "") -> 0 | M50: =SUMIFS(MN!$I:$I,MN!$E:$E,A50,MN!$C:$C,"<>" & "") -> 0 | N50: =SUMIFS(MN!$J:$J,MN!$E:$E,A50,MN!$C:$C,"<>" & "") -> 0 | O50: =SUMIFS(MN!$G:$G,MN!$E:$E,A50,MN!$D:$D,"<>" & "") -> 0 | P50: =SUMIFS(MN!$I:$I,MN!$E:$E,A50,MN!$D:$D,"<>" & "") -> 0 | Q50: =SUMIFS(MN!$J:$J,MN!$E:$E,A50,MN!$D:$D,"<>" & "") -> 0 | R50: 313.48 | S50: 22168 | T50: 0 | AA50: 245 | AG50: =IFERROR(VLOOKUP(ROWS(AG2:AG50),AI2:AJ186,2,0),"") -> 245 | AI50: =IF(ISNUMBER(SEARCH(AL2,AJ50)),MAX(AI1:AI49)+1,0) -> 49 | AJ50: 245
A51: 50 | B51: ابيض فلاش | C51: كروشيه | D51: 3.5سم | E51: ابيض فلاش كروشيه 3.5سم | F51: 341.14 | G51: 15310 | I51: =SUMIFS(MN!$G:$G,MN!$E:$E,A51,MN!B:B,"<>" & "") -> 0 | J51: =SUMIFS(MN!$I:$I,MN!$E:$E,A51,MN!$B:$B,"<>" & "") -> 0 | K51: =SUMIFS(MN!$J:$J,MN!$E:$E,A51,MN!$B:$B,"<>" & "") -> 0 | L51: =SUMIFS(MN!$G:$G,MN!$E:$E,A51,MN!$C:$C,"<>" & "") -> 0 | M51: =SUMIFS(MN!$I:$I,MN!$E:$E,A51,MN!$C:$C,"<>" & "") -> 0 | N51: =SUMIFS(MN!$J:$J,MN!$E:$E,A51,MN!$C:$C,"<>" & "") -> 0 | O51: =SUMIFS(MN!$G:$G,MN!$E:$E,A51,MN!$D:$D,"<>" & "") -> 0 | P51: =SUMIFS(MN!$I:$I,MN!$E:$E,A51,MN!$D:$D,"<>" & "") -> 0 | Q51: =SUMIFS(MN!$J:$J,MN!$E:$E,A51,MN!$D:$D,"<>" & "") -> 0 | R51: 341.14 | S51: 15310 | T51: 0 | AA51: 250 | AG51: =IFERROR(VLOOKUP(ROWS(AG2:AG51),AI2:AJ186,2,0),"") -> 250 | AI51: =IF(ISNUMBER(SEARCH(AL2,AJ51)),MAX(AI1:AI50)+1,0) -> 50 | AJ51: 250
A52: 51 | B52: ابيض فلاش | C52: كروشيه | D52: 4.5سم | E52: ابيض فلاش كروشيه 4.5سم | F52: 396.46 | G52: 14663 | I52: =SUMIFS(MN!$G:$G,MN!$E:$E,A52,MN!B:B,"<>" & "") -> 0 | J52: =SUMIFS(MN!$I:$I,MN!$E:$E,A52,MN!$B:$B,"<>" & "") -> 0 | K52: =SUMIFS(MN!$J:$J,MN!$E:$E,A52,MN!$B:$B,"<>" & "") -> 0 | L52: =SUMIFS(MN!$G:$G,MN!$E:$E,A52,MN!$C:$C,"<>" & "") -> 0 | M52: =SUMIFS(MN!$I:$I,MN!$E:$E,A52,MN!$C:$C,"<>" & "") -> 0 | N52: =SUMIFS(MN!$J:$J,MN!$E:$E,A52,MN!$C:$C,"<>" & "") -> 0 | O52: =SUMIFS(MN!$G:$G,MN!$E:$E,A52,MN!$D:$D,"<>" & "") -> 0 | P52: =SUMIFS(MN!$I:$I,MN!$E:$E,A52,MN!$D:$D,"<>" & "") -> 0 | Q52: =SUMIFS(MN!$J:$J,MN!$E:$E,A52,MN!$D:$D,"<>" & "") -> 0 | R52: 396.46 | S52: 14663 | T52: 0 | AA52: 255 | AG52: =IFERROR(VLOOKUP(ROWS(AG2:AG52),AI2:AJ186,2,0),"") -> 255 | AI52: =IF(ISNUMBER(SEARCH(AL2,AJ52)),MAX(AI1:AI51)+1,0) -> 51 | AJ52: 255
A53: 52 | B53: ابيض فلاش | C53: كروشيه | D53: 5سم | E53: ابيض فلاش كروشيه 5سم | F53: 1530.52 | G53: 47808 | I53: =SUMIFS(MN!$G:$G,MN!$E:$E,A53,MN!B:B,"<>" & "") -> 0 | J53: =SUMIFS(MN!$I:$I,MN!$E:$E,A53,MN!$B:$B,"<>" & "") -> 0 | K53: =SUMIFS(MN!$J:$J,MN!$E:$E,A53,MN!$B:$B,"<>" & "") -> 0 | L53: =SUMIFS(MN!$G:$G,MN!$E:$E,A53,MN!$C:$C,"<>" & "") -> 0 | M53: =SUMIFS(MN!$I:$I,MN!$E:$E,A53,MN!$C:$C,"<>" & "") -> 0 | N53: =SUMIFS(MN!$J:$J,MN!$E:$E,A53,MN!$C:$C,"<>" & "") -> 0 | O53: =SUMIFS(MN!$G:$G,MN!$E:$E,A53,MN!$D:$D,"<>" & "") -> 0 | P53: =SUMIFS(MN!$I:$I,MN!$E:$E,A53,MN!$D:$D,"<>" & "") -> 0 | Q53: =SUMIFS(MN!$J:$J,MN!$E:$E,A53,MN!$D:$D,"<>" & "") -> 0 | R53: 1530.52 | S53: 47808 | T53: 0 | AA53: 260 | AG53: =IFERROR(VLOOKUP(ROWS(AG2:AG53),AI2:AJ186,2,0),"") -> 260 | AI53: =IF(ISNUMBER(SEARCH(AL2,AJ53)),MAX(AI1:AI52)+1,0) -> 52 | AJ53: 260
A54: 53 | B54: ابيض كانون | C54: كروشيه | D54: 4.5سم | E54: ابيض كانون كروشيه 4.5سم | F54: 27.66 | G54: 921 | I54: =SUMIFS(MN!$G:$G,MN!$E:$E,A54,MN!B:B,"<>" & "") -> 0 | J54: =SUMIFS(MN!$I:$I,MN!$E:$E,A54,MN!$B:$B,"<>" & "") -> 0 | K54: =SUMIFS(MN!$J:$J,MN!$E:$E,A54,MN!$B:$B,"<>" & "") -> 0 | L54: =SUMIFS(MN!$G:$G,MN!$E:$E,A54,MN!$C:$C,"<>" & "") -> 0 | M54: =SUMIFS(MN!$I:$I,MN!$E:$E,A54,MN!$C:$C,"<>" & "") -> 0 | N54: =SUMIFS(MN!$J:$J,MN!$E:$E,A54,MN!$C:$C,"<>" & "") -> 0 | O54: =SUMIFS(MN!$G:$G,MN!$E:$E,A54,MN!$D:$D,"<>" & "") -> 0 | P54: =SUMIFS(MN!$I:$I,MN!$E:$E,A54,MN!$D:$D,"<>" & "") -> 0 | Q54: =SUMIFS(MN!$J:$J,MN!$E:$E,A54,MN!$D:$D,"<>" & "") -> 0 | R54: 27.66 | S54: 921 | T54: 0 | AA54: 265 | AG54: =IFERROR(VLOOKUP(ROWS(AG2:AG54),AI2:AJ186,2,0),"") -> 265 | AI54: =IF(ISNUMBER(SEARCH(AL2,AJ54)),MAX(AI1:AI53)+1,0) -> 53 | AJ54: 265
A55: 54 | B55: ابيض كانون | C55: كروشيه | D55: 5.5سم | E55: ابيض كانون كروشيه 5.5سم | F55: 129.08 | G55: 3627 | I55: =SUMIFS(MN!$G:$G,MN!$E:$E,A55,MN!B:B,"<>" & "") -> 0 | J55: =SUMIFS(MN!$I:$I,MN!$E:$E,A55,MN!$B:$B,"<>" & "") -> 0 | K55: =SUMIFS(MN!$J:$J,MN!$E:$E,A55,MN!$B:$B,"<>" & "") -> 0 | L55: =SUMIFS(MN!$G:$G,MN!$E:$E,A55,MN!$C:$C,"<>" & "") -> 0 | M55: =SUMIFS(MN!$I:$I,MN!$E:$E,A55,MN!$C:$C,"<>" & "") -> 0 | N55: =SUMIFS(MN!$J:$J,MN!$E:$E,A55,MN!$C:$C,"<>" & "") -> 0 | O55: =SUMIFS(MN!$G:$G,MN!$E:$E,A55,MN!$D:$D,"<>" & "") -> 0 | P55: =SUMIFS(MN!$I:$I,MN!$E:$E,A55,MN!$D:$D,"<>" & "") -> 0 | Q55: =SUMIFS(MN!$J:$J,MN!$E:$E,A55,MN!$D:$D,"<>" & "") -> 0 | R55: 129.08 | S55: 3627 | T55: 0 | AA55: 270 | AG55: =IFERROR(VLOOKUP(ROWS(AG2:AG55),AI2:AJ186,2,0),"") -> 270 | AI55: =IF(ISNUMBER(SEARCH(AL2,AJ55)),MAX(AI1:AI54)+1,0) -> 54 | AJ55: 270
A56: 55 | B56: ابيض510 | C56: كروشيه | D56: 3سم | E56: ابيض510 كروشيه 3سم | F56: 212.06 | G56: 13746 | I56: =SUMIFS(MN!$G:$G,MN!$E:$E,A56,MN!B:B,"<>" & "") -> 0 | J56: =SUMIFS(MN!$I:$I,MN!$E:$E,A56,MN!$B:$B,"<>" & "") -> 0 | K56: =SUMIFS(MN!$J:$J,MN!$E:$E,A56,MN!$B:$B,"<>" & "") -> 0 | L56: =SUMIFS(MN!$G:$G,MN!$E:$E,A56,MN!$C:$C,"<>" & "") -> 0 | M56: =SUMIFS(MN!$I:$I,MN!$E:$E,A56,MN!$C:$C,"<>" & "") -> 0 | N56: =SUMIFS(MN!$J:$J,MN!$E:$E,A56,MN!$C:$C,"<>" & "") -> 0 | O56: =SUMIFS(MN!$G:$G,MN!$E:$E,A56,MN!$D:$D,"<>" & "") -> 0 | P56: =SUMIFS(MN!$I:$I,MN!$E:$E,A56,MN!$D:$D,"<>" & "") -> 0 | Q56: =SUMIFS(MN!$J:$J,MN!$E:$E,A56,MN!$D:$D,"<>" & "") -> 0 | R56: 212.06 | S56: 13746 | T56: 0 | AA56: 275 | AG56: =IFERROR(VLOOKUP(ROWS(AG2:AG56),AI2:AJ186,2,0),"") -> 275 | AI56: =IF(ISNUMBER(SEARCH(AL2,AJ56)),MAX(AI1:AI55)+1,0) -> 55 | AJ56: 275
A57: 56 | B57: ابيض510 | C57: كروشيه | D57: 4سم | E57: ابيض510 كروشيه 4سم | F57: 27.66 | G57: 1147 | I57: =SUMIFS(MN!$G:$G,MN!$E:$E,A57,MN!B:B,"<>" & "") -> 0 | J57: =SUMIFS(MN!$I:$I,MN!$E:$E,A57,MN!$B:$B,"<>" & "") -> 0 | K57: =SUMIFS(MN!$J:$J,MN!$E:$E,A57,MN!$B:$B,"<>" & "") -> 0 | L57: =SUMIFS(MN!$G:$G,MN!$E:$E,A57,MN!$C:$C,"<>" & "") -> 0 | M57: =SUMIFS(MN!$I:$I,MN!$E:$E,A57,MN!$C:$C,"<>" & "") -> 0 | N57: =SUMIFS(MN!$J:$J,MN!$E:$E,A57,MN!$C:$C,"<>" & "") -> 0 | O57: =SUMIFS(MN!$G:$G,MN!$E:$E,A57,MN!$D:$D,"<>" & "") -> 0 | P57: =SUMIFS(MN!$I:$I,MN!$E:$E,A57,MN!$D:$D,"<>" & "") -> 0 | Q57: =SUMIFS(MN!$J:$J,MN!$E:$E,A57,MN!$D:$D,"<>" & "") -> 0 | R57: 27.66 | S57: 1147 | T57: 0 | AA57: 280 | AG57: =IFERROR(VLOOKUP(ROWS(AG2:AG57),AI2:AJ186,2,0),"") -> 280 | AI57: =IF(ISNUMBER(SEARCH(AL2,AJ57)),MAX(AI1:AI56)+1,0) -> 56 | AJ57: 280
A58: 57 | B58: احمر | C58: كورد | D58: كبسله بلاستك | E58: احمر كورد كبسله بلاستك | I58: =SUMIFS(MN!$G:$G,MN!$E:$E,A58,MN!B:B,"<>" & "") -> 0 | J58: =SUMIFS(MN!$I:$I,MN!$E:$E,A58,MN!$B:$B,"<>" & "") -> 0 | K58: =SUMIFS(MN!$J:$J,MN!$E:$E,A58,MN!$B:$B,"<>" & "") -> 0 | L58: =SUMIFS(MN!$G:$G,MN!$E:$E,A58,MN!$C:$C,"<>" & "") -> 0 | M58: =SUMIFS(MN!$I:$I,MN!$E:$E,A58,MN!$C:$C,"<>" & "") -> 0 | N58: =SUMIFS(MN!$J:$J,MN!$E:$E,A58,MN!$C:$C,"<>" & "") -> 0 | O58: =SUMIFS(MN!$G:$G,MN!$E:$E,A58,MN!$D:$D,"<>" & "") -> 0 | P58: =SUMIFS(MN!$I:$I,MN!$E:$E,A58,MN!$D:$D,"<>" & "") -> 0 | Q58: =SUMIFS(MN!$J:$J,MN!$E:$E,A58,MN!$D:$D,"<>" & "") -> 0 | R58: 0 | S58: 0 | T58: 0 | AA58: 285 | AG58: =IFERROR(VLOOKUP(ROWS(AG2:AG58),AI2:AJ186,2,0),"") -> 285 | AI58: =IF(ISNUMBER(SEARCH(AL2,AJ58)),MAX(AI1:AI57)+1,0) -> 57 | AJ58: 285
A59: 58 | B59: احمر | C59: كورد | D59: مبطط | E59: احمر كورد مبطط | I59: =SUMIFS(MN!$G:$G,MN!$E:$E,A59,MN!B:B,"<>" & "") -> 0 | J59: =SUMIFS(MN!$I:$I,MN!$E:$E,A59,MN!$B:$B,"<>" & "") -> 0 | K59: =SUMIFS(MN!$J:$J,MN!$E:$E,A59,MN!$B:$B,"<>" & "") -> 0 | L59: =SUMIFS(MN!$G:$G,MN!$E:$E,A59,MN!$C:$C,"<>" & "") -> 0 | M59: =SUMIFS(MN!$I:$I,MN!$E:$E,A59,MN!$C:$C,"<>" & "") -> 0 | N59: =SUMIFS(MN!$J:$J,MN!$E:$E,A59,MN!$C:$C,"<>" & "") -> 0 | O59: =SUMIFS(MN!$G:$G,MN!$E:$E,A59,MN!$D:$D,"<>" & "") -> 0 | P59: =SUMIFS(MN!$I:$I,MN!$E:$E,A59,MN!$D:$D,"<>" & "") -> 0 | Q59: =SUMIFS(MN!$J:$J,MN!$E:$E,A59,MN!$D:$D,"<>" & "") -> 0 | R59: 0 | S59: 0 | T59: 0 | AA59: 290 | AG59: =IFERROR(VLOOKUP(ROWS(AG2:AG59),AI2:AJ186,2,0),"") -> 290 | AI59: =IF(ISNUMBER(SEARCH(AL2,AJ59)),MAX(AI1:AI58)+1,0) -> 58 | AJ59: 290
A60: 59 | B60: اخضر | C60: كورد | D60: مبطط | E60: اخضر كورد مبطط | I60: =SUMIFS(MN!$G:$G,MN!$E:$E,A60,MN!B:B,"<>" & "") -> 0 | J60: =SUMIFS(MN!$I:$I,MN!$E:$E,A60,MN!$B:$B,"<>" & "") -> 0 | K60: =SUMIFS(MN!$J:$J,MN!$E:$E,A60,MN!$B:$B,"<>" & "") -> 0 | L60: =SUMIFS(MN!$G:$G,MN!$E:$E,A60,MN!$C:$C,"<>" & "") -> 0 | M60: =SUMIFS(MN!$I:$I,MN!$E:$E,A60,MN!$C:$C,"<>" & "") -> 0 | N60: =SUMIFS(MN!$J:$J,MN!$E:$E,A60,MN!$C:$C,"<>" & "") -> 0 | O60: =SUMIFS(MN!$G:$G,MN!$E:$E,A60,MN!$D:$D,"<>" & "") -> 0 | P60: =SUMIFS(MN!$I:$I,MN!$E:$E,A60,MN!$D:$D,"<>" & "") -> 0 | Q60: =SUMIFS(MN!$J:$J,MN!$E:$E,A60,MN!$D:$D,"<>" & "") -> 0 | R60: 0 | S60: 0 | T60: 0 | AA60: 295 | AG60: =IFERROR(VLOOKUP(ROWS(AG2:AG60),AI2:AJ186,2,0),"") -> 295 | AI60: =IF(ISNUMBER(SEARCH(AL2,AJ60)),MAX(AI1:AI59)+1,0) -> 59 | AJ60: 295
A61: 60 | B61: اخضر X زيتي | C61: بايبينج | D61: 1سم | E61: اخضر X زيتي بايبينج 1سم | I61: =SUMIFS(MN!$G:$G,MN!$E:$E,A61,MN!B:B,"<>" & "") -> 0 | J61: =SUMIFS(MN!$I:$I,MN!$E:$E,A61,MN!$B:$B,"<>" & "") -> 0 | K61: =SUMIFS(MN!$J:$J,MN!$E:$E,A61,MN!$B:$B,"<>" & "") -> 0 | L61: =SUMIFS(MN!$G:$G,MN!$E:$E,A61,MN!$C:$C,"<>" & "") -> 0 | M61: =SUMIFS(MN!$I:$I,MN!$E:$E,A61,MN!$C:$C,"<>" & "") -> 0 | N61: =SUMIFS(MN!$J:$J,MN!$E:$E,A61,MN!$C:$C,"<>" & "") -> 0 | O61: =SUMIFS(MN!$G:$G,MN!$E:$E,A61,MN!$D:$D,"<>" & "") -> 0 | P61: =SUMIFS(MN!$I:$I,MN!$E:$E,A61,MN!$D:$D,"<>" & "") -> 0 | Q61: =SUMIFS(MN!$J:$J,MN!$E:$E,A61,MN!$D:$D,"<>" & "") -> 0 | R61: 0 | S61: 0 | T61: 0 | AA61: 300 | AG61: =IFERROR(VLOOKUP(ROWS(AG2:AG61),AI2:AJ186,2,0),"") -> 300 | AI61: =IF(ISNUMBER(SEARCH(AL2,AJ61)),MAX(AI1:AI60)+1,0) -> 60 | AJ61: 300
A62: 61 | B62: اسود | C62: كروشيه | D62: 1.2سم | E62: اسود كروشيه 1.2سم | F62: 9.22 | G62: 1042 | I62: =SUMIFS(MN!$G:$G,MN!$E:$E,A62,MN!B:B,"<>" & "") -> 0 | J62: =SUMIFS(MN!$I:$I,MN!$E:$E,A62,MN!$B:$B,"<>" & "") -> 0 | K62: =SUMIFS(MN!$J:$J,MN!$E:$E,A62,MN!$B:$B,"<>" & "") -> 0 | L62: =SUMIFS(MN!$G:$G,MN!$E:$E,A62,MN!$C:$C,"<>" & "") -> 0 | M62: =SUMIFS(MN!$I:$I,MN!$E:$E,A62,MN!$C:$C,"<>" & "") -> 0 | N62: =SUMIFS(MN!$J:$J,MN!$E:$E,A62,MN!$C:$C,"<>" & "") -> 0 | O62: =SUMIFS(MN!$G:$G,MN!$E:$E,A62,MN!$D:$D,"<>" & "") -> 0 | P62: =SUMIFS(MN!$I:$I,MN!$E:$E,A62,MN!$D:$D,"<>" & "") -> 0 | Q62: =SUMIFS(MN!$J:$J,MN!$E:$E,A62,MN!$D:$D,"<>" & "") -> 0 | R62: 9.22 | S62: 1042 | T62: 0 | AA62: 305 | AG62: =IFERROR(VLOOKUP(ROWS(AG2:AG62),AI2:AJ186,2,0),"") -> 305 | AI62: =IF(ISNUMBER(SEARCH(AL2,AJ62)),MAX(AI1:AI61)+1,0) -> 61 | AJ62: 305
A63: 62 | B63: اسود | C63: كروشيه | D63: 1.4سم | E63: اسود كروشيه 1.4سم | I63: =SUMIFS(MN!$G:$G,MN!$E:$E,A63,MN!B:B,"<>" & "") -> 0 | J63: =SUMIFS(MN!$I:$I,MN!$E:$E,A63,MN!$B:$B,"<>" & "") -> 0 | K63: =SUMIFS(MN!$J:$J,MN!$E:$E,A63,MN!$B:$B,"<>" & "") -> 0 | L63: =SUMIFS(MN!$G:$G,MN!$E:$E,A63,MN!$C:$C,"<>" & "") -> 0 | M63: =SUMIFS(MN!$I:$I,MN!$E:$E,A63,MN!$C:$C,"<>" & "") -> 0 | N63: =SUMIFS(MN!$J:$J,MN!$E:$E,A63,MN!$C:$C,"<>" & "") -> 0 | O63: =SUMIFS(MN!$G:$G,MN!$E:$E,A63,MN!$D:$D,"<>" & "") -> 0 | P63: =SUMIFS(MN!$I:$I,MN!$E:$E,A63,MN!$D:$D,"<>" & "") -> 0 | Q63: =SUMIFS(MN!$J:$J,MN!$E:$E,A63,MN!$D:$D,"<>" & "") -> 0 | R63: 0 | S63: 0 | T63: 0 | AA63: 310 | AG63: =IFERROR(VLOOKUP(ROWS(AG2:AG63),AI2:AJ186,2,0),"") -> 310 | AI63: =IF(ISNUMBER(SEARCH(AL2,AJ63)),MAX(AI1:AI62)+1,0) -> 62 | AJ63: 310
A64: 63 | B64: اسود | C64: كروشيه | D64: 1.5سم | E64: اسود كروشيه 1.5سم | F64: 61.12 | G64: 6944 | I64: =SUMIFS(MN!$G:$G,MN!$E:$E,A64,MN!B:B,"<>" & "") -> 0 | J64: =SUMIFS(MN!$I:$I,MN!$E:$E,A64,MN!$B:$B,"<>" & "") -> 0 | K64: =SUMIFS(MN!$J:$J,MN!$E:$E,A64,MN!$B:$B,"<>" & "") -> 0 | L64: =SUMIFS(MN!$G:$G,MN!$E:$E,A64,MN!$C:$C,"<>" & "") -> 0 | M64: =SUMIFS(MN!$I:$I,MN!$E:$E,A64,MN!$C:$C,"<>" & "") -> 0 | N64: =SUMIFS(MN!$J:$J,MN!$E:$E,A64,MN!$C:$C,"<>" & "") -> 0 | O64: =SUMIFS(MN!$G:$G,MN!$E:$E,A64,MN!$D:$D,"<>" & "") -> 0 | P64: =SUMIFS(MN!$I:$I,MN!$E:$E,A64,MN!$D:$D,"<>" & "") -> 0 | Q64: =SUMIFS(MN!$J:$J,MN!$E:$E,A64,MN!$D:$D,"<>" & "") -> 0 | R64: 61.12 | S64: 6944 | T64: 0 | AA64: 315 | AG64: =IFERROR(VLOOKUP(ROWS(AG2:AG64),AI2:AJ186,2,0),"") -> 315 | AI64: =IF(ISNUMBER(SEARCH(AL2,AJ64)),MAX(AI1:AI63)+1,0) -> 63 | AJ64: 315
A65: 64 | B65: اسود | C65: كروشيه | D65: 1.7سم | E65: اسود كروشيه 1.7سم | F65: 15.28 | G65: 1297 | I65: =SUMIFS(MN!$G:$G,MN!$E:$E,A65,MN!B:B,"<>" & "") -> 0 | J65: =SUMIFS(MN!$I:$I,MN!$E:$E,A65,MN!$B:$B,"<>" & "") -> 0 | K65: =SUMIFS(MN!$J:$J,MN!$E:$E,A65,MN!$B:$B,"<>" & "") -> 0 | L65: =SUMIFS(MN!$G:$G,MN!$E:$E,A65,MN!$C:$C,"<>" & "") -> 0 | M65: =SUMIFS(MN!$I:$I,MN!$E:$E,A65,MN!$C:$C,"<>" & "") -> 0 | N65: =SUMIFS(MN!$J:$J,MN!$E:$E,A65,MN!$C:$C,"<>" & "") -> 0 | O65: =SUMIFS(MN!$G:$G,MN!$E:$E,A65,MN!$D:$D,"<>" & "") -> 0 | P65: =SUMIFS(MN!$I:$I,MN!$E:$E,A65,MN!$D:$D,"<>" & "") -> 0 | Q65: =SUMIFS(MN!$J:$J,MN!$E:$E,A65,MN!$D:$D,"<>" & "") -> 0 | R65: 15.28 | S65: 1297 | T65: 0 | AA65: 320 | AG65: =IFERROR(VLOOKUP(ROWS(AG2:AG65),AI2:AJ186,2,0),"") -> 320 | AI65: =IF(ISNUMBER(SEARCH(AL2,AJ65)),MAX(AI1:AI64)+1,0) -> 64 | AJ65: 320
A66: 65 | B66: اسود | C66: كروشيه | D66: 1سم | E66: =B66&" "&C66&" "&D66 -> اسود كروشيه 1سم | F66: 15.28 | G66: 2546 | I66: =SUMIFS(MN!$G:$G,MN!$E:$E,A66,MN!B:B,"<>" & "") -> 0 | J66: =SUMIFS(MN!$I:$I,MN!$E:$E,A66,MN!$B:$B,"<>" & "") -> 0 | K66: =SUMIFS(MN!$J:$J,MN!$E:$E,A66,MN!$B:$B,"<>" & "") -> 0 | L66: =SUMIFS(MN!$G:$G,MN!$E:$E,A66,MN!$C:$C,"<>" & "") -> 0 | M66: =SUMIFS(MN!$I:$I,MN!$E:$E,A66,MN!$C:$C,"<>" & "") -> 0 | N66: =SUMIFS(MN!$J:$J,MN!$E:$E,A66,MN!$C:$C,"<>" & "") -> 0 | O66: =SUMIFS(MN!$G:$G,MN!$E:$E,A66,MN!$D:$D,"<>" & "") -> 0 | P66: =SUMIFS(MN!$I:$I,MN!$E:$E,A66,MN!$D:$D,"<>" & "") -> 0 | Q66: =SUMIFS(MN!$J:$J,MN!$E:$E,A66,MN!$D:$D,"<>" & "") -> 0 | R66: =F66+I66+O66-L66 -> 15.28 | S66: 2546 | T66: 0 | AA66: 325 | AG66: =IFERROR(VLOOKUP(ROWS(AG2:AG66),AI2:AJ186,2,0),"") -> 325 | AI66: =IF(ISNUMBER(SEARCH(AL2,AJ66)),MAX(AI1:AI65)+1,0) -> 65 | AJ66: 325
A67: 66 | B67: اسود | C67: كروشيه | D67: 2.2سم | E67: اسود كروشيه 2.2سم | I67: =SUMIFS(MN!$G:$G,MN!$E:$E,A67,MN!B:B,"<>" & "") -> 0 | J67: =SUMIFS(MN!$I:$I,MN!$E:$E,A67,MN!$B:$B,"<>" & "") -> 0 | K67: =SUMIFS(MN!$J:$J,MN!$E:$E,A67,MN!$B:$B,"<>" & "") -> 0 | L67: =SUMIFS(MN!$G:$G,MN!$E:$E,A67,MN!$C:$C,"<>" & "") -> 0 | M67: =SUMIFS(MN!$I:$I,MN!$E:$E,A67,MN!$C:$C,"<>" & "") -> 0 | N67: =SUMIFS(MN!$J:$J,MN!$E:$E,A67,MN!$C:$C,"<>" & "") -> 0 | O67: =SUMIFS(MN!$G:$G,MN!$E:$E,A67,MN!$D:$D,"<>" & "") -> 0 | P67: =SUMIFS(MN!$I:$I,MN!$E:$E,A67,MN!$D:$D,"<>" & "") -> 0 | Q67: =SUMIFS(MN!$J:$J,MN!$E:$E,A67,MN!$D:$D,"<>" & "") -> 0 | R67: 0 | S67: 0 | T67: 0 | AA67: 330 | AG67: =IFERROR(VLOOKUP(ROWS(AG2:AG67),AI2:AJ186,2,0),"") -> 330 | AI67: =IF(ISNUMBER(SEARCH(AL2,AJ67)),MAX(AI1:AI66)+1,0) -> 66 | AJ67: 330
A68: 67 | B68: اسود | C68: كروشيه | D68: 2.5سم | E68: اسود كروشيه 2.5سم | F68: 848.24 | G68: 60536 | I68: =SUMIFS(MN!$G:$G,MN!$E:$E,A68,MN!B:B,"<>" & "") -> 0 | J68: =SUMIFS(MN!$I:$I,MN!$E:$E,A68,MN!$B:$B,"<>" & "") -> 0 | K68: =SUMIFS(MN!$J:$J,MN!$E:$E,A68,MN!$B:$B,"<>" & "") -> 0 | L68: =SUMIFS(MN!$G:$G,MN!$E:$E,A68,MN!$C:$C,"<>" & "") -> 0 | M68: =SUMIFS(MN!$I:$I,MN!$E:$E,A68,MN!$C:$C,"<>" & "") -> 0 | N68: =SUMIFS(MN!$J:$J,MN!$E:$E,A68,MN!$C:$C,"<>" & "") -> 0 | O68: =SUMIFS(MN!$G:$G,MN!$E:$E,A68,MN!$D:$D,"<>" & "") -> 0 | P68: =SUMIFS(MN!$I:$I,MN!$E:$E,A68,MN!$D:$D,"<>" & "") -> 0 | Q68: =SUMIFS(MN!$J:$J,MN!$E:$E,A68,MN!$D:$D,"<>" & "") -> 0 | R68: 848.24 | S68: 60536 | T68: 0 | AA68: 335 | AG68: =IFERROR(VLOOKUP(ROWS(AG2:AG68),AI2:AJ186,2,0),"") -> 335 | AI68: =IF(ISNUMBER(SEARCH(AL2,AJ68)),MAX(AI1:AI67)+1,0) -> 67 | AJ68: 335
A69: 68 | B69: اسود | C69: كروشيه | D69: 2سم | E69: اسود كروشيه 2سم | F69: 366.72 | G69: 3052.8 | I69: =SUMIFS(MN!$G:$G,MN!$E:$E,A69,MN!B:B,"<>" & "") -> 0 | J69: =SUMIFS(MN!$I:$I,MN!$E:$E,A69,MN!$B:$B,"<>" & "") -> 0 | K69: =SUMIFS(MN!$J:$J,MN!$E:$E,A69,MN!$B:$B,"<>" & "") -> 0 | L69: =SUMIFS(MN!$G:$G,MN!$E:$E,A69,MN!$C:$C,"<>" & "") -> 0 | M69: =SUMIFS(MN!$I:$I,MN!$E:$E,A69,MN!$C:$C,"<>" & "") -> 0 | N69: =SUMIFS(MN!$J:$J,MN!$E:$E,A69,MN!$C:$C,"<>" & "") -> 0 | O69: =SUMIFS(MN!$G:$G,MN!$E:$E,A69,MN!$D:$D,"<>" & "") -> 0 | P69: =SUMIFS(MN!$I:$I,MN!$E:$E,A69,MN!$D:$D,"<>" & "") -> 0 | Q69: =SUMIFS(MN!$J:$J,MN!$E:$E,A69,MN!$D:$D,"<>" & "") -> 0 | R69: 366.72 | S69: 3052.8 | T69: 0 | AA69: 340 | AG69: =IFERROR(VLOOKUP(ROWS(AG2:AG69),AI2:AJ186,2,0),"") -> 340 | AI69: =IF(ISNUMBER(SEARCH(AL2,AJ69)),MAX(AI1:AI68)+1,0) -> 68 | AJ69: 340
A70: 69 | B70: اسود | C70: كروشيه | D70: 3.5سم | E70: اسود كروشيه 3.5سم | F70: 267.38 | G70: 14065 | I70: =SUMIFS(MN!$G:$G,MN!$E:$E,A70,MN!B:B,"<>" & "") -> 0 | J70: =SUMIFS(MN!$I:$I,MN!$E:$E,A70,MN!$B:$B,"<>" & "") -> 0 | K70: =SUMIFS(MN!$J:$J,MN!$E:$E,A70,MN!$B:$B,"<>" & "") -> 0 | L70: =SUMIFS(MN!$G:$G,MN!$E:$E,A70,MN!$C:$C,"<>" & "") -> 0 | M70: =SUMIFS(MN!$I:$I,MN!$E:$E,A70,MN!$C:$C,"<>" & "") -> 0 | N70: =SUMIFS(MN!$J:$J,MN!$E:$E,A70,MN!$C:$C,"<>" & "") -> 0 | O70: =SUMIFS(MN!$G:$G,MN!$E:$E,A70,MN!$D:$D,"<>" & "") -> 0 | P70: =SUMIFS(MN!$I:$I,MN!$E:$E,A70,MN!$D:$D,"<>" & "") -> 0 | Q70: =SUMIFS(MN!$J:$J,MN!$E:$E,A70,MN!$D:$D,"<>" & "") -> 0 | R70: 267.38 | S70: 14065 | T70: 0 | AA70: 345 | AG70: =IFERROR(VLOOKUP(ROWS(AG2:AG70),AI2:AJ186,2,0),"") -> 345 | AI70: =IF(ISNUMBER(SEARCH(AL2,AJ70)),MAX(AI1:AI69)+1,0) -> 69 | AJ70: 345
A71: 70 | B71: اسود | C71: كروشيه | D71: 3.8سم | E71: اسود كروشيه 3.8سم | F71: 18.44 | G71: 996 | I71: =SUMIFS(MN!$G:$G,MN!$E:$E,A71,MN!B:B,"<>" & "") -> 0 | J71: =SUMIFS(MN!$I:$I,MN!$E:$E,A71,MN!$B:$B,"<>" & "") -> 0 | K71: =SUMIFS(MN!$J:$J,MN!$E:$E,A71,MN!$B:$B,"<>" & "") -> 0 | L71: =SUMIFS(MN!$G:$G,MN!$E:$E,A71,MN!$C:$C,"<>" & "") -> 0 | M71: =SUMIFS(MN!$I:$I,MN!$E:$E,A71,MN!$C:$C,"<>" & "") -> 0 | N71: =SUMIFS(MN!$J:$J,MN!$E:$E,A71,MN!$C:$C,"<>" & "") -> 0 | O71: =SUMIFS(MN!$G:$G,MN!$E:$E,A71,MN!$D:$D,"<>" & "") -> 0 | P71: =SUMIFS(MN!$I:$I,MN!$E:$E,A71,MN!$D:$D,"<>" & "") -> 0 | Q71: =SUMIFS(MN!$J:$J,MN!$E:$E,A71,MN!$D:$D,"<>" & "") -> 0 | R71: 18.44 | S71: 996 | T71: 0 | AA71: 350 | AG71: =IFERROR(VLOOKUP(ROWS(AG2:AG71),AI2:AJ186,2,0),"") -> 350 | AI71: =IF(ISNUMBER(SEARCH(AL2,AJ71)),MAX(AI1:AI70)+1,0) -> 70 | AJ71: 350
A72: 71 | B72: اسود | C72: كروشيه | D72: 3سم | E72: اسود كروشيه 3سم | F72: 894.34 | G72: 54805 | I72: =SUMIFS(MN!$G:$G,MN!$E:$E,A72,MN!B:B,"<>" & "") -> 0 | J72: =SUMIFS(MN!$I:$I,MN!$E:$E,A72,MN!$B:$B,"<>" & "") -> 0 | K72: =SUMIFS(MN!$J:$J,MN!$E:$E,A72,MN!$B:$B,"<>" & "") -> 0 | L72: =SUMIFS(MN!$G:$G,MN!$E:$E,A72,MN!$C:$C,"<>" & "") -> 0 | M72: =SUMIFS(MN!$I:$I,MN!$E:$E,A72,MN!$C:$C,"<>" & "") -> 0 | N72: =SUMIFS(MN!$J:$J,MN!$E:$E,A72,MN!$C:$C,"<>" & "") -> 0 | O72: =SUMIFS(MN!$G:$G,MN!$E:$E,A72,MN!$D:$D,"<>" & "") -> 0 | P72: =SUMIFS(MN!$I:$I,MN!$E:$E,A72,MN!$D:$D,"<>" & "") -> 0 | Q72: =SUMIFS(MN!$J:$J,MN!$E:$E,A72,MN!$D:$D,"<>" & "") -> 0 | R72: 894.34 | S72: 54805 | T72: 0 | AA72: 355 | AG72: =IFERROR(VLOOKUP(ROWS(AG2:AG72),AI2:AJ186,2,0),"") -> 355 | AI72: =IF(ISNUMBER(SEARCH(AL2,AJ72)),MAX(AI1:AI71)+1,0) -> 71 | AJ72: 355
A73: 72 | B73: اسود | C73: كروشيه | D73: 4.5سم | E73: اسود كروشيه 4.5سم | F73: 46.1 | G73: 1825 | I73: =SUMIFS(MN!$G:$G,MN!$E:$E,A73,MN!B:B,"<>" & "") -> 0 | J73: =SUMIFS(MN!$I:$I,MN!$E:$E,A73,MN!$B:$B,"<>" & "") -> 0 | K73: =SUMIFS(MN!$J:$J,MN!$E:$E,A73,MN!$B:$B,"<>" & "") -> 0 | L73: =SUMIFS(MN!$G:$G,MN!$E:$E,A73,MN!$C:$C,"<>" & "") -> 0 | M73: =SUMIFS(MN!$I:$I,MN!$E:$E,A73,MN!$C:$C,"<>" & "") -> 0 | N73: =SUMIFS(MN!$J:$J,MN!$E:$E,A73,MN!$C:$C,"<>" & "") -> 0 | O73: =SUMIFS(MN!$G:$G,MN!$E:$E,A73,MN!$D:$D,"<>" & "") -> 0 | P73: =SUMIFS(MN!$I:$I,MN!$E:$E,A73,MN!$D:$D,"<>" & "") -> 0 | Q73: =SUMIFS(MN!$J:$J,MN!$E:$E,A73,MN!$D:$D,"<>" & "") -> 0 | R73: 46.1 | S73: 1825 | T73: 0 | AA73: 360 | AG73: =IFERROR(VLOOKUP(ROWS(AG2:AG73),AI2:AJ186,2,0),"") -> 360 | AI73: =IF(ISNUMBER(SEARCH(AL2,AJ73)),MAX(AI1:AI72)+1,0) -> 72 | AJ73: 360
A74: 73 | B74: اسود | C74: كروشيه | D74: 4.8سم | E74: اسود كروشيه 4.8سم | F74: 36.88 | G74: 1600 | I74: =SUMIFS(MN!$G:$G,MN!$E:$E,A74,MN!B:B,"<>" & "") -> 0 | J74: =SUMIFS(MN!$I:$I,MN!$E:$E,A74,MN!$B:$B,"<>" & "") -> 0 | K74: =SUMIFS(MN!$J:$J,MN!$E:$E,A74,MN!$B:$B,"<>" & "") -> 0 | L74: =SUMIFS(MN!$G:$G,MN!$E:$E,A74,MN!$C:$C,"<>" & "") -> 0 | M74: =SUMIFS(MN!$I:$I,MN!$E:$E,A74,MN!$C:$C,"<>" & "") -> 0 | N74: =SUMIFS(MN!$J:$J,MN!$E:$E,A74,MN!$C:$C,"<>" & "") -> 0 | O74: =SUMIFS(MN!$G:$G,MN!$E:$E,A74,MN!$D:$D,"<>" & "") -> 0 | P74: =SUMIFS(MN!$I:$I,MN!$E:$E,A74,MN!$D:$D,"<>" & "") -> 0 | Q74: =SUMIFS(MN!$J:$J,MN!$E:$E,A74,MN!$D:$D,"<>" & "") -> 0 | R74: 36.88 | S74: 1600 | T74: 0 | AA74: 365 | AG74: =IFERROR(VLOOKUP(ROWS(AG2:AG74),AI2:AJ186,2,0),"") -> 365 | AI74: =IF(ISNUMBER(SEARCH(AL2,AJ74)),MAX(AI1:AI73)+1,0) -> 73 | AJ74: 365
A75: 74 | B75: اسود | C75: كروشيه | D75: 4سم | E75: اسود كروشيه 4سم | F75: 359.58 | G75: 17004 | I75: =SUMIFS(MN!$G:$G,MN!$E:$E,A75,MN!B:B,"<>" & "") -> 0 | J75: =SUMIFS(MN!$I:$I,MN!$E:$E,A75,MN!$B:$B,"<>" & "") -> 0 | K75: =SUMIFS(MN!$J:$J,MN!$E:$E,A75,MN!$B:$B,"<>" & "") -> 0 | L75: =SUMIFS(MN!$G:$G,MN!$E:$E,A75,MN!$C:$C,"<>" & "") -> 0 | M75: =SUMIFS(MN!$I:$I,MN!$E:$E,A75,MN!$C:$C,"<>" & "") -> 0 | N75: =SUMIFS(MN!$J:$J,MN!$E:$E,A75,MN!$C:$C,"<>" & "") -> 0 | O75: =SUMIFS(MN!$G:$G,MN!$E:$E,A75,MN!$D:$D,"<>" & "") -> 0 | P75: =SUMIFS(MN!$I:$I,MN!$E:$E,A75,MN!$D:$D,"<>" & "") -> 0 | Q75: =SUMIFS(MN!$J:$J,MN!$E:$E,A75,MN!$D:$D,"<>" & "") -> 0 | R75: 359.58 | S75: 17004 | T75: 0 | AA75: 370 | AG75: =IFERROR(VLOOKUP(ROWS(AG2:AG75),AI2:AJ186,2,0),"") -> 370 | AI75: =IF(ISNUMBER(SEARCH(AL2,AJ75)),MAX(AI1:AI74)+1,0) -> 74 | AJ75: 370
A76: 75 | B76: اسود | C76: كروشيه | D76: 5.8سم | E76: اسود كروشيه 5.8سم | I76: =SUMIFS(MN!$G:$G,MN!$E:$E,A76,MN!B:B,"<>" & "") -> 0 | J76: =SUMIFS(MN!$I:$I,MN!$E:$E,A76,MN!$B:$B,"<>" & "") -> 0 | K76: =SUMIFS(MN!$J:$J,MN!$E:$E,A76,MN!$B:$B,"<>" & "") -> 0 | L76: =SUMIFS(MN!$G:$G,MN!$E:$E,A76,MN!$C:$C,"<>" & "") -> 0 | M76: =SUMIFS(MN!$I:$I,MN!$E:$E,A76,MN!$C:$C,"<>" & "") -> 0 | N76: =SUMIFS(MN!$J:$J,MN!$E:$E,A76,MN!$C:$C,"<>" & "") -> 0 | O76: =SUMIFS(MN!$G:$G,MN!$E:$E,A76,MN!$D:$D,"<>" & "") -> 0 | P76: =SUMIFS(MN!$I:$I,MN!$E:$E,A76,MN!$D:$D,"<>" & "") -> 0 | Q76: =SUMIFS(MN!$J:$J,MN!$E:$E,A76,MN!$D:$D,"<>" & "") -> 0 | R76: 0 | S76: 0 | T76: 0 | AA76: 375 | AG76: =IFERROR(VLOOKUP(ROWS(AG2:AG76),AI2:AJ186,2,0),"") -> 375 | AI76: =IF(ISNUMBER(SEARCH(AL2,AJ76)),MAX(AI1:AI75)+1,0) -> 75 | AJ76: 375
A77: 76 | B77: اسود | C77: كروشيه | D77: 8مليمتر | E77: اسود كروشيه 8مليمتر | F77: 11.68 | G77: 2336 | I77: =SUMIFS(MN!$G:$G,MN!$E:$E,A77,MN!B:B,"<>" & "") -> 0 | J77: =SUMIFS(MN!$I:$I,MN!$E:$E,A77,MN!$B:$B,"<>" & "") -> 0 | K77: =SUMIFS(MN!$J:$J,MN!$E:$E,A77,MN!$B:$B,"<>" & "") -> 0 | L77: =SUMIFS(MN!$G:$G,MN!$E:$E,A77,MN!$C:$C,"<>" & "") -> 0 | M77: =SUMIFS(MN!$I:$I,MN!$E:$E,A77,MN!$C:$C,"<>" & "") -> 0 | N77: =SUMIFS(MN!$J:$J,MN!$E:$E,A77,MN!$C:$C,"<>" & "") -> 0 | O77: =SUMIFS(MN!$G:$G,MN!$E:$E,A77,MN!$D:$D,"<>" & "") -> 0 | P77: =SUMIFS(MN!$I:$I,MN!$E:$E,A77,MN!$D:$D,"<>" & "") -> 0 | Q77: =SUMIFS(MN!$J:$J,MN!$E:$E,A77,MN!$D:$D,"<>" & "") -> 0 | R77: 11.68 | S77: 2336 | T77: 0 | AA77: 380 | AG77: =IFERROR(VLOOKUP(ROWS(AG2:AG77),AI2:AJ186,2,0),"") -> 380 | AI77: =IF(ISNUMBER(SEARCH(AL2,AJ77)),MAX(AI1:AI76)+1,0) -> 76 | AJ77: 380
A78: 77 | B78: اسود | C78: كورد | D78: 1سم | E78: اسود كورد 1سم | I78: =SUMIFS(MN!$G:$G,MN!$E:$E,A78,MN!B:B,"<>" & "") -> 0 | J78: =SUMIFS(MN!$I:$I,MN!$E:$E,A78,MN!$B:$B,"<>" & "") -> 0 | K78: =SUMIFS(MN!$J:$J,MN!$E:$E,A78,MN!$B:$B,"<>" & "") -> 0 | L78: =SUMIFS(MN!$G:$G,MN!$E:$E,A78,MN!$C:$C,"<>" & "") -> 0 | M78: =SUMIFS(MN!$I:$I,MN!$E:$E,A78,MN!$C:$C,"<>" & "") -> 0 | N78: =SUMIFS(MN!$J:$J,MN!$E:$E,A78,MN!$C:$C,"<>" & "") -> 0 | O78: =SUMIFS(MN!$G:$G,MN!$E:$E,A78,MN!$D:$D,"<>" & "") -> 0 | P78: =SUMIFS(MN!$I:$I,MN!$E:$E,A78,MN!$D:$D,"<>" & "") -> 0 | Q78: =SUMIFS(MN!$J:$J,MN!$E:$E,A78,MN!$D:$D,"<>" & "") -> 0 | R78: 0 | S78: 0 | T78: 0 | AA78: 385 | AG78: =IFERROR(VLOOKUP(ROWS(AG2:AG78),AI2:AJ186,2,0),"") -> 385 | AI78: =IF(ISNUMBER(SEARCH(AL2,AJ78)),MAX(AI1:AI77)+1,0) -> 77 | AJ78: 385
A79: 78 | B79: اسود | C79: كورد | D79: مبروم | E79: اسود كورد مبروم | I79: =SUMIFS(MN!$G:$G,MN!$E:$E,A79,MN!B:B,"<>" & "") -> 0 | J79: =SUMIFS(MN!$I:$I,MN!$E:$E,A79,MN!$B:$B,"<>" & "") -> 0 | K79: =SUMIFS(MN!$J:$J,MN!$E:$E,A79,MN!$B:$B,"<>" & "") -> 0 | L79: =SUMIFS(MN!$G:$G,MN!$E:$E,A79,MN!$C:$C,"<>" & "") -> 0 | M79: =SUMIFS(MN!$I:$I,MN!$E:$E,A79,MN!$C:$C,"<>" & "") -> 0 | N79: =SUMIFS(MN!$J:$J,MN!$E:$E,A79,MN!$C:$C,"<>" & "") -> 0 | O79: =SUMIFS(MN!$G:$G,MN!$E:$E,A79,MN!$D:$D,"<>" & "") -> 0 | P79: =SUMIFS(MN!$I:$I,MN!$E:$E,A79,MN!$D:$D,"<>" & "") -> 0 | Q79: =SUMIFS(MN!$J:$J,MN!$E:$E,A79,MN!$D:$D,"<>" & "") -> 0 | R79: 0 | S79: 0 | T79: 0 | AA79: 390 | AG79: =IFERROR(VLOOKUP(ROWS(AG2:AG79),AI2:AJ186,2,0),"") -> 390 | AI79: =IF(ISNUMBER(SEARCH(AL2,AJ79)),MAX(AI1:AI78)+1,0) -> 78 | AJ79: 390
A80: 79 | B80: اسود | C80: كورد | D80: مبطط | E80: اسود كورد مبطط | I80: =SUMIFS(MN!$G:$G,MN!$E:$E,A80,MN!B:B,"<>" & "") -> 0 | J80: =SUMIFS(MN!$I:$I,MN!$E:$E,A80,MN!$B:$B,"<>" & "") -> 0 | K80: =SUMIFS(MN!$J:$J,MN!$E:$E,A80,MN!$B:$B,"<>" & "") -> 0 | L80: =SUMIFS(MN!$G:$G,MN!$E:$E,A80,MN!$C:$C,"<>" & "") -> 0 | M80: =SUMIFS(MN!$I:$I,MN!$E:$E,A80,MN!$C:$C,"<>" & "") -> 0 | N80: =SUMIFS(MN!$J:$J,MN!$E:$E,A80,MN!$C:$C,"<>" & "") -> 0 | O80: =SUMIFS(MN!$G:$G,MN!$E:$E,A80,MN!$D:$D,"<>" & "") -> 0 | P80: =SUMIFS(MN!$I:$I,MN!$E:$E,A80,MN!$D:$D,"<>" & "") -> 0 | Q80: =SUMIFS(MN!$J:$J,MN!$E:$E,A80,MN!$D:$D,"<>" & "") -> 0 | R80: 0 | S80: 0 | T80: 0 | AA80: 395 | AG80: =IFERROR(VLOOKUP(ROWS(AG2:AG80),AI2:AJ186,2,0),"") -> 395 | AI80: =IF(ISNUMBER(SEARCH(AL2,AJ80)),MAX(AI1:AI79)+1,0) -> 79 | AJ80: 395
A81: 80 | B81: اسود | C81: ووفين ساندوتش | D81: 1.5سم | E81: اسود ووفين ساندوتش 1.5سم | I81: =SUMIFS(MN!$G:$G,MN!$E:$E,A81,MN!B:B,"<>" & "") -> 0 | J81: =SUMIFS(MN!$I:$I,MN!$E:$E,A81,MN!$B:$B,"<>" & "") -> 0 | K81: =SUMIFS(MN!$J:$J,MN!$E:$E,A81,MN!$B:$B,"<>" & "") -> 0 | L81: =SUMIFS(MN!$G:$G,MN!$E:$E,A81,MN!$C:$C,"<>" & "") -> 0 | M81: =SUMIFS(MN!$I:$I,MN!$E:$E,A81,MN!$C:$C,"<>" & "") -> 0 | N81: =SUMIFS(MN!$J:$J,MN!$E:$E,A81,MN!$C:$C,"<>" & "") -> 0 | O81: =SUMIFS(MN!$G:$G,MN!$E:$E,A81,MN!$D:$D,"<>" & "") -> 0 | P81: =SUMIFS(MN!$I:$I,MN!$E:$E,A81,MN!$D:$D,"<>" & "") -> 0 | Q81: =SUMIFS(MN!$J:$J,MN!$E:$E,A81,MN!$D:$D,"<>" & "") -> 0 | R81: 0 | S81: 0 | T81: 0 | AA81: 400 | AG81: =IFERROR(VLOOKUP(ROWS(AG2:AG81),AI2:AJ186,2,0),"") -> 400 | AI81: =IF(ISNUMBER(SEARCH(AL2,AJ81)),MAX(AI1:AI80)+1,0) -> 80 | AJ81: 400
A82: 81 | B82: اسود | C82: ووفين ساندوتش | D82: 1.7سم | E82: اسود ووفين ساندوتش 1.7سم | I82: =SUMIFS(MN!$G:$G,MN!$E:$E,A82,MN!B:B,"<>" & "") -> 0 | J82: =SUMIFS(MN!$I:$I,MN!$E:$E,A82,MN!$B:$B,"<>" & "") -> 0 | K82: =SUMIFS(MN!$J:$J,MN!$E:$E,A82,MN!$B:$B,"<>" & "") -> 0 | L82: =SUMIFS(MN!$G:$G,MN!$E:$E,A82,MN!$C:$C,"<>" & "") -> 0 | M82: =SUMIFS(MN!$I:$I,MN!$E:$E,A82,MN!$C:$C,"<>" & "") -> 0 | N82: =SUMIFS(MN!$J:$J,MN!$E:$E,A82,MN!$C:$C,"<>" & "") -> 0 | O82: =SUMIFS(MN!$G:$G,MN!$E:$E,A82,MN!$D:$D,"<>" & "") -> 0 | P82: =SUMIFS(MN!$I:$I,MN!$E:$E,A82,MN!$D:$D,"<>" & "") -> 0 | Q82: =SUMIFS(MN!$J:$J,MN!$E:$E,A82,MN!$D:$D,"<>" & "") -> 0 | R82: 0 | S82: 0 | T82: 0 | AA82: 405 | AG82: =IFERROR(VLOOKUP(ROWS(AG2:AG82),AI2:AJ186,2,0),"") -> 405 | AI82: =IF(ISNUMBER(SEARCH(AL2,AJ82)),MAX(AI1:AI81)+1,0) -> 81 | AJ82: 405
A83: 82 | B83: اسود | C83: ووفين ساندوتش | D83: 1.8سم | E83: اسود ووفين ساندوتش 1.8سم | I83: =SUMIFS(MN!$G:$G,MN!$E:$E,A83,MN!B:B,"<>" & "") -> 0 | J83: =SUMIFS(MN!$I:$I,MN!$E:$E,A83,MN!$B:$B,"<>" & "") -> 0 | K83: =SUMIFS(MN!$J:$J,MN!$E:$E,A83,MN!$B:$B,"<>" & "") -> 0 | L83: =SUMIFS(MN!$G:$G,MN!$E:$E,A83,MN!$C:$C,"<>" & "") -> 0 | M83: =SUMIFS(MN!$I:$I,MN!$E:$E,A83,MN!$C:$C,"<>" & "") -> 0 | N83: =SUMIFS(MN!$J:$J,MN!$E:$E,A83,MN!$C:$C,"<>" & "") -> 0 | O83: =SUMIFS(MN!$G:$G,MN!$E:$E,A83,MN!$D:$D,"<>" & "") -> 0 | P83: =SUMIFS(MN!$I:$I,MN!$E:$E,A83,MN!$D:$D,"<>" & "") -> 0 | Q83: =SUMIFS(MN!$J:$J,MN!$E:$E,A83,MN!$D:$D,"<>" & "") -> 0 | R83: 0 | S83: 0 | T83: 0 | AA83: 410 | AG83: =IFERROR(VLOOKUP(ROWS(AG2:AG83),AI2:AJ186,2,0),"") -> 410 | AI83: =IF(ISNUMBER(SEARCH(AL2,AJ83)),MAX(AI1:AI82)+1,0) -> 82 | AJ83: 410
A84: 83 | B84: اسود | C84: ووفين ساندوتش | D84: 2سم | E84: اسود ووفين ساندوتش 2سم | I84: =SUMIFS(MN!$G:$G,MN!$E:$E,A84,MN!B:B,"<>" & "") -> 0 | J84: =SUMIFS(MN!$I:$I,MN!$E:$E,A84,MN!$B:$B,"<>" & "") -> 0 | K84: =SUMIFS(MN!$J:$J,MN!$E:$E,A84,MN!$B:$B,"<>" & "") -> 0 | L84: =SUMIFS(MN!$G:$G,MN!$E:$E,A84,MN!$C:$C,"<>" & "") -> 0 | M84: =SUMIFS(MN!$I:$I,MN!$E:$E,A84,MN!$C:$C,"<>" & "") -> 0 | N84: =SUMIFS(MN!$J:$J,MN!$E:$E,A84,MN!$C:$C,"<>" & "") -> 0 | O84: =SUMIFS(MN!$G:$G,MN!$E:$E,A84,MN!$D:$D,"<>" & "") -> 0 | P84: =SUMIFS(MN!$I:$I,MN!$E:$E,A84,MN!$D:$D,"<>" & "") -> 0 | Q84: =SUMIFS(MN!$J:$J,MN!$E:$E,A84,MN!$D:$D,"<>" & "") -> 0 | R84: 0 | S84: 0 | T84: 0 | AA84: 415 | AG84: =IFERROR(VLOOKUP(ROWS(AG2:AG84),AI2:AJ186,2,0),"") -> 415 | AI84: =IF(ISNUMBER(SEARCH(AL2,AJ84)),MAX(AI1:AI83)+1,0) -> 83 | AJ84: 415
A85: 84 | B85: اسود | C85: كروشيه | D85: 5.8سم | E85: اسود كروشيه 5.8سم | F85: 101.42 | G85: 3751 | I85: =SUMIFS(MN!$G:$G,MN!$E:$E,A85,MN!B:B,"<>" & "") -> 0 | J85: =SUMIFS(MN!$I:$I,MN!$E:$E,A85,MN!$B:$B,"<>" & "") -> 0 | K85: =SUMIFS(MN!$J:$J,MN!$E:$E,A85,MN!$B:$B,"<>" & "") -> 0 | L85: =SUMIFS(MN!$G:$G,MN!$E:$E,A85,MN!$C:$C,"<>" & "") -> 0 | M85: =SUMIFS(MN!$I:$I,MN!$E:$E,A85,MN!$C:$C,"<>" & "") -> 0 | N85: =SUMIFS(MN!$J:$J,MN!$E:$E,A85,MN!$C:$C,"<>" & "") -> 0 | O85: =SUMIFS(MN!$G:$G,MN!$E:$E,A85,MN!$D:$D,"<>" & "") -> 0 | P85: =SUMIFS(MN!$I:$I,MN!$E:$E,A85,MN!$D:$D,"<>" & "") -> 0 | Q85: =SUMIFS(MN!$J:$J,MN!$E:$E,A85,MN!$D:$D,"<>" & "") -> 0 | R85: 101.42 | S85: 3751 | T85: 0 | AA85: 420 | AG85: =IFERROR(VLOOKUP(ROWS(AG2:AG85),AI2:AJ186,2,0),"") -> 420 | AI85: =IF(ISNUMBER(SEARCH(AL2,AJ85)),MAX(AI1:AI84)+1,0) -> 84 | AJ85: 420
A86: 85 | B86: اسود 510 | C86: كروشيه | D86: 2.3سم | E86: اسود 510 كروشيه 2.3سم | F86: 30.56 | G86: 2933 | I86: =SUMIFS(MN!$G:$G,MN!$E:$E,A86,MN!B:B,"<>" & "") -> 0 | J86: =SUMIFS(MN!$I:$I,MN!$E:$E,A86,MN!$B:$B,"<>" & "") -> 0 | K86: =SUMIFS(MN!$J:$J,MN!$E:$E,A86,MN!$B:$B,"<>" & "") -> 0 | L86: =SUMIFS(MN!$G:$G,MN!$E:$E,A86,MN!$C:$C,"<>" & "") -> 0 | M86: =SUMIFS(MN!$I:$I,MN!$E:$E,A86,MN!$C:$C,"<>" & "") -> 0 | N86: =SUMIFS(MN!$J:$J,MN!$E:$E,A86,MN!$C:$C,"<>" & "") -> 0 | O86: =SUMIFS(MN!$G:$G,MN!$E:$E,A86,MN!$D:$D,"<>" & "") -> 0 | P86: =SUMIFS(MN!$I:$I,MN!$E:$E,A86,MN!$D:$D,"<>" & "") -> 0 | Q86: =SUMIFS(MN!$J:$J,MN!$E:$E,A86,MN!$D:$D,"<>" & "") -> 0 | R86: 30.56 | S86: 2933 | T86: 0 | AA86: 425 | AG86: =IFERROR(VLOOKUP(ROWS(AG2:AG86),AI2:AJ186,2,0),"") -> 425 | AI86: =IF(ISNUMBER(SEARCH(AL2,AJ86)),MAX(AI1:AI85)+1,0) -> 85 | AJ86: 425
A87: 86 | B87: اسود 510 | C87: كروشيه | D87: 2.5سم | E87: اسود 510 كروشيه 2.5سم | F87: 9.22 | G87: 625 | I87: =SUMIFS(MN!$G:$G,MN!$E:$E,A87,MN!B:B,"<>" & "") -> 0 | J87: =SUMIFS(MN!$I:$I,MN!$E:$E,A87,MN!$B:$B,"<>" & "") -> 0 | K87: =SUMIFS(MN!$J:$J,MN!$E:$E,A87,MN!$B:$B,"<>" & "") -> 0 | L87: =SUMIFS(MN!$G:$G,MN!$E:$E,A87,MN!$C:$C,"<>" & "") -> 0 | M87: =SUMIFS(MN!$I:$I,MN!$E:$E,A87,MN!$C:$C,"<>" & "") -> 0 | N87: =SUMIFS(MN!$J:$J,MN!$E:$E,A87,MN!$C:$C,"<>" & "") -> 0 | O87: =SUMIFS(MN!$G:$G,MN!$E:$E,A87,MN!$D:$D,"<>" & "") -> 0 | P87: =SUMIFS(MN!$I:$I,MN!$E:$E,A87,MN!$D:$D,"<>" & "") -> 0 | Q87: =SUMIFS(MN!$J:$J,MN!$E:$E,A87,MN!$D:$D,"<>" & "") -> 0 | R87: 9.22 | S87: 625 | T87: 0 | AA87: 430 | AG87: =IFERROR(VLOOKUP(ROWS(AG2:AG87),AI2:AJ186,2,0),"") -> 430 | AI87: =IF(ISNUMBER(SEARCH(AL2,AJ87)),MAX(AI1:AI86)+1,0) -> 86 | AJ87: 430
A88: 87 | B88: اسود 510 | C88: كروشيه | D88: 3 سم | E88: اسود 510 كروشيه 3 سم | F88: 46.1 | G88: 3068 | I88: =SUMIFS(MN!$G:$G,MN!$E:$E,A88,MN!B:B,"<>" & "") -> 0 | J88: =SUMIFS(MN!$I:$I,MN!$E:$E,A88,MN!$B:$B,"<>" & "") -> 0 | K88: =SUMIFS(MN!$J:$J,MN!$E:$E,A88,MN!$B:$B,"<>" & "") -> 0 | L88: =SUMIFS(MN!$G:$G,MN!$E:$E,A88,MN!$C:$C,"<>" & "") -> 0 | M88: =SUMIFS(MN!$I:$I,MN!$E:$E,A88,MN!$C:$C,"<>" & "") -> 0 | N88: =SUMIFS(MN!$J:$J,MN!$E:$E,A88,MN!$C:$C,"<>" & "") -> 0 | O88: =SUMIFS(MN!$G:$G,MN!$E:$E,A88,MN!$D:$D,"<>" & "") -> 0 | P88: =SUMIFS(MN!$I:$I,MN!$E:$E,A88,MN!$D:$D,"<>" & "") -> 0 | Q88: =SUMIFS(MN!$J:$J,MN!$E:$E,A88,MN!$D:$D,"<>" & "") -> 0 | R88: 46.1 | S88: 3068 | T88: 0 | AA88: 435 | AG88: =IFERROR(VLOOKUP(ROWS(AG2:AG88),AI2:AJ186,2,0),"") -> 435 | AI88: =IF(ISNUMBER(SEARCH(AL2,AJ88)),MAX(AI1:AI87)+1,0) -> 87 | AJ88: 435
A89: 88 | B89: اسود 510 | C89: كروشيه | D89: 4.5سم | E89: اسود 510 كروشيه 4.5سم | F89: 46.1 | G89: 1970 | I89: =SUMIFS(MN!$G:$G,MN!$E:$E,A89,MN!B:B,"<>" & "") -> 0 | J89: =SUMIFS(MN!$I:$I,MN!$E:$E,A89,MN!$B:$B,"<>" & "") -> 0 | K89: =SUMIFS(MN!$J:$J,MN!$E:$E,A89,MN!$B:$B,"<>" & "") -> 0 | L89: =SUMIFS(MN!$G:$G,MN!$E:$E,A89,MN!$C:$C,"<>" & "") -> 0 | M89: =SUMIFS(MN!$I:$I,MN!$E:$E,A89,MN!$C:$C,"<>" & "") -> 0 | N89: =SUMIFS(MN!$J:$J,MN!$E:$E,A89,MN!$C:$C,"<>" & "") -> 0 | O89: =SUMIFS(MN!$G:$G,MN!$E:$E,A89,MN!$D:$D,"<>" & "") -> 0 | P89: =SUMIFS(MN!$I:$I,MN!$E:$E,A89,MN!$D:$D,"<>" & "") -> 0 | Q89: =SUMIFS(MN!$J:$J,MN!$E:$E,A89,MN!$D:$D,"<>" & "") -> 0 | R89: 46.1 | S89: 1970 | T89: 0 | AA89: 440 | AG89: =IFERROR(VLOOKUP(ROWS(AG2:AG89),AI2:AJ186,2,0),"") -> 440 | AI89: =IF(ISNUMBER(SEARCH(AL2,AJ89)),MAX(AI1:AI88)+1,0) -> 88 | AJ89: 440
A90: 89 | B90: اسود 510 | C90: كروشيه | D90: 4سم | E90: اسود 510 كروشيه 4سم | F90: 73.76 | G90: 3816 | I90: =SUMIFS(MN!$G:$G,MN!$E:$E,A90,MN!B:B,"<>" & "") -> 0 | J90: =SUMIFS(MN!$I:$I,MN!$E:$E,A90,MN!$B:$B,"<>" & "") -> 0 | K90: =SUMIFS(MN!$J:$J,MN!$E:$E,A90,MN!$B:$B,"<>" & "") -> 0 | L90: =SUMIFS(MN!$G:$G,MN!$E:$E,A90,MN!$C:$C,"<>" & "") -> 0 | M90: =SUMIFS(MN!$I:$I,MN!$E:$E,A90,MN!$C:$C,"<>" & "") -> 0 | N90: =SUMIFS(MN!$J:$J,MN!$E:$E,A90,MN!$C:$C,"<>" & "") -> 0 | O90: =SUMIFS(MN!$G:$G,MN!$E:$E,A90,MN!$D:$D,"<>" & "") -> 0 | P90: =SUMIFS(MN!$I:$I,MN!$E:$E,A90,MN!$D:$D,"<>" & "") -> 0 | Q90: =SUMIFS(MN!$J:$J,MN!$E:$E,A90,MN!$D:$D,"<>" & "") -> 0 | R90: 73.76 | S90: 3816 | T90: 0 | AA90: 445 | AG90: =IFERROR(VLOOKUP(ROWS(AG2:AG90),AI2:AJ186,2,0),"") -> 445 | AI90: =IF(ISNUMBER(SEARCH(AL2,AJ90)),MAX(AI1:AI89)+1,0) -> 89 | AJ90: 445
A91: 90 | B91: اسود 510 | C91: كروشيه | D91: 5.2سم | E91: اسود 510 كروشيه 5.2سم | F91: 9.22 | G91: 416 | I91: =SUMIFS(MN!$G:$G,MN!$E:$E,A91,MN!B:B,"<>" & "") -> 0 | J91: =SUMIFS(MN!$I:$I,MN!$E:$E,A91,MN!$B:$B,"<>" & "") -> 0 | K91: =SUMIFS(MN!$J:$J,MN!$E:$E,A91,MN!$B:$B,"<>" & "") -> 0 | L91: =SUMIFS(MN!$G:$G,MN!$E:$E,A91,MN!$C:$C,"<>" & "") -> 0 | M91: =SUMIFS(MN!$I:$I,MN!$E:$E,A91,MN!$C:$C,"<>" & "") -> 0 | N91: =SUMIFS(MN!$J:$J,MN!$E:$E,A91,MN!$C:$C,"<>" & "") -> 0 | O91: =SUMIFS(MN!$G:$G,MN!$E:$E,A91,MN!$D:$D,"<>" & "") -> 0 | P91: =SUMIFS(MN!$I:$I,MN!$E:$E,A91,MN!$D:$D,"<>" & "") -> 0 | Q91: =SUMIFS(MN!$J:$J,MN!$E:$E,A91,MN!$D:$D,"<>" & "") -> 0 | R91: 9.22 | S91: 416 | T91: 0 | AA91: 450 | AG91: =IFERROR(VLOOKUP(ROWS(AG2:AG91),AI2:AJ186,2,0),"") -> 450 | AI91: =IF(ISNUMBER(SEARCH(AL2,AJ91)),MAX(AI1:AI90)+1,0) -> 90 | AJ91: 450
A92: 91 | B92: اسود 510 | C92: كروشيه | D92: 5.5سم | E92: اسود 510 كروشيه 5.5سم | F92: 27.66 | G92: 1023 | I92: =SUMIFS(MN!$G:$G,MN!$E:$E,A92,MN!B:B,"<>" & "") -> 0 | J92: =SUMIFS(MN!$I:$I,MN!$E:$E,A92,MN!$B:$B,"<>" & "") -> 0 | K92: =SUMIFS(MN!$J:$J,MN!$E:$E,A92,MN!$B:$B,"<>" & "") -> 0 | L92: =SUMIFS(MN!$G:$G,MN!$E:$E,A92,MN!$C:$C,"<>" & "") -> 0 | M92: =SUMIFS(MN!$I:$I,MN!$E:$E,A92,MN!$C:$C,"<>" & "") -> 0 | N92: =SUMIFS(MN!$J:$J,MN!$E:$E,A92,MN!$C:$C,"<>" & "") -> 0 | O92: =SUMIFS(MN!$G:$G,MN!$E:$E,A92,MN!$D:$D,"<>" & "") -> 0 | P92: =SUMIFS(MN!$I:$I,MN!$E:$E,A92,MN!$D:$D,"<>" & "") -> 0 | Q92: =SUMIFS(MN!$J:$J,MN!$E:$E,A92,MN!$D:$D,"<>" & "") -> 0 | R92: 27.66 | S92: 1023 | T92: 0 | AA92: 455 | AG92: =IFERROR(VLOOKUP(ROWS(AG2:AG92),AI2:AJ186,2,0),"") -> 455 | AI92: =IF(ISNUMBER(SEARCH(AL2,AJ92)),MAX(AI1:AI91)+1,0) -> 91 | AJ92: 455
A93: 92 | B93: اسود 611.2 | C93: كروشيه | D93: 2سم | E93: اسود 611.2 كروشيه 2سم | I93: =SUMIFS(MN!$G:$G,MN!$E:$E,A93,MN!B:B,"<>" & "") -> 0 | J93: =SUMIFS(MN!$I:$I,MN!$E:$E,A93,MN!$B:$B,"<>" & "") -> 0 | K93: =SUMIFS(MN!$J:$J,MN!$E:$E,A93,MN!$B:$B,"<>" & "") -> 0 | L93: =SUMIFS(MN!$G:$G,MN!$E:$E,A93,MN!$C:$C,"<>" & "") -> 0 | M93: =SUMIFS(MN!$I:$I,MN!$E:$E,A93,MN!$C:$C,"<>" & "") -> 0 | N93: =SUMIFS(MN!$J:$J,MN!$E:$E,A93,MN!$C:$C,"<>" & "") -> 0 | O93: =SUMIFS(MN!$G:$G,MN!$E:$E,A93,MN!$D:$D,"<>" & "") -> 0 | P93: =SUMIFS(MN!$I:$I,MN!$E:$E,A93,MN!$D:$D,"<>" & "") -> 0 | Q93: =SUMIFS(MN!$J:$J,MN!$E:$E,A93,MN!$D:$D,"<>" & "") -> 0 | R93: 0 | S93: 0 | T93: 0 | AA93: 460 | AG93: =IFERROR(VLOOKUP(ROWS(AG2:AG93),AI2:AJ186,2,0),"") -> 460 | AI93: =IF(ISNUMBER(SEARCH(AL2,AJ93)),MAX(AI1:AI92)+1,0) -> 92 | AJ93: 460
A94: 93 | B94: اسود B-IMG-13 | C94: كروشيه | D94: 1.3سم | E94: اسود B-IMG-13 كروشيه 1.3سم | G94: 37950 | I94: =SUMIFS(MN!$G:$G,MN!$E:$E,A94,MN!B:B,"<>" & "") -> 0 | J94: =SUMIFS(MN!$I:$I,MN!$E:$E,A94,MN!$B:$B,"<>" & "") -> 0 | K94: =SUMIFS(MN!$J:$J,MN!$E:$E,A94,MN!$B:$B,"<>" & "") -> 0 | L94: =SUMIFS(MN!$G:$G,MN!$E:$E,A94,MN!$C:$C,"<>" & "") -> 0 | M94: =SUMIFS(MN!$I:$I,MN!$E:$E,A94,MN!$C:$C,"<>" & "") -> 0 | N94: =SUMIFS(MN!$J:$J,MN!$E:$E,A94,MN!$C:$C,"<>" & "") -> 0 | O94: =SUMIFS(MN!$G:$G,MN!$E:$E,A94,MN!$D:$D,"<>" & "") -> 0 | P94: =SUMIFS(MN!$I:$I,MN!$E:$E,A94,MN!$D:$D,"<>" & "") -> 0 | Q94: =SUMIFS(MN!$J:$J,MN!$E:$E,A94,MN!$D:$D,"<>" & "") -> 0 | R94: 0 | S94: 37950 | T94: 0 | AA94: 465 | AG94: =IFERROR(VLOOKUP(ROWS(AG2:AG94),AI2:AJ186,2,0),"") -> 465 | AI94: =IF(ISNUMBER(SEARCH(AL2,AJ94)),MAX(AI1:AI93)+1,0) -> 93 | AJ94: 465
A95: 94 | B95: اسود CO-IMG-55 | C95: كروشيه | D95: 5.5سم | E95: اسود CO-IMG-55 كروشيه 5.5سم | G95: 13113 | I95: =SUMIFS(MN!$G:$G,MN!$E:$E,A95,MN!B:B,"<>" & "") -> 0 | J95: =SUMIFS(MN!$I:$I,MN!$E:$E,A95,MN!$B:$B,"<>" & "") -> 0 | K95: =SUMIFS(MN!$J:$J,MN!$E:$E,A95,MN!$B:$B,"<>" & "") -> 0 | L95: =SUMIFS(MN!$G:$G,MN!$E:$E,A95,MN!$C:$C,"<>" & "") -> 0 | M95: =SUMIFS(MN!$I:$I,MN!$E:$E,A95,MN!$C:$C,"<>" & "") -> 0 | N95: =SUMIFS(MN!$J:$J,MN!$E:$E,A95,MN!$C:$C,"<>" & "") -> 0 | O95: =SUMIFS(MN!$G:$G,MN!$E:$E,A95,MN!$D:$D,"<>" & "") -> 0 | P95: =SUMIFS(MN!$I:$I,MN!$E:$E,A95,MN!$D:$D,"<>" & "") -> 0 | Q95: =SUMIFS(MN!$J:$J,MN!$E:$E,A95,MN!$D:$D,"<>" & "") -> 0 | R95: 0 | S95: 13113 | T95: 0 | AA95: 470 | AG95: =IFERROR(VLOOKUP(ROWS(AG2:AG95),AI2:AJ186,2,0),"") -> 470 | AI95: =IF(ISNUMBER(SEARCH(AL2,AJ95)),MAX(AI1:AI94)+1,0) -> 94 | AJ95: 470
A96: 95 | B96: اسود FB-IMG-50 | C96: كروشيه | D96: 5سم | E96: اسود FB-IMG-50 كروشيه 5سم | I96: =SUMIFS(MN!$G:$G,MN!$E:$E,A96,MN!B:B,"<>" & "") -> 0 | J96: =SUMIFS(MN!$I:$I,MN!$E:$E,A96,MN!$B:$B,"<>" & "") -> 0 | K96: =SUMIFS(MN!$J:$J,MN!$E:$E,A96,MN!$B:$B,"<>" & "") -> 0 | L96: =SUMIFS(MN!$G:$G,MN!$E:$E,A96,MN!$C:$C,"<>" & "") -> 0 | M96: =SUMIFS(MN!$I:$I,MN!$E:$E,A96,MN!$C:$C,"<>" & "") -> 0 | N96: =SUMIFS(MN!$J:$J,MN!$E:$E,A96,MN!$C:$C,"<>" & "") -> 0 | O96: =SUMIFS(MN!$G:$G,MN!$E:$E,A96,MN!$D:$D,"<>" & "") -> 0 | P96: =SUMIFS(MN!$I:$I,MN!$E:$E,A96,MN!$D:$D,"<>" & "") -> 0 | Q96: =SUMIFS(MN!$J:$J,MN!$E:$E,A96,MN!$D:$D,"<>" & "") -> 0 | R96: 0 | S96: 0 | T96: 0 | AA96: 475 | AG96: =IFERROR(VLOOKUP(ROWS(AG2:AG96),AI2:AJ186,2,0),"") -> 475 | AI96: =IF(ISNUMBER(SEARCH(AL2,AJ96)),MAX(AI1:AI95)+1,0) -> 95 | AJ96: 475
A97: 96 | B97: اسود FB-IMG-55 | C97: كروشيه | D97: 5.5سم | E97: اسود FB-IMG-55 كروشيه 5.5سم | G97: 28098.56 | I97: =SUMIFS(MN!$G:$G,MN!$E:$E,A97,MN!B:B,"<>" & "") -> 0 | J97: =SUMIFS(MN!$I:$I,MN!$E:$E,A97,MN!$B:$B,"<>" & "") -> 0 | K97: =SUMIFS(MN!$J:$J,MN!$E:$E,A97,MN!$B:$B,"<>" & "") -> 0 | L97: =SUMIFS(MN!$G:$G,MN!$E:$E,A97,MN!$C:$C,"<>" & "") -> 0 | M97: =SUMIFS(MN!$I:$I,MN!$E:$E,A97,MN!$C:$C,"<>" & "") -> 0 | N97: =SUMIFS(MN!$J:$J,MN!$E:$E,A97,MN!$C:$C,"<>" & "") -> 0 | O97: =SUMIFS(MN!$G:$G,MN!$E:$E,A97,MN!$D:$D,"<>" & "") -> 0 | P97: =SUMIFS(MN!$I:$I,MN!$E:$E,A97,MN!$D:$D,"<>" & "") -> 0 | Q97: =SUMIFS(MN!$J:$J,MN!$E:$E,A97,MN!$D:$D,"<>" & "") -> 0 | R97: 0 | S97: 28098.56 | T97: 0 | AA97: 480 | AG97: =IFERROR(VLOOKUP(ROWS(AG2:AG97),AI2:AJ186,2,0),"") -> 480 | AI97: =IF(ISNUMBER(SEARCH(AL2,AJ97)),MAX(AI1:AI96)+1,0) -> 96 | AJ97: 480
A98: 97 | B98: اسود JA-IMG-45 | C98: كروشيه | D98: 4.5سم | E98: اسود JA-IMG-45 كروشيه 4.5سم | G98: 24111 | I98: =SUMIFS(MN!$G:$G,MN!$E:$E,A98,MN!B:B,"<>" & "") -> 0 | J98: =SUMIFS(MN!$I:$I,MN!$E:$E,A98,MN!$B:$B,"<>" & "") -> 0 | K98: =SUMIFS(MN!$J:$J,MN!$E:$E,A98,MN!$B:$B,"<>" & "") -> 0 | L98: =SUMIFS(MN!$G:$G,MN!$E:$E,A98,MN!$C:$C,"<>" & "") -> 0 | M98: =SUMIFS(MN!$I:$I,MN!$E:$E,A98,MN!$C:$C,"<>" & "") -> 0 | N98: =SUMIFS(MN!$J:$J,MN!$E:$E,A98,MN!$C:$C,"<>" & "") -> 0 | O98: =SUMIFS(MN!$G:$G,MN!$E:$E,A98,MN!$D:$D,"<>" & "") -> 0 | P98: =SUMIFS(MN!$I:$I,MN!$E:$E,A98,MN!$D:$D,"<>" & "") -> 0 | Q98: =SUMIFS(MN!$J:$J,MN!$E:$E,A98,MN!$D:$D,"<>" & "") -> 0 | R98: 0 | S98: 24111 | T98: 0 | AA98: 485 | AG98: =IFERROR(VLOOKUP(ROWS(AG2:AG98),AI2:AJ186,2,0),"") -> 485 | AI98: =IF(ISNUMBER(SEARCH(AL2,AJ98)),MAX(AI1:AI97)+1,0) -> 97 | AJ98: 485
A99: 98 | B99: اسود JA-IMG-50 | C99: كروشيه | D99: 5سم | E99: اسود JA-IMG-50 كروشيه 5سم | G99: 4690 | I99: =SUMIFS(MN!$G:$G,MN!$E:$E,A99,MN!B:B,"<>" & "") -> 0 | J99: =SUMIFS(MN!$I:$I,MN!$E:$E,A99,MN!$B:$B,"<>" & "") -> 0 | K99: =SUMIFS(MN!$J:$J,MN!$E:$E,A99,MN!$B:$B,"<>" & "") -> 0 | L99: =SUMIFS(MN!$G:$G,MN!$E:$E,A99,MN!$C:$C,"<>" & "") -> 0 | M99: =SUMIFS(MN!$I:$I,MN!$E:$E,A99,MN!$C:$C,"<>" & "") -> 0 | N99: =SUMIFS(MN!$J:$J,MN!$E:$E,A99,MN!$C:$C,"<>" & "") -> 0 | O99: =SUMIFS(MN!$G:$G,MN!$E:$E,A99,MN!$D:$D,"<>" & "") -> 0 | P99: =SUMIFS(MN!$I:$I,MN!$E:$E,A99,MN!$D:$D,"<>" & "") -> 0 | Q99: =SUMIFS(MN!$J:$J,MN!$E:$E,A99,MN!$D:$D,"<>" & "") -> 0 | R99: 0 | S99: 4690 | T99: 0 | AA99: 490 | AG99: =IFERROR(VLOOKUP(ROWS(AG2:AG99),AI2:AJ186,2,0),"") -> 490 | AI99: =IF(ISNUMBER(SEARCH(AL2,AJ99)),MAX(AI1:AI98)+1,0) -> 98 | AJ99: 490
A100: 99 | B100: اسود SD-IMG-2.5 | C100: كروشيه | D100: 2.5سم | E100: اسود SD-IMG-2.5 كروشيه 2.5سم | G100: 7375.9 | I100: =SUMIFS(MN!$G:$G,MN!$E:$E,A100,MN!B:B,"<>" & "") -> 0 | J100: =SUMIFS(MN!$I:$I,MN!$E:$E,A100,MN!$B:$B,"<>" & "") -> 0 | K100: =SUMIFS(MN!$J:$J,MN!$E:$E,A100,MN!$B:$B,"<>" & "") -> 0 | L100: =SUMIFS(MN!$G:$G,MN!$E:$E,A100,MN!$C:$C,"<>" & "") -> 0 | M100: =SUMIFS(MN!$I:$I,MN!$E:$E,A100,MN!$C:$C,"<>" & "") -> 0 | N100: =SUMIFS(MN!$J:$J,MN!$E:$E,A100,MN!$C:$C,"<>" & "") -> 0 | O100: =SUMIFS(MN!$G:$G,MN!$E:$E,A100,MN!$D:$D,"<>" & "") -> 0 | P100: =SUMIFS(MN!$I:$I,MN!$E:$E,A100,MN!$D:$D,"<>" & "") -> 0 | Q100: =SUMIFS(MN!$J:$J,MN!$E:$E,A100,MN!$D:$D,"<>" & "") -> 0 | R100: 0 | S100: 7375.9 | T100: 0 | AA100: 495 | AG100: =IFERROR(VLOOKUP(ROWS(AG2:AG100),AI2:AJ186,2,0),"") -> 495 | AI100: =IF(ISNUMBER(SEARCH(AL2,AJ100)),MAX(AI1:AI99)+1,0) -> 99 | AJ100: 495
A101: 100 | B101: اسود SD-IMG-35 | C101: كروشيه | D101: 4سم | E101: اسود SD-IMG-35 كروشيه 4سم | G101: 4992 | I101: =SUMIFS(MN!$G:$G,MN!$E:$E,A101,MN!B:B,"<>" & "") -> 0 | J101: =SUMIFS(MN!$I:$I,MN!$E:$E,A101,MN!$B:$B,"<>" & "") -> 0 | K101: =SUMIFS(MN!$J:$J,MN!$E:$E,A101,MN!$B:$B,"<>" & "") -> 0 | L101: =SUMIFS(MN!$G:$G,MN!$E:$E,A101,MN!$C:$C,"<>" & "") -> 0 | M101: =SUMIFS(MN!$I:$I,MN!$E:$E,A101,MN!$C:$C,"<>" & "") -> 0 | N101: =SUMIFS(MN!$J:$J,MN!$E:$E,A101,MN!$C:$C,"<>" & "") -> 0 | O101: =SUMIFS(MN!$G:$G,MN!$E:$E,A101,MN!$D:$D,"<>" & "") -> 0 | P101: =SUMIFS(MN!$I:$I,MN!$E:$E,A101,MN!$D:$D,"<>" & "") -> 0 | Q101: =SUMIFS(MN!$J:$J,MN!$E:$E,A101,MN!$D:$D,"<>" & "") -> 0 | R101: 0 | S101: 4992 | T101: 0 | AA101: 500 | AG101: =IFERROR(VLOOKUP(ROWS(AG2:AG101),AI2:AJ186,2,0),"") -> 500 | AI101: =IF(ISNUMBER(SEARCH(AL2,AJ101)),MAX(AI1:AI100)+1,0) -> 100 | AJ101: 500
A102: 101 | B102: اسود X ابيض | C102: بايبينج | D102: 1سم | E102: اسود X ابيض بايبينج 1سم | I102: =SUMIFS(MN!$G:$G,MN!$E:$E,A102,MN!B:B,"<>" & "") -> 0 | J102: =SUMIFS(MN!$I:$I,MN!$E:$E,A102,MN!$B:$B,"<>" & "") -> 0 | K102: =SUMIFS(MN!$J:$J,MN!$E:$E,A102,MN!$B:$B,"<>" & "") -> 0 | L102: =SUMIFS(MN!$G:$G,MN!$E:$E,A102,MN!$C:$C,"<>" & "") -> 0 | M102: =SUMIFS(MN!$I:$I,MN!$E:$E,A102,MN!$C:$C,"<>" & "") -> 0 | N102: =SUMIFS(MN!$J:$J,MN!$E:$E,A102,MN!$C:$C,"<>" & "") -> 0 | O102: =SUMIFS(MN!$G:$G,MN!$E:$E,A102,MN!$D:$D,"<>" & "") -> 0 | P102: =SUMIFS(MN!$I:$I,MN!$E:$E,A102,MN!$D:$D,"<>" & "") -> 0 | Q102: =SUMIFS(MN!$J:$J,MN!$E:$E,A102,MN!$D:$D,"<>" & "") -> 0 | R102: 0 | S102: 0 | T102: 0 | AA102: 505 | AG102: =IFERROR(VLOOKUP(ROWS(AG2:AG102),AI2:AJ186,2,0),"") -> 505 | AI102: =IF(ISNUMBER(SEARCH(AL2,AJ102)),MAX(AI1:AI101)+1,0) -> 101 | AJ102: 505
A103: 102 | B103: اسود استريب | C103: كروشيه | D103: 3سم | E103: اسود استريب كروشيه 3سم | F103: 414.9 | G103: 22248 | I103: =SUMIFS(MN!$G:$G,MN!$E:$E,A103,MN!B:B,"<>" & "") -> 0 | J103: =SUMIFS(MN!$I:$I,MN!$E:$E,A103,MN!$B:$B,"<>" & "") -> 0 | K103: =SUMIFS(MN!$J:$J,MN!$E:$E,A103,MN!$B:$B,"<>" & "") -> 0 | L103: =SUMIFS(MN!$G:$G,MN!$E:$E,A103,MN!$C:$C,"<>" & "") -> 0 | M103: =SUMIFS(MN!$I:$I,MN!$E:$E,A103,MN!$C:$C,"<>" & "") -> 0 | N103: =SUMIFS(MN!$J:$J,MN!$E:$E,A103,MN!$C:$C,"<>" & "") -> 0 | O103: =SUMIFS(MN!$G:$G,MN!$E:$E,A103,MN!$D:$D,"<>" & "") -> 0 | P103: =SUMIFS(MN!$I:$I,MN!$E:$E,A103,MN!$D:$D,"<>" & "") -> 0 | Q103: =SUMIFS(MN!$J:$J,MN!$E:$E,A103,MN!$D:$D,"<>" & "") -> 0 | R103: 414.9 | S103: 22248 | T103: 0 | AA103: 510 | AG103: =IFERROR(VLOOKUP(ROWS(AG2:AG103),AI2:AJ186,2,0),"") -> 510 | AI103: =IF(ISNUMBER(SEARCH(AL2,AJ103)),MAX(AI1:AI102)+1,0) -> 102 | AJ103: 510
A104: 103 | B104: اسود فلاش | C104: كروشيه | D104: 3.5سم | E104: اسود فلاش كروشيه 3.5سم | F104: 267.38 | G104: 12151 | I104: =SUMIFS(MN!$G:$G,MN!$E:$E,A104,MN!B:B,"<>" & "") -> 0 | J104: =SUMIFS(MN!$I:$I,MN!$E:$E,A104,MN!$B:$B,"<>" & "") -> 0 | K104: =SUMIFS(MN!$J:$J,MN!$E:$E,A104,MN!$B:$B,"<>" & "") -> 0 | L104: =SUMIFS(MN!$G:$G,MN!$E:$E,A104,MN!$C:$C,"<>" & "") -> 0 | M104: =SUMIFS(MN!$I:$I,MN!$E:$E,A104,MN!$C:$C,"<>" & "") -> 0 | N104: =SUMIFS(MN!$J:$J,MN!$E:$E,A104,MN!$C:$C,"<>" & "") -> 0 | O104: =SUMIFS(MN!$G:$G,MN!$E:$E,A104,MN!$D:$D,"<>" & "") -> 0 | P104: =SUMIFS(MN!$I:$I,MN!$E:$E,A104,MN!$D:$D,"<>" & "") -> 0 | Q104: =SUMIFS(MN!$J:$J,MN!$E:$E,A104,MN!$D:$D,"<>" & "") -> 0 | R104: 267.38 | S104: 12151 | T104: 0 | AA104: 515 | AG104: =IFERROR(VLOOKUP(ROWS(AG2:AG104),AI2:AJ186,2,0),"") -> 515 | AI104: =IF(ISNUMBER(SEARCH(AL2,AJ104)),MAX(AI1:AI103)+1,0) -> 103 | AJ104: 515
A105: 104 | B105: اسود فلاش | C105: كروشيه | D105: 5.5سم | E105: اسود فلاش كروشيه 5.5سم | F105: 239.72 | G105: 7150 | I105: =SUMIFS(MN!$G:$G,MN!$E:$E,A105,MN!B:B,"<>" & "") -> 0 | J105: =SUMIFS(MN!$I:$I,MN!$E:$E,A105,MN!$B:$B,"<>" & "") -> 0 | K105: =SUMIFS(MN!$J:$J,MN!$E:$E,A105,MN!$B:$B,"<>" & "") -> 0 | L105: =SUMIFS(MN!$G:$G,MN!$E:$E,A105,MN!$C:$C,"<>" & "") -> 0 | M105: =SUMIFS(MN!$I:$I,MN!$E:$E,A105,MN!$C:$C,"<>" & "") -> 0 | N105: =SUMIFS(MN!$J:$J,MN!$E:$E,A105,MN!$C:$C,"<>" & "") -> 0 | O105: =SUMIFS(MN!$G:$G,MN!$E:$E,A105,MN!$D:$D,"<>" & "") -> 0 | P105: =SUMIFS(MN!$I:$I,MN!$E:$E,A105,MN!$D:$D,"<>" & "") -> 0 | Q105: =SUMIFS(MN!$J:$J,MN!$E:$E,A105,MN!$D:$D,"<>" & "") -> 0 | R105: 239.72 | S105: 7150 | T105: 0 | AA105: 520 | AG105: =IFERROR(VLOOKUP(ROWS(AG2:AG105),AI2:AJ186,2,0),"") -> 520 | AI105: =IF(ISNUMBER(SEARCH(AL2,AJ105)),MAX(AI1:AI104)+1,0) -> 104 | AJ105: 520
A106: 105 | B106: اسود فلاش | C106: كروشيه | D106: 5سم | E106: اسود فلاش كروشيه 5سم | F106: 101.42 | G106: 3267 | I106: =SUMIFS(MN!$G:$G,MN!$E:$E,A106,MN!B:B,"<>" & "") -> 0 | J106: =SUMIFS(MN!$I:$I,MN!$E:$E,A106,MN!$B:$B,"<>" & "") -> 0 | K106: =SUMIFS(MN!$J:$J,MN!$E:$E,A106,MN!$B:$B,"<>" & "") -> 0 | L106: =SUMIFS(MN!$G:$G,MN!$E:$E,A106,MN!$C:$C,"<>" & "") -> 0 | M106: =SUMIFS(MN!$I:$I,MN!$E:$E,A106,MN!$C:$C,"<>" & "") -> 0 | N106: =SUMIFS(MN!$J:$J,MN!$E:$E,A106,MN!$C:$C,"<>" & "") -> 0 | O106: =SUMIFS(MN!$G:$G,MN!$E:$E,A106,MN!$D:$D,"<>" & "") -> 0 | P106: =SUMIFS(MN!$I:$I,MN!$E:$E,A106,MN!$D:$D,"<>" & "") -> 0 | Q106: =SUMIFS(MN!$J:$J,MN!$E:$E,A106,MN!$D:$D,"<>" & "") -> 0 | R106: 101.42 | S106: 3267 | T106: 0 | AA106: 525 | AG106: =IFERROR(VLOOKUP(ROWS(AG2:AG106),AI2:AJ186,2,0),"") -> 525 | AI106: =IF(ISNUMBER(SEARCH(AL2,AJ106)),MAX(AI1:AI105)+1,0) -> 105 | AJ106: 525
A107: 106 | B107: اسود510 | C107: كروشيه | D107: 3.5سم | E107: اسود510 كروشيه 3.5سم | F107: 18.44 | G107: 1118 | I107: =SUMIFS(MN!$G:$G,MN!$E:$E,A107,MN!B:B,"<>" & "") -> 0 | J107: =SUMIFS(MN!$I:$I,MN!$E:$E,A107,MN!$B:$B,"<>" & "") -> 0 | K107: =SUMIFS(MN!$J:$J,MN!$E:$E,A107,MN!$B:$B,"<>" & "") -> 0 | L107: =SUMIFS(MN!$G:$G,MN!$E:$E,A107,MN!$C:$C,"<>" & "") -> 0 | M107: =SUMIFS(MN!$I:$I,MN!$E:$E,A107,MN!$C:$C,"<>" & "") -> 0 | N107: =SUMIFS(MN!$J:$J,MN!$E:$E,A107,MN!$C:$C,"<>" & "") -> 0 | O107: =SUMIFS(MN!$G:$G,MN!$E:$E,A107,MN!$D:$D,"<>" & "") -> 0 | P107: =SUMIFS(MN!$I:$I,MN!$E:$E,A107,MN!$D:$D,"<>" & "") -> 0 | Q107: =SUMIFS(MN!$J:$J,MN!$E:$E,A107,MN!$D:$D,"<>" & "") -> 0 | R107: 18.44 | S107: 1118 | T107: 0 | AA107: 530 | AG107: =IFERROR(VLOOKUP(ROWS(AG2:AG107),AI2:AJ186,2,0),"") -> 530 | AI107: =IF(ISNUMBER(SEARCH(AL2,AJ107)),MAX(AI1:AI106)+1,0) -> 106 | AJ107: 530
A108: 107 | B108: اسود510 | C108: كروشيه | D108: 5سم | E108: اسود510 كروشيه 5سم | I108: =SUMIFS(MN!$G:$G,MN!$E:$E,A108,MN!B:B,"<>" & "") -> 0 | J108: =SUMIFS(MN!$I:$I,MN!$E:$E,A108,MN!$B:$B,"<>" & "") -> 0 | K108: =SUMIFS(MN!$J:$J,MN!$E:$E,A108,MN!$B:$B,"<>" & "") -> 0 | L108: =SUMIFS(MN!$G:$G,MN!$E:$E,A108,MN!$C:$C,"<>" & "") -> 0 | M108: =SUMIFS(MN!$I:$I,MN!$E:$E,A108,MN!$C:$C,"<>" & "") -> 0 | N108: =SUMIFS(MN!$J:$J,MN!$E:$E,A108,MN!$C:$C,"<>" & "") -> 0 | O108: =SUMIFS(MN!$G:$G,MN!$E:$E,A108,MN!$D:$D,"<>" & "") -> 0 | P108: =SUMIFS(MN!$I:$I,MN!$E:$E,A108,MN!$D:$D,"<>" & "") -> 0 | Q108: =SUMIFS(MN!$J:$J,MN!$E:$E,A108,MN!$D:$D,"<>" & "") -> 0 | R108: 0 | S108: 0 | T108: 0 | AA108: 535 | AG108: =IFERROR(VLOOKUP(ROWS(AG2:AG108),AI2:AJ186,2,0),"") -> 535 | AI108: =IF(ISNUMBER(SEARCH(AL2,AJ108)),MAX(AI1:AI107)+1,0) -> 107 | AJ108: 535
A109: 108 | B109: اصفر X اخضر | C109: بايبينج | D109: 1سم | E109: اصفر X اخضر بايبينج 1سم | I109: =SUMIFS(MN!$G:$G,MN!$E:$E,A109,MN!B:B,"<>" & "") -> 0 | J109: =SUMIFS(MN!$I:$I,MN!$E:$E,A109,MN!$B:$B,"<>" & "") -> 0 | K109: =SUMIFS(MN!$J:$J,MN!$E:$E,A109,MN!$B:$B,"<>" & "") -> 0 | L109: =SUMIFS(MN!$G:$G,MN!$E:$E,A109,MN!$C:$C,"<>" & "") -> 0 | M109: =SUMIFS(MN!$I:$I,MN!$E:$E,A109,MN!$C:$C,"<>" & "") -> 0 | N109: =SUMIFS(MN!$J:$J,MN!$E:$E,A109,MN!$C:$C,"<>" & "") -> 0 | O109: =SUMIFS(MN!$G:$G,MN!$E:$E,A109,MN!$D:$D,"<>" & "") -> 0 | P109: =SUMIFS(MN!$I:$I,MN!$E:$E,A109,MN!$D:$D,"<>" & "") -> 0 | Q109: =SUMIFS(MN!$J:$J,MN!$E:$E,A109,MN!$D:$D,"<>" & "") -> 0 | R109: 0 | S109: 0 | T109: 0 | AA109: 540 | AG109: =IFERROR(VLOOKUP(ROWS(AG2:AG109),AI2:AJ186,2,0),"") -> 540 | AI109: =IF(ISNUMBER(SEARCH(AL2,AJ109)),MAX(AI1:AI108)+1,0) -> 108 | AJ109: 540
A110: 109 | B110: اصفر X زيتي | C110: بايبينج | D110: 1سم | E110: اصفر X زيتي بايبينج 1سم | I110: =SUMIFS(MN!$G:$G,MN!$E:$E,A110,MN!B:B,"<>" & "") -> 0 | J110: =SUMIFS(MN!$I:$I,MN!$E:$E,A110,MN!$B:$B,"<>" & "") -> 0 | K110: =SUMIFS(MN!$J:$J,MN!$E:$E,A110,MN!$B:$B,"<>" & "") -> 0 | L110: =SUMIFS(MN!$G:$G,MN!$E:$E,A110,MN!$C:$C,"<>" & "") -> 0 | M110: =SUMIFS(MN!$I:$I,MN!$E:$E,A110,MN!$C:$C,"<>" & "") -> 0 | N110: =SUMIFS(MN!$J:$J,MN!$E:$E,A110,MN!$C:$C,"<>" & "") -> 0 | O110: =SUMIFS(MN!$G:$G,MN!$E:$E,A110,MN!$D:$D,"<>" & "") -> 0 | P110: =SUMIFS(MN!$I:$I,MN!$E:$E,A110,MN!$D:$D,"<>" & "") -> 0 | Q110: =SUMIFS(MN!$J:$J,MN!$E:$E,A110,MN!$D:$D,"<>" & "") -> 0 | R110: 0 | S110: 0 | T110: 0 | AA110: 545 | AG110: =IFERROR(VLOOKUP(ROWS(AG2:AG110),AI2:AJ186,2,0),"") -> 545 | AI110: =IF(ISNUMBER(SEARCH(AL2,AJ110)),MAX(AI1:AI109)+1,0) -> 109 | AJ110: 545
A111: 110 | B111: الالوان | C111: كورد | D111: 1.2سم | E111: الالوان كورد 1.2سم | I111: =SUMIFS(MN!$G:$G,MN!$E:$E,A111,MN!B:B,"<>" & "") -> 0 | J111: =SUMIFS(MN!$I:$I,MN!$E:$E,A111,MN!$B:$B,"<>" & "") -> 0 | K111: =SUMIFS(MN!$J:$J,MN!$E:$E,A111,MN!$B:$B,"<>" & "") -> 0 | L111: =SUMIFS(MN!$G:$G,MN!$E:$E,A111,MN!$C:$C,"<>" & "") -> 0 | M111: =SUMIFS(MN!$I:$I,MN!$E:$E,A111,MN!$C:$C,"<>" & "") -> 0 | N111: =SUMIFS(MN!$J:$J,MN!$E:$E,A111,MN!$C:$C,"<>" & "") -> 0 | O111: =SUMIFS(MN!$G:$G,MN!$E:$E,A111,MN!$D:$D,"<>" & "") -> 0 | P111: =SUMIFS(MN!$I:$I,MN!$E:$E,A111,MN!$D:$D,"<>" & "") -> 0 | Q111: =SUMIFS(MN!$J:$J,MN!$E:$E,A111,MN!$D:$D,"<>" & "") -> 0 | R111: 0 | S111: 0 | T111: 0 | AA111: 550 | AG111: =IFERROR(VLOOKUP(ROWS(AG2:AG111),AI2:AJ186,2,0),"") -> 550 | AI111: =IF(ISNUMBER(SEARCH(AL2,AJ111)),MAX(AI1:AI110)+1,0) -> 110 | AJ111: 550
A112: 111 | B112: الوان | C112: فيستون | D112: 1سم | E112: الوان فيستون 1سم | I112: =SUMIFS(MN!$G:$G,MN!$E:$E,A112,MN!B:B,"<>" & "") -> 0 | J112: =SUMIFS(MN!$I:$I,MN!$E:$E,A112,MN!$B:$B,"<>" & "") -> 0 | K112: =SUMIFS(MN!$J:$J,MN!$E:$E,A112,MN!$B:$B,"<>" & "") -> 0 | L112: =SUMIFS(MN!$G:$G,MN!$E:$E,A112,MN!$C:$C,"<>" & "") -> 0 | M112: =SUMIFS(MN!$I:$I,MN!$E:$E,A112,MN!$C:$C,"<>" & "") -> 0 | N112: =SUMIFS(MN!$J:$J,MN!$E:$E,A112,MN!$C:$C,"<>" & "") -> 0 | O112: =SUMIFS(MN!$G:$G,MN!$E:$E,A112,MN!$D:$D,"<>" & "") -> 0 | P112: =SUMIFS(MN!$I:$I,MN!$E:$E,A112,MN!$D:$D,"<>" & "") -> 0 | Q112: =SUMIFS(MN!$J:$J,MN!$E:$E,A112,MN!$D:$D,"<>" & "") -> 0 | R112: 0 | S112: 0 | T112: 0 | AA112: 555 | AG112: =IFERROR(VLOOKUP(ROWS(AG2:AG112),AI2:AJ186,2,0),"") -> 555 | AI112: =IF(ISNUMBER(SEARCH(AL2,AJ112)),MAX(AI1:AI111)+1,0) -> 111 | AJ112: 555
A113: 112 | B113: اورنج | C113: كورد | D113: 1.2سم | E113: اورنج كورد 1.2سم | I113: =SUMIFS(MN!$G:$G,MN!$E:$E,A113,MN!B:B,"<>" & "") -> 0 | J113: =SUMIFS(MN!$I:$I,MN!$E:$E,A113,MN!$B:$B,"<>" & "") -> 0 | K113: =SUMIFS(MN!$J:$J,MN!$E:$E,A113,MN!$B:$B,"<>" & "") -> 0 | L113: =SUMIFS(MN!$G:$G,MN!$E:$E,A113,MN!$C:$C,"<>" & "") -> 0 | M113: =SUMIFS(MN!$I:$I,MN!$E:$E,A113,MN!$C:$C,"<>" & "") -> 0 | N113: =SUMIFS(MN!$J:$J,MN!$E:$E,A113,MN!$C:$C,"<>" & "") -> 0 | O113: =SUMIFS(MN!$G:$G,MN!$E:$E,A113,MN!$D:$D,"<>" & "") -> 0 | P113: =SUMIFS(MN!$I:$I,MN!$E:$E,A113,MN!$D:$D,"<>" & "") -> 0 | Q113: =SUMIFS(MN!$J:$J,MN!$E:$E,A113,MN!$D:$D,"<>" & "") -> 0 | R113: 0 | S113: 0 | T113: 0 | AA113: 560 | AG113: =IFERROR(VLOOKUP(ROWS(AG2:AG113),AI2:AJ186,2,0),"") -> 560 | AI113: =IF(ISNUMBER(SEARCH(AL2,AJ113)),MAX(AI1:AI112)+1,0) -> 112 | AJ113: 560
A114: 113 | B114: اورنح | C114: كورد | D114: مبطط | E114: اورنح كورد مبطط | I114: =SUMIFS(MN!$G:$G,MN!$E:$E,A114,MN!B:B,"<>" & "") -> 0 | J114: =SUMIFS(MN!$I:$I,MN!$E:$E,A114,MN!$B:$B,"<>" & "") -> 0 | K114: =SUMIFS(MN!$J:$J,MN!$E:$E,A114,MN!$B:$B,"<>" & "") -> 0 | L114: =SUMIFS(MN!$G:$G,MN!$E:$E,A114,MN!$C:$C,"<>" & "") -> 0 | M114: =SUMIFS(MN!$I:$I,MN!$E:$E,A114,MN!$C:$C,"<>" & "") -> 0 | N114: =SUMIFS(MN!$J:$J,MN!$E:$E,A114,MN!$C:$C,"<>" & "") -> 0 | O114: =SUMIFS(MN!$G:$G,MN!$E:$E,A114,MN!$D:$D,"<>" & "") -> 0 | P114: =SUMIFS(MN!$I:$I,MN!$E:$E,A114,MN!$D:$D,"<>" & "") -> 0 | Q114: =SUMIFS(MN!$J:$J,MN!$E:$E,A114,MN!$D:$D,"<>" & "") -> 0 | R114: 0 | S114: 0 | T114: 0 | AA114: 565 | AG114: =IFERROR(VLOOKUP(ROWS(AG2:AG114),AI2:AJ186,2,0),"") -> 565 | AI114: =IF(ISNUMBER(SEARCH(AL2,AJ114)),MAX(AI1:AI113)+1,0) -> 113 | AJ114: 565
A115: 114 | B115: بنك X اسود | C115: بايبينج | D115: 1سم | E115: بنك X اسود بايبينج 1سم | I115: =SUMIFS(MN!$G:$G,MN!$E:$E,A115,MN!B:B,"<>" & "") -> 0 | J115: =SUMIFS(MN!$I:$I,MN!$E:$E,A115,MN!$B:$B,"<>" & "") -> 0 | K115: =SUMIFS(MN!$J:$J,MN!$E:$E,A115,MN!$B:$B,"<>" & "") -> 0 | L115: =SUMIFS(MN!$G:$G,MN!$E:$E,A115,MN!$C:$C,"<>" & "") -> 0 | M115: =SUMIFS(MN!$I:$I,MN!$E:$E,A115,MN!$C:$C,"<>" & "") -> 0 | N115: =SUMIFS(MN!$J:$J,MN!$E:$E,A115,MN!$C:$C,"<>" & "") -> 0 | O115: =SUMIFS(MN!$G:$G,MN!$E:$E,A115,MN!$D:$D,"<>" & "") -> 0 | P115: =SUMIFS(MN!$I:$I,MN!$E:$E,A115,MN!$D:$D,"<>" & "") -> 0 | Q115: =SUMIFS(MN!$J:$J,MN!$E:$E,A115,MN!$D:$D,"<>" & "") -> 0 | R115: 0 | S115: 0 | T115: 0 | AA115: 570 | AG115: =IFERROR(VLOOKUP(ROWS(AG2:AG115),AI2:AJ186,2,0),"") -> 570 | AI115: =IF(ISNUMBER(SEARCH(AL2,AJ115)),MAX(AI1:AI114)+1,0) -> 114 | AJ115: 570
A116: 115 | B116: بنك X زيتي | C116: بايبينج | D116: 1سم | E116: بنك X زيتي بايبينج 1سم | I116: =SUMIFS(MN!$G:$G,MN!$E:$E,A116,MN!B:B,"<>" & "") -> 0 | J116: =SUMIFS(MN!$I:$I,MN!$E:$E,A116,MN!$B:$B,"<>" & "") -> 0 | K116: =SUMIFS(MN!$J:$J,MN!$E:$E,A116,MN!$B:$B,"<>" & "") -> 0 | L116: =SUMIFS(MN!$G:$G,MN!$E:$E,A116,MN!$C:$C,"<>" & "") -> 0 | M116: =SUMIFS(MN!$I:$I,MN!$E:$E,A116,MN!$C:$C,"<>" & "") -> 0 | N116: =SUMIFS(MN!$J:$J,MN!$E:$E,A116,MN!$C:$C,"<>" & "") -> 0 | O116: =SUMIFS(MN!$G:$G,MN!$E:$E,A116,MN!$D:$D,"<>" & "") -> 0 | P116: =SUMIFS(MN!$I:$I,MN!$E:$E,A116,MN!$D:$D,"<>" & "") -> 0 | Q116: =SUMIFS(MN!$J:$J,MN!$E:$E,A116,MN!$D:$D,"<>" & "") -> 0 | R116: 0 | S116: 0 | T116: 0 | AA116: 575 | AG116: =IFERROR(VLOOKUP(ROWS(AG2:AG116),AI2:AJ186,2,0),"") -> 575 | AI116: =IF(ISNUMBER(SEARCH(AL2,AJ116)),MAX(AI1:AI115)+1,0) -> 115 | AJ116: 575
A117: 116 | B117: بينك | C117: ووفين فستون | D117: 1.3سم | E117: بينك ووفين فستون 1.3سم | I117: =SUMIFS(MN!$G:$G,MN!$E:$E,A117,MN!B:B,"<>" & "") -> 0 | J117: =SUMIFS(MN!$I:$I,MN!$E:$E,A117,MN!$B:$B,"<>" & "") -> 0 | K117: =SUMIFS(MN!$J:$J,MN!$E:$E,A117,MN!$B:$B,"<>" & "") -> 0 | L117: =SUMIFS(MN!$G:$G,MN!$E:$E,A117,MN!$C:$C,"<>" & "") -> 0 | M117: =SUMIFS(MN!$I:$I,MN!$E:$E,A117,MN!$C:$C,"<>" & "") -> 0 | N117: =SUMIFS(MN!$J:$J,MN!$E:$E,A117,MN!$C:$C,"<>" & "") -> 0 | O117: =SUMIFS(MN!$G:$G,MN!$E:$E,A117,MN!$D:$D,"<>" & "") -> 0 | P117: =SUMIFS(MN!$I:$I,MN!$E:$E,A117,MN!$D:$D,"<>" & "") -> 0 | Q117: =SUMIFS(MN!$J:$J,MN!$E:$E,A117,MN!$D:$D,"<>" & "") -> 0 | R117: 0 | S117: 0 | T117: 0 | AA117: 580 | AG117: =IFERROR(VLOOKUP(ROWS(AG2:AG117),AI2:AJ186,2,0),"") -> 580 | AI117: =IF(ISNUMBER(SEARCH(AL2,AJ117)),MAX(AI1:AI116)+1,0) -> 116 | AJ117: 580
A118: 117 | B118: بينك | C118: ووفين فستون | D118: 1سم | E118: بينك ووفين فستون 1سم | I118: =SUMIFS(MN!$G:$G,MN!$E:$E,A118,MN!B:B,"<>" & "") -> 0 | J118: =SUMIFS(MN!$I:$I,MN!$E:$E,A118,MN!$B:$B,"<>" & "") -> 0 | K118: =SUMIFS(MN!$J:$J,MN!$E:$E,A118,MN!$B:$B,"<>" & "") -> 0 | L118: =SUMIFS(MN!$G:$G,MN!$E:$E,A118,MN!$C:$C,"<>" & "") -> 0 | M118: =SUMIFS(MN!$I:$I,MN!$E:$E,A118,MN!$C:$C,"<>" & "") -> 0 | N118: =SUMIFS(MN!$J:$J,MN!$E:$E,A118,MN!$C:$C,"<>" & "") -> 0 | O118: =SUMIFS(MN!$G:$G,MN!$E:$E,A118,MN!$D:$D,"<>" & "") -> 0 | P118: =SUMIFS(MN!$I:$I,MN!$E:$E,A118,MN!$D:$D,"<>" & "") -> 0 | Q118: =SUMIFS(MN!$J:$J,MN!$E:$E,A118,MN!$D:$D,"<>" & "") -> 0 | R118: 0 | S118: 0 | T118: 0 | AA118: 585 | AG118: =IFERROR(VLOOKUP(ROWS(AG2:AG118),AI2:AJ186,2,0),"") -> 585 | AI118: =IF(ISNUMBER(SEARCH(AL2,AJ118)),MAX(AI1:AI117)+1,0) -> 117 | AJ118: 585
A119: 118 | B119: تركواز X ابيض | C119: بايبينج | D119: 1سم | E119: تركواز X ابيض بايبينج 1سم | I119: =SUMIFS(MN!$G:$G,MN!$E:$E,A119,MN!B:B,"<>" & "") -> 0 | J119: =SUMIFS(MN!$I:$I,MN!$E:$E,A119,MN!$B:$B,"<>" & "") -> 0 | K119: =SUMIFS(MN!$J:$J,MN!$E:$E,A119,MN!$B:$B,"<>" & "") -> 0 | L119: =SUMIFS(MN!$G:$G,MN!$E:$E,A119,MN!$C:$C,"<>" & "") -> 0 | M119: =SUMIFS(MN!$I:$I,MN!$E:$E,A119,MN!$C:$C,"<>" & "") -> 0 | N119: =SUMIFS(MN!$J:$J,MN!$E:$E,A119,MN!$C:$C,"<>" & "") -> 0 | O119: =SUMIFS(MN!$G:$G,MN!$E:$E,A119,MN!$D:$D,"<>" & "") -> 0 | P119: =SUMIFS(MN!$I:$I,MN!$E:$E,A119,MN!$D:$D,"<>" & "") -> 0 | Q119: =SUMIFS(MN!$J:$J,MN!$E:$E,A119,MN!$D:$D,"<>" & "") -> 0 | R119: 0 | S119: 0 | T119: 0 | AA119: 590 | AG119: =IFERROR(VLOOKUP(ROWS(AG2:AG119),AI2:AJ186,2,0),"") -> 590 | AI119: =IF(ISNUMBER(SEARCH(AL2,AJ119)),MAX(AI1:AI118)+1,0) -> 118 | AJ119: 590
A120: 119 | B120: تركواز X اسود | C120: بايبينج | D120: 1سم | E120: تركواز X اسود بايبينج 1سم | I120: =SUMIFS(MN!$G:$G,MN!$E:$E,A120,MN!B:B,"<>" & "") -> 0 | J120: =SUMIFS(MN!$I:$I,MN!$E:$E,A120,MN!$B:$B,"<>" & "") -> 0 | K120: =SUMIFS(MN!$J:$J,MN!$E:$E,A120,MN!$B:$B,"<>" & "") -> 0 | L120: =SUMIFS(MN!$G:$G,MN!$E:$E,A120,MN!$C:$C,"<>" & "") -> 0 | M120: =SUMIFS(MN!$I:$I,MN!$E:$E,A120,MN!$C:$C,"<>" & "") -> 0 | N120: =SUMIFS(MN!$J:$J,MN!$E:$E,A120,MN!$C:$C,"<>" & "") -> 0 | O120: =SUMIFS(MN!$G:$G,MN!$E:$E,A120,MN!$D:$D,"<>" & "") -> 0 | P120: =SUMIFS(MN!$I:$I,MN!$E:$E,A120,MN!$D:$D,"<>" & "") -> 0 | Q120: =SUMIFS(MN!$J:$J,MN!$E:$E,A120,MN!$D:$D,"<>" & "") -> 0 | R120: 0 | S120: 0 | T120: 0 | AA120: 595 | AG120: =IFERROR(VLOOKUP(ROWS(AG2:AG120),AI2:AJ186,2,0),"") -> 595 | AI120: =IF(ISNUMBER(SEARCH(AL2,AJ120)),MAX(AI1:AI119)+1,0) -> 119 | AJ120: 595
A121: 120 | B121: رصاصي استريب | C121: كروشيه | D121: 3سم | E121: رصاصي استريب كروشيه 3سم | F121: 175.18 | G121: 10127 | I121: =SUMIFS(MN!$G:$G,MN!$E:$E,A121,MN!B:B,"<>" & "") -> 0 | J121: =SUMIFS(MN!$I:$I,MN!$E:$E,A121,MN!$B:$B,"<>" & "") -> 0 | K121: =SUMIFS(MN!$J:$J,MN!$E:$E,A121,MN!$B:$B,"<>" & "") -> 0 | L121: =SUMIFS(MN!$G:$G,MN!$E:$E,A121,MN!$C:$C,"<>" & "") -> 0 | M121: =SUMIFS(MN!$I:$I,MN!$E:$E,A121,MN!$C:$C,"<>" & "") -> 0 | N121: =SUMIFS(MN!$J:$J,MN!$E:$E,A121,MN!$C:$C,"<>" & "") -> 0 | O121: =SUMIFS(MN!$G:$G,MN!$E:$E,A121,MN!$D:$D,"<>" & "") -> 0 | P121: =SUMIFS(MN!$I:$I,MN!$E:$E,A121,MN!$D:$D,"<>" & "") -> 0 | Q121: =SUMIFS(MN!$J:$J,MN!$E:$E,A121,MN!$D:$D,"<>" & "") -> 0 | R121: 175.18 | S121: 10127 | T121: 0 | AA121: 600 | AG121: =IFERROR(VLOOKUP(ROWS(AG2:AG121),AI2:AJ186,2,0),"") -> 600 | AI121: =IF(ISNUMBER(SEARCH(AL2,AJ121)),MAX(AI1:AI120)+1,0) -> 120 | AJ121: 600
A122: 121 | B122: زهري | C122: كورد | D122: مبطط | E122: زهري كورد مبطط | I122: =SUMIFS(MN!$G:$G,MN!$E:$E,A122,MN!B:B,"<>" & "") -> 0 | J122: =SUMIFS(MN!$I:$I,MN!$E:$E,A122,MN!$B:$B,"<>" & "") -> 0 | K122: =SUMIFS(MN!$J:$J,MN!$E:$E,A122,MN!$B:$B,"<>" & "") -> 0 | L122: =SUMIFS(MN!$G:$G,MN!$E:$E,A122,MN!$C:$C,"<>" & "") -> 0 | M122: =SUMIFS(MN!$I:$I,MN!$E:$E,A122,MN!$C:$C,"<>" & "") -> 0 | N122: =SUMIFS(MN!$J:$J,MN!$E:$E,A122,MN!$C:$C,"<>" & "") -> 0 | O122: =SUMIFS(MN!$G:$G,MN!$E:$E,A122,MN!$D:$D,"<>" & "") -> 0 | P122: =SUMIFS(MN!$I:$I,MN!$E:$E,A122,MN!$D:$D,"<>" & "") -> 0 | Q122: =SUMIFS(MN!$J:$J,MN!$E:$E,A122,MN!$D:$D,"<>" & "") -> 0 | R122: 0 | S122: 0 | T122: 0 | AA122: 605 | AG122: =IFERROR(VLOOKUP(ROWS(AG2:AG122),AI2:AJ186,2,0),"") -> 605 | AI122: =IF(ISNUMBER(SEARCH(AL2,AJ122)),MAX(AI1:AI121)+1,0) -> 121 | AJ122: 605
A123: 122 | B123: شاركول | C123: كورد | D123: مبطط | E123: شاركول كورد مبطط | I123: =SUMIFS(MN!$G:$G,MN!$E:$E,A123,MN!B:B,"<>" & "") -> 0 | J123: =SUMIFS(MN!$I:$I,MN!$E:$E,A123,MN!$B:$B,"<>" & "") -> 0 | K123: =SUMIFS(MN!$J:$J,MN!$E:$E,A123,MN!$B:$B,"<>" & "") -> 0 | L123: =SUMIFS(MN!$G:$G,MN!$E:$E,A123,MN!$C:$C,"<>" & "") -> 0 | M123: =SUMIFS(MN!$I:$I,MN!$E:$E,A123,MN!$C:$C,"<>" & "") -> 0 | N123: =SUMIFS(MN!$J:$J,MN!$E:$E,A123,MN!$C:$C,"<>" & "") -> 0 | O123: =SUMIFS(MN!$G:$G,MN!$E:$E,A123,MN!$D:$D,"<>" & "") -> 0 | P123: =SUMIFS(MN!$I:$I,MN!$E:$E,A123,MN!$D:$D,"<>" & "") -> 0 | Q123: =SUMIFS(MN!$J:$J,MN!$E:$E,A123,MN!$D:$D,"<>" & "") -> 0 | R123: 0 | S123: 0 | T123: 0 | AA123: 610 | AG123: =IFERROR(VLOOKUP(ROWS(AG2:AG123),AI2:AJ186,2,0),"") -> 610 | AI123: =IF(ISNUMBER(SEARCH(AL2,AJ123)),MAX(AI1:AI122)+1,0) -> 122 | AJ123: 610
A124: 123 | B124: موف غامق | C124: كروشيه | D124: 1.6سم | E124: موف غامق كروشيه 1.6سم | I124: =SUMIFS(MN!$G:$G,MN!$E:$E,A124,MN!B:B,"<>" & "") -> 0 | J124: =SUMIFS(MN!$I:$I,MN!$E:$E,A124,MN!$B:$B,"<>" & "") -> 0 | K124: =SUMIFS(MN!$J:$J,MN!$E:$E,A124,MN!$B:$B,"<>" & "") -> 0 | L124: =SUMIFS(MN!$G:$G,MN!$E:$E,A124,MN!$C:$C,"<>" & "") -> 0 | M124: =SUMIFS(MN!$I:$I,MN!$E:$E,A124,MN!$C:$C,"<>" & "") -> 0 | N124: =SUMIFS(MN!$J:$J,MN!$E:$E,A124,MN!$C:$C,"<>" & "") -> 0 | O124: =SUMIFS(MN!$G:$G,MN!$E:$E,A124,MN!$D:$D,"<>" & "") -> 0 | P124: =SUMIFS(MN!$I:$I,MN!$E:$E,A124,MN!$D:$D,"<>" & "") -> 0 | Q124: =SUMIFS(MN!$J:$J,MN!$E:$E,A124,MN!$D:$D,"<>" & "") -> 0 | R124: 0 | S124: 0 | T124: 0 | AA124: 615 | AG124: =IFERROR(VLOOKUP(ROWS(AG2:AG124),AI2:AJ186,2,0),"") -> 615 | AI124: =IF(ISNUMBER(SEARCH(AL2,AJ124)),MAX(AI1:AI123)+1,0) -> 123 | AJ124: 615
A125: 124 | B125: ابيض | C125: كروشيه | D125: 9مليمتر | E125: ابيض كروشيه 9مليمتر | F125: 22.92 | G125: 3570 | I125: =SUMIFS(MN!$G:$G,MN!$E:$E,A125,MN!B:B,"<>" & "") -> 0 | J125: =SUMIFS(MN!$I:$I,MN!$E:$E,A125,MN!$B:$B,"<>" & "") -> 0 | K125: =SUMIFS(MN!$J:$J,MN!$E:$E,A125,MN!$B:$B,"<>" & "") -> 0 | L125: =SUMIFS(MN!$G:$G,MN!$E:$E,A125,MN!$C:$C,"<>" & "") -> 0 | M125: =SUMIFS(MN!$I:$I,MN!$E:$E,A125,MN!$C:$C,"<>" & "") -> 0 | N125: =SUMIFS(MN!$J:$J,MN!$E:$E,A125,MN!$C:$C,"<>" & "") -> 0 | O125: =SUMIFS(MN!$G:$G,MN!$E:$E,A125,MN!$D:$D,"<>" & "") -> 0 | P125: =SUMIFS(MN!$I:$I,MN!$E:$E,A125,MN!$D:$D,"<>" & "") -> 0 | Q125: =SUMIFS(MN!$J:$J,MN!$E:$E,A125,MN!$D:$D,"<>" & "") -> 0 | R125: 22.92 | S125: 3570 | T125: 0 | AA125: 620 | AG125: =IFERROR(VLOOKUP(ROWS(AG2:AG125),AI2:AJ186,2,0),"") -> 620 | AI125: =IF(ISNUMBER(SEARCH(AL2,AJ125)),MAX(AI1:AI124)+1,0) -> 124 | AJ125: 620
A126: 125 | B126: اسود | C126: استريب | D126: 3سم | E126: اسود استريب 3سم | I126: =SUMIFS(MN!$G:$G,MN!$E:$E,A126,MN!B:B,"<>" & "") -> 0 | J126: =SUMIFS(MN!$I:$I,MN!$E:$E,A126,MN!$B:$B,"<>" & "") -> 0 | K126: =SUMIFS(MN!$J:$J,MN!$E:$E,A126,MN!$B:$B,"<>" & "") -> 0 | L126: =SUMIFS(MN!$G:$G,MN!$E:$E,A126,MN!$C:$C,"<>" & "") -> 0 | M126: =SUMIFS(MN!$I:$I,MN!$E:$E,A126,MN!$C:$C,"<>" & "") -> 0 | N126: =SUMIFS(MN!$J:$J,MN!$E:$E,A126,MN!$C:$C,"<>" & "") -> 0 | O126: =SUMIFS(MN!$G:$G,MN!$E:$E,A126,MN!$D:$D,"<>" & "") -> 0 | P126: =SUMIFS(MN!$I:$I,MN!$E:$E,A126,MN!$D:$D,"<>" & "") -> 0 | Q126: =SUMIFS(MN!$J:$J,MN!$E:$E,A126,MN!$D:$D,"<>" & "") -> 0 | R126: 0 | S126: 0 | T126: 0 | AA126: 625 | AG126: =IFERROR(VLOOKUP(ROWS(AG2:AG126),AI2:AJ186,2,0),"") -> 625 | AI126: =IF(ISNUMBER(SEARCH(AL2,AJ126)),MAX(AI1:AI125)+1,0) -> 125 | AJ126: 625
A127: 126 | B127: ابيض510 | C127: كروشيه | D127: 3سم | E127: ابيض510 كروشيه 3سم | I127: =SUMIFS(MN!$G:$G,MN!$E:$E,A127,MN!B:B,"<>" & "") -> 0 | J127: =SUMIFS(MN!$I:$I,MN!$E:$E,A127,MN!$B:$B,"<>" & "") -> 0 | K127: =SUMIFS(MN!$J:$J,MN!$E:$E,A127,MN!$B:$B,"<>" & "") -> 0 | L127: =SUMIFS(MN!$G:$G,MN!$E:$E,A127,MN!$C:$C,"<>" & "") -> 0 | M127: =SUMIFS(MN!$I:$I,MN!$E:$E,A127,MN!$C:$C,"<>" & "") -> 0 | N127: =SUMIFS(MN!$J:$J,MN!$E:$E,A127,MN!$C:$C,"<>" & "") -> 0 | O127: =SUMIFS(MN!$G:$G,MN!$E:$E,A127,MN!$D:$D,"<>" & "") -> 0 | P127: =SUMIFS(MN!$I:$I,MN!$E:$E,A127,MN!$D:$D,"<>" & "") -> 0 | Q127: =SUMIFS(MN!$J:$J,MN!$E:$E,A127,MN!$D:$D,"<>" & "") -> 0 | R127: 0 | S127: 0 | T127: 0 | AA127: 630 | AG127: =IFERROR(VLOOKUP(ROWS(AG2:AG127),AI2:AJ186,2,0),"") -> 630 | AI127: =IF(ISNUMBER(SEARCH(AL2,AJ127)),MAX(AI1:AI126)+1,0) -> 126 | AJ127: 630
A128: 127 | B128: ابيض510 | C128: كروشيه | D128: 4سم | E128: ابيض510 كروشيه 4سم | I128: =SUMIFS(MN!$G:$G,MN!$E:$E,A128,MN!B:B,"<>" & "") -> 0 | J128: =SUMIFS(MN!$I:$I,MN!$E:$E,A128,MN!$B:$B,"<>" & "") -> 0 | K128: =SUMIFS(MN!$J:$J,MN!$E:$E,A128,MN!$B:$B,"<>" & "") -> 0 | L128: =SUMIFS(MN!$G:$G,MN!$E:$E,A128,MN!$C:$C,"<>" & "") -> 0 | M128: =SUMIFS(MN!$I:$I,MN!$E:$E,A128,MN!$C:$C,"<>" & "") -> 0 | N128: =SUMIFS(MN!$J:$J,MN!$E:$E,A128,MN!$C:$C,"<>" & "") -> 0 | O128: =SUMIFS(MN!$G:$G,MN!$E:$E,A128,MN!$D:$D,"<>" & "") -> 0 | P128: =SUMIFS(MN!$I:$I,MN!$E:$E,A128,MN!$D:$D,"<>" & "") -> 0 | Q128: =SUMIFS(MN!$J:$J,MN!$E:$E,A128,MN!$D:$D,"<>" & "") -> 0 | R128: 0 | S128: 0 | T128: 0 | AA128: 635 | AG128: =IFERROR(VLOOKUP(ROWS(AG2:AG128),AI2:AJ186,2,0),"") -> 635 | AI128: =IF(ISNUMBER(SEARCH(AL2,AJ128)),MAX(AI1:AI127)+1,0) -> 127 | AJ128: 635
A129: 128 | B129: ابيض510 | C129: كروشيه | D129: 2.3سم | E129: ابيض510 كروشيه 2.3سم | F129: 38.2 | G129: 4250 | I129: =SUMIFS(MN!$G:$G,MN!$E:$E,A129,MN!B:B,"<>" & "") -> 0 | J129: =SUMIFS(MN!$I:$I,MN!$E:$E,A129,MN!$B:$B,"<>" & "") -> 0 | K129: =SUMIFS(MN!$J:$J,MN!$E:$E,A129,MN!$B:$B,"<>" & "") -> 0 | L129: =SUMIFS(MN!$G:$G,MN!$E:$E,A129,MN!$C:$C,"<>" & "") -> 0 | M129: =SUMIFS(MN!$I:$I,MN!$E:$E,A129,MN!$C:$C,"<>" & "") -> 0 | N129: =SUMIFS(MN!$J:$J,MN!$E:$E,A129,MN!$C:$C,"<>" & "") -> 0 | O129: =SUMIFS(MN!$G:$G,MN!$E:$E,A129,MN!$D:$D,"<>" & "") -> 0 | P129: =SUMIFS(MN!$I:$I,MN!$E:$E,A129,MN!$D:$D,"<>" & "") -> 0 | Q129: =SUMIFS(MN!$J:$J,MN!$E:$E,A129,MN!$D:$D,"<>" & "") -> 0 | R129: 38.2 | S129: 4250 | T129: 0 | AA129: 640 | AG129: =IFERROR(VLOOKUP(ROWS(AG2:AG129),AI2:AJ186,2,0),"") -> 640 | AI129: =IF(ISNUMBER(SEARCH(AL2,AJ129)),MAX(AI1:AI128)+1,0) -> 128 | AJ129: 640
A130: 129 | B130: موف | C130: كورد مخلوط | D130: 132سم | E130: =B130&" "&C130&" "&D130 -> موف كورد مخلوط 132سم | I130: =SUMIFS(MN!$G:$G,MN!$E:$E,A130,MN!B:B,"<>" & "") -> 0 | J130: =SUMIFS(MN!$I:$I,MN!$E:$E,A130,MN!$B:$B,"<>" & "") -> 0 | K130: =SUMIFS(MN!$J:$J,MN!$E:$E,A130,MN!$B:$B,"<>" & "") -> 0 | L130: =SUMIFS(MN!$G:$G,MN!$E:$E,A130,MN!$C:$C,"<>" & "") -> 0 | M130: =SUMIFS(MN!$I:$I,MN!$E:$E,A130,MN!$C:$C,"<>" & "") -> 0 | N130: =SUMIFS(MN!$J:$J,MN!$E:$E,A130,MN!$C:$C,"<>" & "") -> 0 | O130: =SUMIFS(MN!$G:$G,MN!$E:$E,A130,MN!$D:$D,"<>" & "") -> 0 | P130: =SUMIFS(MN!$I:$I,MN!$E:$E,A130,MN!$D:$D,"<>" & "") -> 0 | Q130: =SUMIFS(MN!$J:$J,MN!$E:$E,A130,MN!$D:$D,"<>" & "") -> 0 | R130: =F130+I130+O130-L130 -> 0 | S130: 0 | T130: 0 | AA130: 645 | AG130: =IFERROR(VLOOKUP(ROWS(AG2:AG130),AI2:AJ186,2,0),"") -> 645 | AI130: =IF(ISNUMBER(SEARCH(AL2,AJ130)),MAX(AI1:AI129)+1,0) -> 129 | AJ130: 645
A131: 130 | B131: ابيض | C131: كورد مخلوط | D131: 126سم | E131: ابيض كورد مخلوط 126سم | I131: =SUMIFS(MN!$G:$G,MN!$E:$E,A131,MN!B:B,"<>" & "") -> 0 | J131: =SUMIFS(MN!$I:$I,MN!$E:$E,A131,MN!$B:$B,"<>" & "") -> 0 | K131: =SUMIFS(MN!$J:$J,MN!$E:$E,A131,MN!$B:$B,"<>" & "") -> 0 | L131: =SUMIFS(MN!$G:$G,MN!$E:$E,A131,MN!$C:$C,"<>" & "") -> 0 | M131: =SUMIFS(MN!$I:$I,MN!$E:$E,A131,MN!$C:$C,"<>" & "") -> 0 | N131: =SUMIFS(MN!$J:$J,MN!$E:$E,A131,MN!$C:$C,"<>" & "") -> 0 | O131: =SUMIFS(MN!$G:$G,MN!$E:$E,A131,MN!$D:$D,"<>" & "") -> 0 | P131: =SUMIFS(MN!$I:$I,MN!$E:$E,A131,MN!$D:$D,"<>" & "") -> 0 | Q131: =SUMIFS(MN!$J:$J,MN!$E:$E,A131,MN!$D:$D,"<>" & "") -> 0 | R131: 0 | S131: 0 | T131: 0 | AA131: 650 | AG131: =IFERROR(VLOOKUP(ROWS(AG2:AG131),AI2:AJ186,2,0),"") -> 650 | AI131: =IF(ISNUMBER(SEARCH(AL2,AJ131)),MAX(AI1:AI130)+1,0) -> 130 | AJ131: 650
A132: 131 | B132: اسود | C132: كورد مخلوط | D132: 120سم | E132: اسود كورد مخلوط 120سم | I132: =SUMIFS(MN!$G:$G,MN!$E:$E,A132,MN!B:B,"<>" & "") -> 0 | J132: =SUMIFS(MN!$I:$I,MN!$E:$E,A132,MN!$B:$B,"<>" & "") -> 0 | K132: =SUMIFS(MN!$J:$J,MN!$E:$E,A132,MN!$B:$B,"<>" & "") -> 0 | L132: =SUMIFS(MN!$G:$G,MN!$E:$E,A132,MN!$C:$C,"<>" & "") -> 0 | M132: =SUMIFS(MN!$I:$I,MN!$E:$E,A132,MN!$C:$C,"<>" & "") -> 0 | N132: =SUMIFS(MN!$J:$J,MN!$E:$E,A132,MN!$C:$C,"<>" & "") -> 0 | O132: =SUMIFS(MN!$G:$G,MN!$E:$E,A132,MN!$D:$D,"<>" & "") -> 0 | P132: =SUMIFS(MN!$I:$I,MN!$E:$E,A132,MN!$D:$D,"<>" & "") -> 0 | Q132: =SUMIFS(MN!$J:$J,MN!$E:$E,A132,MN!$D:$D,"<>" & "") -> 0 | R132: 0 | S132: 0 | T132: 0 | AA132: 655 | AG132: =IFERROR(VLOOKUP(ROWS(AG2:AG132),AI2:AJ186,2,0),"") -> 655 | AI132: =IF(ISNUMBER(SEARCH(AL2,AJ132)),MAX(AI1:AI131)+1,0) -> 131 | AJ132: 655
A133: 132 | B133: موف | C133: كورد مخلوط | D133: 138 | E133: موف كورد مخلوط 138 | I133: =SUMIFS(MN!$G:$G,MN!$E:$E,A133,MN!B:B,"<>" & "") -> 0 | J133: =SUMIFS(MN!$I:$I,MN!$E:$E,A133,MN!$B:$B,"<>" & "") -> 0 | K133: =SUMIFS(MN!$J:$J,MN!$E:$E,A133,MN!$B:$B,"<>" & "") -> 0 | L133: =SUMIFS(MN!$G:$G,MN!$E:$E,A133,MN!$C:$C,"<>" & "") -> 0 | M133: =SUMIFS(MN!$I:$I,MN!$E:$E,A133,MN!$C:$C,"<>" & "") -> 0 | N133: =SUMIFS(MN!$J:$J,MN!$E:$E,A133,MN!$C:$C,"<>" & "") -> 0 | O133: =SUMIFS(MN!$G:$G,MN!$E:$E,A133,MN!$D:$D,"<>" & "") -> 0 | P133: =SUMIFS(MN!$I:$I,MN!$E:$E,A133,MN!$D:$D,"<>" & "") -> 0 | Q133: =SUMIFS(MN!$J:$J,MN!$E:$E,A133,MN!$D:$D,"<>" & "") -> 0 | R133: 0 | S133: 0 | T133: 0 | AA133: 660 | AG133: =IFERROR(VLOOKUP(ROWS(AG2:AG133),AI2:AJ186,2,0),"") -> 660 | AI133: =IF(ISNUMBER(SEARCH(AL2,AJ133)),MAX(AI1:AI132)+1,0) -> 132 | AJ133: 660
A134: 133 | B134: موف | C134: كورد مخلوط | D134: 126 | E134: موف كورد مخلوط 126 | I134: =SUMIFS(MN!$G:$G,MN!$E:$E,A134,MN!B:B,"<>" & "") -> 0 | J134: =SUMIFS(MN!$I:$I,MN!$E:$E,A134,MN!$B:$B,"<>" & "") -> 0 | K134: =SUMIFS(MN!$J:$J,MN!$E:$E,A134,MN!$B:$B,"<>" & "") -> 0 | L134: =SUMIFS(MN!$G:$G,MN!$E:$E,A134,MN!$C:$C,"<>" & "") -> 0 | M134: =SUMIFS(MN!$I:$I,MN!$E:$E,A134,MN!$C:$C,"<>" & "") -> 0 | N134: =SUMIFS(MN!$J:$J,MN!$E:$E,A134,MN!$C:$C,"<>" & "") -> 0 | O134: =SUMIFS(MN!$G:$G,MN!$E:$E,A134,MN!$D:$D,"<>" & "") -> 0 | P134: =SUMIFS(MN!$I:$I,MN!$E:$E,A134,MN!$D:$D,"<>" & "") -> 0 | Q134: =SUMIFS(MN!$J:$J,MN!$E:$E,A134,MN!$D:$D,"<>" & "") -> 0 | R134: 0 | S134: 0 | T134: 0 | AA134: 665 | AG134: =IFERROR(VLOOKUP(ROWS(AG2:AG134),AI2:AJ186,2,0),"") -> 665 | AI134: =IF(ISNUMBER(SEARCH(AL2,AJ134)),MAX(AI1:AI133)+1,0) -> 133 | AJ134: 665
A135: 134 | B135: اسود | C135: كورد مخلوط | D135: 126 | E135: اسود كورد مخلوط 126 | I135: =SUMIFS(MN!$G:$G,MN!$E:$E,A135,MN!B:B,"<>" & "") -> 0 | J135: =SUMIFS(MN!$I:$I,MN!$E:$E,A135,MN!$B:$B,"<>" & "") -> 0 | K135: =SUMIFS(MN!$J:$J,MN!$E:$E,A135,MN!$B:$B,"<>" & "") -> 0 | L135: =SUMIFS(MN!$G:$G,MN!$E:$E,A135,MN!$C:$C,"<>" & "") -> 0 | M135: =SUMIFS(MN!$I:$I,MN!$E:$E,A135,MN!$C:$C,"<>" & "") -> 0 | N135: =SUMIFS(MN!$J:$J,MN!$E:$E,A135,MN!$C:$C,"<>" & "") -> 0 | O135: =SUMIFS(MN!$G:$G,MN!$E:$E,A135,MN!$D:$D,"<>" & "") -> 0 | P135: =SUMIFS(MN!$I:$I,MN!$E:$E,A135,MN!$D:$D,"<>" & "") -> 0 | Q135: =SUMIFS(MN!$J:$J,MN!$E:$E,A135,MN!$D:$D,"<>" & "") -> 0 | R135: 0 | S135: 0 | T135: 0 | AA135: 670 | AG135: =IFERROR(VLOOKUP(ROWS(AG2:AG135),AI2:AJ186,2,0),"") -> 670 | AI135: =IF(ISNUMBER(SEARCH(AL2,AJ135)),MAX(AI1:AI134)+1,0) -> 134 | AJ135: 670
A136: 135 | B136: اسود | C136: كورد مخلوط | D136: 114سم | E136: اسود كورد مخلوط 114سم | I136: =SUMIFS(MN!$G:$G,MN!$E:$E,A136,MN!B:B,"<>" & "") -> 0 | J136: =SUMIFS(MN!$I:$I,MN!$E:$E,A136,MN!$B:$B,"<>" & "") -> 0 | K136: =SUMIFS(MN!$J:$J,MN!$E:$E,A136,MN!$B:$B,"<>" & "") -> 0 | L136: =SUMIFS(MN!$G:$G,MN!$E:$E,A136,MN!$C:$C,"<>" & "") -> 0 | M136: =SUMIFS(MN!$I:$I,MN!$E:$E,A136,MN!$C:$C,"<>" & "") -> 0 | N136: =SUMIFS(MN!$J:$J,MN!$E:$E,A136,MN!$C:$C,"<>" & "") -> 0 | O136: =SUMIFS(MN!$G:$G,MN!$E:$E,A136,MN!$D:$D,"<>" & "") -> 0 | P136: =SUMIFS(MN!$I:$I,MN!$E:$E,A136,MN!$D:$D,"<>" & "") -> 0 | Q136: =SUMIFS(MN!$J:$J,MN!$E:$E,A136,MN!$D:$D,"<>" & "") -> 0 | R136: 0 | S136: 0 | T136: 0 | AA136: 675 | AG136: =IFERROR(VLOOKUP(ROWS(AG2:AG136),AI2:AJ186,2,0),"") -> 675 | AI136: =IF(ISNUMBER(SEARCH(AL2,AJ136)),MAX(AI1:AI135)+1,0) -> 135 | AJ136: 675
A137: 136 | B137: ابيض | C137: كوردمخلوط | D137: 132سم | E137: ابيض كوردمخلوط 132سم | I137: =SUMIFS(MN!$G:$G,MN!$E:$E,A137,MN!B:B,"<>" & "") -> 0 | J137: =SUMIFS(MN!$I:$I,MN!$E:$E,A137,MN!$B:$B,"<>" & "") -> 0 | K137: =SUMIFS(MN!$J:$J,MN!$E:$E,A137,MN!$B:$B,"<>" & "") -> 0 | L137: =SUMIFS(MN!$G:$G,MN!$E:$E,A137,MN!$C:$C,"<>" & "") -> 0 | M137: =SUMIFS(MN!$I:$I,MN!$E:$E,A137,MN!$C:$C,"<>" & "") -> 0 | N137: =SUMIFS(MN!$J:$J,MN!$E:$E,A137,MN!$C:$C,"<>" & "") -> 0 | O137: =SUMIFS(MN!$G:$G,MN!$E:$E,A137,MN!$D:$D,"<>" & "") -> 0 | P137: =SUMIFS(MN!$I:$I,MN!$E:$E,A137,MN!$D:$D,"<>" & "") -> 0 | Q137: =SUMIFS(MN!$J:$J,MN!$E:$E,A137,MN!$D:$D,"<>" & "") -> 0 | R137: 0 | S137: 0 | T137: 0 | AA137: 680 | AG137: =IFERROR(VLOOKUP(ROWS(AG2:AG137),AI2:AJ186,2,0),"") -> 680 | AI137: =IF(ISNUMBER(SEARCH(AL2,AJ137)),MAX(AI1:AI136)+1,0) -> 136 | AJ137: 680
A138: 137 | B138: اسود | C138: كروشية | D138: 6.2سم | E138: اسود كروشية 6.2سم | I138: =SUMIFS(MN!$G:$G,MN!$E:$E,A138,MN!B:B,"<>" & "") -> 0 | J138: =SUMIFS(MN!$I:$I,MN!$E:$E,A138,MN!$B:$B,"<>" & "") -> 0 | K138: =SUMIFS(MN!$J:$J,MN!$E:$E,A138,MN!$B:$B,"<>" & "") -> 0 | L138: =SUMIFS(MN!$G:$G,MN!$E:$E,A138,MN!$C:$C,"<>" & "") -> 0 | M138: =SUMIFS(MN!$I:$I,MN!$E:$E,A138,MN!$C:$C,"<>" & "") -> 0 | N138: =SUMIFS(MN!$J:$J,MN!$E:$E,A138,MN!$C:$C,"<>" & "") -> 0 | O138: =SUMIFS(MN!$G:$G,MN!$E:$E,A138,MN!$D:$D,"<>" & "") -> 0 | P138: =SUMIFS(MN!$I:$I,MN!$E:$E,A138,MN!$D:$D,"<>" & "") -> 0 | Q138: =SUMIFS(MN!$J:$J,MN!$E:$E,A138,MN!$D:$D,"<>" & "") -> 0 | R138: 0 | S138: 0 | T138: 0 | AA138: 685 | AG138: =IFERROR(VLOOKUP(ROWS(AG2:AG138),AI2:AJ186,2,0),"") -> 685 | AI138: =IF(ISNUMBER(SEARCH(AL2,AJ138)),MAX(AI1:AI137)+1,0) -> 137 | AJ138: 685
A139: 138 | B139: اسود | C139: كروشية | D139: 7مليمتر | E139: اسود كروشية 7مليمتر | I139: =SUMIFS(MN!$G:$G,MN!$E:$E,A139,MN!B:B,"<>" & "") -> 0 | J139: =SUMIFS(MN!$I:$I,MN!$E:$E,A139,MN!$B:$B,"<>" & "") -> 0 | K139: =SUMIFS(MN!$J:$J,MN!$E:$E,A139,MN!$B:$B,"<>" & "") -> 0 | L139: =SUMIFS(MN!$G:$G,MN!$E:$E,A139,MN!$C:$C,"<>" & "") -> 0 | M139: =SUMIFS(MN!$I:$I,MN!$E:$E,A139,MN!$C:$C,"<>" & "") -> 0 | N139: =SUMIFS(MN!$J:$J,MN!$E:$E,A139,MN!$C:$C,"<>" & "") -> 0 | O139: =SUMIFS(MN!$G:$G,MN!$E:$E,A139,MN!$D:$D,"<>" & "") -> 0 | P139: =SUMIFS(MN!$I:$I,MN!$E:$E,A139,MN!$D:$D,"<>" & "") -> 0 | Q139: =SUMIFS(MN!$J:$J,MN!$E:$E,A139,MN!$D:$D,"<>" & "") -> 0 | R139: 0 | S139: 0 | T139: 0 | AA139: 690 | AG139: =IFERROR(VLOOKUP(ROWS(AG2:AG139),AI2:AJ186,2,0),"") -> 690 | AI139: =IF(ISNUMBER(SEARCH(AL2,AJ139)),MAX(AI1:AI138)+1,0) -> 138 | AJ139: 690
A140: 139 | B140: اسود | C140: كروشية | D140: 6.3سم | E140: اسود كروشية 6.3سم | I140: =SUMIFS(MN!$G:$G,MN!$E:$E,A140,MN!B:B,"<>" & "") -> 0 | J140: =SUMIFS(MN!$I:$I,MN!$E:$E,A140,MN!$B:$B,"<>" & "") -> 0 | K140: =SUMIFS(MN!$J:$J,MN!$E:$E,A140,MN!$B:$B,"<>" & "") -> 0 | L140: =SUMIFS(MN!$G:$G,MN!$E:$E,A140,MN!$C:$C,"<>" & "") -> 0 | M140: =SUMIFS(MN!$I:$I,MN!$E:$E,A140,MN!$C:$C,"<>" & "") -> 0 | N140: =SUMIFS(MN!$J:$J,MN!$E:$E,A140,MN!$C:$C,"<>" & "") -> 0 | O140: =SUMIFS(MN!$G:$G,MN!$E:$E,A140,MN!$D:$D,"<>" & "") -> 0 | P140: =SUMIFS(MN!$I:$I,MN!$E:$E,A140,MN!$D:$D,"<>" & "") -> 0 | Q140: =SUMIFS(MN!$J:$J,MN!$E:$E,A140,MN!$D:$D,"<>" & "") -> 0 | R140: 0 | S140: 0 | T140: 0 | AA140: 695 | AG140: =IFERROR(VLOOKUP(ROWS(AG2:AG140),AI2:AJ186,2,0),"") -> 695 | AI140: =IF(ISNUMBER(SEARCH(AL2,AJ140)),MAX(AI1:AI139)+1,0) -> 139 | AJ140: 695
A141: 140 | B141: ابيض | C141: كروشية | D141: 9مليمتر | E141: ابيض كروشية 9مليمتر | I141: =SUMIFS(MN!$G:$G,MN!$E:$E,A141,MN!B:B,"<>" & "") -> 0 | J141: =SUMIFS(MN!$I:$I,MN!$E:$E,A141,MN!$B:$B,"<>" & "") -> 0 | K141: =SUMIFS(MN!$J:$J,MN!$E:$E,A141,MN!$B:$B,"<>" & "") -> 0 | L141: =SUMIFS(MN!$G:$G,MN!$E:$E,A141,MN!$C:$C,"<>" & "") -> 0 | M141: =SUMIFS(MN!$I:$I,MN!$E:$E,A141,MN!$C:$C,"<>" & "") -> 0 | N141: =SUMIFS(MN!$J:$J,MN!$E:$E,A141,MN!$C:$C,"<>" & "") -> 0 | O141: =SUMIFS(MN!$G:$G,MN!$E:$E,A141,MN!$D:$D,"<>" & "") -> 0 | P141: =SUMIFS(MN!$I:$I,MN!$E:$E,A141,MN!$D:$D,"<>" & "") -> 0 | Q141: =SUMIFS(MN!$J:$J,MN!$E:$E,A141,MN!$D:$D,"<>" & "") -> 0 | R141: 0 | S141: 0 | T141: 0 | AA141: 700 | AG141: =IFERROR(VLOOKUP(ROWS(AG2:AG141),AI2:AJ186,2,0),"") -> 700 | AI141: =IF(ISNUMBER(SEARCH(AL2,AJ141)),MAX(AI1:AI140)+1,0) -> 140 | AJ141: 700
A142: 141 | B142: ابيض | C142: كروشية | D142: 1.9سم | E142: ابيض كروشية 1.9سم | I142: =SUMIFS(MN!$G:$G,MN!$E:$E,A142,MN!B:B,"<>" & "") -> 0 | J142: =SUMIFS(MN!$I:$I,MN!$E:$E,A142,MN!$B:$B,"<>" & "") -> 0 | K142: =SUMIFS(MN!$J:$J,MN!$E:$E,A142,MN!$B:$B,"<>" & "") -> 0 | L142: =SUMIFS(MN!$G:$G,MN!$E:$E,A142,MN!$C:$C,"<>" & "") -> 0 | M142: =SUMIFS(MN!$I:$I,MN!$E:$E,A142,MN!$C:$C,"<>" & "") -> 0 | N142: =SUMIFS(MN!$J:$J,MN!$E:$E,A142,MN!$C:$C,"<>" & "") -> 0 | O142: =SUMIFS(MN!$G:$G,MN!$E:$E,A142,MN!$D:$D,"<>" & "") -> 0 | P142: =SUMIFS(MN!$I:$I,MN!$E:$E,A142,MN!$D:$D,"<>" & "") -> 0 | Q142: =SUMIFS(MN!$J:$J,MN!$E:$E,A142,MN!$D:$D,"<>" & "") -> 0 | R142: 0 | S142: 0 | T142: 0 | AA142: 705 | AG142: =IFERROR(VLOOKUP(ROWS(AG2:AG142),AI2:AJ186,2,0),"") -> 705 | AI142: =IF(ISNUMBER(SEARCH(AL2,AJ142)),MAX(AI1:AI141)+1,0) -> 141 | AJ142: 705
A143: 142 | B143: اسود | C143: كورد بوليستر | D143: 1سم | E143: اسود كورد بوليستر 1سم | I143: =SUMIFS(MN!$G:$G,MN!$E:$E,A143,MN!B:B,"<>" & "") -> 0 | J143: =SUMIFS(MN!$I:$I,MN!$E:$E,A143,MN!$B:$B,"<>" & "") -> 0 | K143: =SUMIFS(MN!$J:$J,MN!$E:$E,A143,MN!$B:$B,"<>" & "") -> 0 | L143: =SUMIFS(MN!$G:$G,MN!$E:$E,A143,MN!$C:$C,"<>" & "") -> 0 | M143: =SUMIFS(MN!$I:$I,MN!$E:$E,A143,MN!$C:$C,"<>" & "") -> 0 | N143: =SUMIFS(MN!$J:$J,MN!$E:$E,A143,MN!$C:$C,"<>" & "") -> 0 | O143: =SUMIFS(MN!$G:$G,MN!$E:$E,A143,MN!$D:$D,"<>" & "") -> 0 | P143: =SUMIFS(MN!$I:$I,MN!$E:$E,A143,MN!$D:$D,"<>" & "") -> 0 | Q143: =SUMIFS(MN!$J:$J,MN!$E:$E,A143,MN!$D:$D,"<>" & "") -> 0 | R143: 0 | S143: 0 | T143: 0 | AG143: =IFERROR(VLOOKUP(ROWS(AG2:AG143),AI2:AJ186,2,0),"") -> 710 | AI143: =IF(ISNUMBER(SEARCH(AL2,AJ143)),MAX(AI1:AI142)+1,0) -> 142 | AJ143: 710
A144: 143 | B144: زيتى | C144: كورد مخلوط | D144: 1سم | E144: زيتى كورد مخلوط 1سم | I144: =SUMIFS(MN!$G:$G,MN!$E:$E,A144,MN!B:B,"<>" & "") -> 0 | J144: =SUMIFS(MN!$I:$I,MN!$E:$E,A144,MN!$B:$B,"<>" & "") -> 0 | K144: =SUMIFS(MN!$J:$J,MN!$E:$E,A144,MN!$B:$B,"<>" & "") -> 0 | L144: =SUMIFS(MN!$G:$G,MN!$E:$E,A144,MN!$C:$C,"<>" & "") -> 0 | M144: =SUMIFS(MN!$I:$I,MN!$E:$E,A144,MN!$C:$C,"<>" & "") -> 0 | N144: =SUMIFS(MN!$J:$J,MN!$E:$E,A144,MN!$C:$C,"<>" & "") -> 0 | O144: =SUMIFS(MN!$G:$G,MN!$E:$E,A144,MN!$D:$D,"<>" & "") -> 0 | P144: =SUMIFS(MN!$I:$I,MN!$E:$E,A144,MN!$D:$D,"<>" & "") -> 0 | Q144: =SUMIFS(MN!$J:$J,MN!$E:$E,A144,MN!$D:$D,"<>" & "") -> 0 | R144: 0 | S144: 0 | T144: 0 | AG144: =IFERROR(VLOOKUP(ROWS(AG2:AG144),AI2:AJ186,2,0),"") -> 715 | AI144: =IF(ISNUMBER(SEARCH(AL2,AJ144)),MAX(AI1:AI143)+1,0) -> 143 | AJ144: 715
A145: 144 | B145: بلو | C145: تويل تيب | D145: 1سم | E145: بلو تويل تيب 1سم | I145: =SUMIFS(MN!$G:$G,MN!$E:$E,A145,MN!B:B,"<>" & "") -> 0 | J145: =SUMIFS(MN!$I:$I,MN!$E:$E,A145,MN!$B:$B,"<>" & "") -> 0 | K145: =SUMIFS(MN!$J:$J,MN!$E:$E,A145,MN!$B:$B,"<>" & "") -> 0 | L145: =SUMIFS(MN!$G:$G,MN!$E:$E,A145,MN!$C:$C,"<>" & "") -> 0 | M145: =SUMIFS(MN!$I:$I,MN!$E:$E,A145,MN!$C:$C,"<>" & "") -> 0 | N145: =SUMIFS(MN!$J:$J,MN!$E:$E,A145,MN!$C:$C,"<>" & "") -> 0 | O145: =SUMIFS(MN!$G:$G,MN!$E:$E,A145,MN!$D:$D,"<>" & "") -> 0 | P145: =SUMIFS(MN!$I:$I,MN!$E:$E,A145,MN!$D:$D,"<>" & "") -> 0 | Q145: =SUMIFS(MN!$J:$J,MN!$E:$E,A145,MN!$D:$D,"<>" & "") -> 0 | R145: 0 | S145: 0 | T145: 0 | AG145: =IFERROR(VLOOKUP(ROWS(AG2:AG145),AI2:AJ186,2,0),"") ->  | AI145: =IF(ISNUMBER(SEARCH(AL2,AJ145)),MAX(AI1:AI144)+1,0) -> 0
A146: 145 | B146: جرين | C146: تويل تيب | D146: 1سم | E146: جرين تويل تيب 1سم | I146: =SUMIFS(MN!$G:$G,MN!$E:$E,A146,MN!B:B,"<>" & "") -> 0 | J146: =SUMIFS(MN!$I:$I,MN!$E:$E,A146,MN!$B:$B,"<>" & "") -> 0 | K146: =SUMIFS(MN!$J:$J,MN!$E:$E,A146,MN!$B:$B,"<>" & "") -> 0 | L146: =SUMIFS(MN!$G:$G,MN!$E:$E,A146,MN!$C:$C,"<>" & "") -> 0 | M146: =SUMIFS(MN!$I:$I,MN!$E:$E,A146,MN!$C:$C,"<>" & "") -> 0 | N146: =SUMIFS(MN!$J:$J,MN!$E:$E,A146,MN!$C:$C,"<>" & "") -> 0 | O146: =SUMIFS(MN!$G:$G,MN!$E:$E,A146,MN!$D:$D,"<>" & "") -> 0 | P146: =SUMIFS(MN!$I:$I,MN!$E:$E,A146,MN!$D:$D,"<>" & "") -> 0 | Q146: =SUMIFS(MN!$J:$J,MN!$E:$E,A146,MN!$D:$D,"<>" & "") -> 0 | R146: 0 | S146: 0 | T146: 0 | AG146: =IFERROR(VLOOKUP(ROWS(AG2:AG146),AI2:AJ186,2,0),"") ->  | AI146: =IF(ISNUMBER(SEARCH(AL2,AJ146)),MAX(AI1:AI145)+1,0) -> 0
A147: 146 | B147: اسود | C147: كوردبولستر | D147: 1.3سم | E147: اسود كوردبولستر 1.3سم | I147: =SUMIFS(MN!$G:$G,MN!$E:$E,A147,MN!B:B,"<>" & "") -> 0 | J147: =SUMIFS(MN!$I:$I,MN!$E:$E,A147,MN!$B:$B,"<>" & "") -> 0 | K147: =SUMIFS(MN!$J:$J,MN!$E:$E,A147,MN!$B:$B,"<>" & "") -> 0 | L147: =SUMIFS(MN!$G:$G,MN!$E:$E,A147,MN!$C:$C,"<>" & "") -> 0 | M147: =SUMIFS(MN!$I:$I,MN!$E:$E,A147,MN!$C:$C,"<>" & "") -> 0 | N147: =SUMIFS(MN!$J:$J,MN!$E:$E,A147,MN!$C:$C,"<>" & "") -> 0 | O147: =SUMIFS(MN!$G:$G,MN!$E:$E,A147,MN!$D:$D,"<>" & "") -> 0 | P147: =SUMIFS(MN!$I:$I,MN!$E:$E,A147,MN!$D:$D,"<>" & "") -> 0 | Q147: =SUMIFS(MN!$J:$J,MN!$E:$E,A147,MN!$D:$D,"<>" & "") -> 0 | R147: 0 | S147: 0 | T147: 0 | AG147: =IFERROR(VLOOKUP(ROWS(AG2:AG147),AI2:AJ186,2,0),"") ->  | AI147: =IF(ISNUMBER(SEARCH(AL2,AJ147)),MAX(AI1:AI146)+1,0) -> 0
A148: 147 | B148: ابيض | C148: كوردمخلوط | D148: 120سم | E148: ابيض كوردمخلوط 120سم | I148: =SUMIFS(MN!$G:$G,MN!$E:$E,A148,MN!B:B,"<>" & "") -> 0 | J148: =SUMIFS(MN!$I:$I,MN!$E:$E,A148,MN!$B:$B,"<>" & "") -> 0 | K148: =SUMIFS(MN!$J:$J,MN!$E:$E,A148,MN!$B:$B,"<>" & "") -> 0 | L148: =SUMIFS(MN!$G:$G,MN!$E:$E,A148,MN!$C:$C,"<>" & "") -> 0 | M148: =SUMIFS(MN!$I:$I,MN!$E:$E,A148,MN!$C:$C,"<>" & "") -> 0 | N148: =SUMIFS(MN!$J:$J,MN!$E:$E,A148,MN!$C:$C,"<>" & "") -> 0 | O148: =SUMIFS(MN!$G:$G,MN!$E:$E,A148,MN!$D:$D,"<>" & "") -> 0 | P148: =SUMIFS(MN!$I:$I,MN!$E:$E,A148,MN!$D:$D,"<>" & "") -> 0 | Q148: =SUMIFS(MN!$J:$J,MN!$E:$E,A148,MN!$D:$D,"<>" & "") -> 0 | R148: 0 | S148: 0 | T148: 0 | AG148: =IFERROR(VLOOKUP(ROWS(AG2:AG148),AI2:AJ186,2,0),"") ->  | AI148: =IF(ISNUMBER(SEARCH(AL2,AJ148)),MAX(AI1:AI147)+1,0) -> 0
A149: 148 | B149: ابيض | C149: كوردمخلوط | D149: 138سم | E149: ابيض كوردمخلوط 138سم | I149: =SUMIFS(MN!$G:$G,MN!$E:$E,A149,MN!B:B,"<>" & "") -> 0 | J149: =SUMIFS(MN!$I:$I,MN!$E:$E,A149,MN!$B:$B,"<>" & "") -> 0 | K149: =SUMIFS(MN!$J:$J,MN!$E:$E,A149,MN!$B:$B,"<>" & "") -> 0 | L149: =SUMIFS(MN!$G:$G,MN!$E:$E,A149,MN!$C:$C,"<>" & "") -> 0 | M149: =SUMIFS(MN!$I:$I,MN!$E:$E,A149,MN!$C:$C,"<>" & "") -> 0 | N149: =SUMIFS(MN!$J:$J,MN!$E:$E,A149,MN!$C:$C,"<>" & "") -> 0 | O149: =SUMIFS(MN!$G:$G,MN!$E:$E,A149,MN!$D:$D,"<>" & "") -> 0 | P149: =SUMIFS(MN!$I:$I,MN!$E:$E,A149,MN!$D:$D,"<>" & "") -> 0 | Q149: =SUMIFS(MN!$J:$J,MN!$E:$E,A149,MN!$D:$D,"<>" & "") -> 0 | R149: 0 | S149: 0 | T149: 0 | AG149: =IFERROR(VLOOKUP(ROWS(AG2:AG149),AI2:AJ186,2,0),"") ->  | AI149: =IF(ISNUMBER(SEARCH(AL2,AJ149)),MAX(AI1:AI148)+1,0) -> 0
A150: 149 | B150: ابيض | C150: كوردمخلوط | D150: 144سم | E150: ابيض كوردمخلوط 144سم | I150: =SUMIFS(MN!$G:$G,MN!$E:$E,A150,MN!B:B,"<>" & "") -> 0 | J150: =SUMIFS(MN!$I:$I,MN!$E:$E,A150,MN!$B:$B,"<>" & "") -> 0 | K150: =SUMIFS(MN!$J:$J,MN!$E:$E,A150,MN!$B:$B,"<>" & "") -> 0 | L150: =SUMIFS(MN!$G:$G,MN!$E:$E,A150,MN!$C:$C,"<>" & "") -> 0 | M150: =SUMIFS(MN!$I:$I,MN!$E:$E,A150,MN!$C:$C,"<>" & "") -> 0 | N150: =SUMIFS(MN!$J:$J,MN!$E:$E,A150,MN!$C:$C,"<>" & "") -> 0 | O150: =SUMIFS(MN!$G:$G,MN!$E:$E,A150,MN!$D:$D,"<>" & "") -> 0 | P150: =SUMIFS(MN!$I:$I,MN!$E:$E,A150,MN!$D:$D,"<>" & "") -> 0 | Q150: =SUMIFS(MN!$J:$J,MN!$E:$E,A150,MN!$D:$D,"<>" & "") -> 0 | R150: 0 | S150: 0 | T150: 0 | AG150: =IFERROR(VLOOKUP(ROWS(AG2:AG150),AI2:AJ186,2,0),"") ->  | AI150: =IF(ISNUMBER(SEARCH(AL2,AJ150)),MAX(AI1:AI149)+1,0) -> 0
A151: 150 | B151: ابيض | C151: كوردمخلوط | D151: 114سم | E151: ابيض كوردمخلوط 114سم | I151: =SUMIFS(MN!$G:$G,MN!$E:$E,A151,MN!B:B,"<>" & "") -> 0 | J151: =SUMIFS(MN!$I:$I,MN!$E:$E,A151,MN!$B:$B,"<>" & "") -> 0 | K151: =SUMIFS(MN!$J:$J,MN!$E:$E,A151,MN!$B:$B,"<>" & "") -> 0 | L151: =SUMIFS(MN!$G:$G,MN!$E:$E,A151,MN!$C:$C,"<>" & "") -> 0 | M151: =SUMIFS(MN!$I:$I,MN!$E:$E,A151,MN!$C:$C,"<>" & "") -> 0 | N151: =SUMIFS(MN!$J:$J,MN!$E:$E,A151,MN!$C:$C,"<>" & "") -> 0 | O151: =SUMIFS(MN!$G:$G,MN!$E:$E,A151,MN!$D:$D,"<>" & "") -> 0 | P151: =SUMIFS(MN!$I:$I,MN!$E:$E,A151,MN!$D:$D,"<>" & "") -> 0 | Q151: =SUMIFS(MN!$J:$J,MN!$E:$E,A151,MN!$D:$D,"<>" & "") -> 0 | R151: 0 | S151: 0 | T151: 0 | AG151: =IFERROR(VLOOKUP(ROWS(AG2:AG151),AI2:AJ186,2,0),"") ->  | AI151: =IF(ISNUMBER(SEARCH(AL2,AJ151)),MAX(AI1:AI150)+1,0) -> 0
A152: 151 | B152: بلو | C152: ويفين | D152: 1.6سم | E152: بلو ويفين 1.6سم | I152: =SUMIFS(MN!$G:$G,MN!$E:$E,A152,MN!B:B,"<>" & "") -> 0 | J152: =SUMIFS(MN!$I:$I,MN!$E:$E,A152,MN!$B:$B,"<>" & "") -> 0 | K152: =SUMIFS(MN!$J:$J,MN!$E:$E,A152,MN!$B:$B,"<>" & "") -> 0 | L152: =SUMIFS(MN!$G:$G,MN!$E:$E,A152,MN!$C:$C,"<>" & "") -> 0 | M152: =SUMIFS(MN!$I:$I,MN!$E:$E,A152,MN!$C:$C,"<>" & "") -> 0 | N152: =SUMIFS(MN!$J:$J,MN!$E:$E,A152,MN!$C:$C,"<>" & "") -> 0 | O152: =SUMIFS(MN!$G:$G,MN!$E:$E,A152,MN!$D:$D,"<>" & "") -> 0 | P152: =SUMIFS(MN!$I:$I,MN!$E:$E,A152,MN!$D:$D,"<>" & "") -> 0 | Q152: =SUMIFS(MN!$J:$J,MN!$E:$E,A152,MN!$D:$D,"<>" & "") -> 0 | R152: 0 | S152: 0 | T152: 0 | AG152: =IFERROR(VLOOKUP(ROWS(AG2:AG152),AI2:AJ186,2,0),"") ->  | AI152: =IF(ISNUMBER(SEARCH(AL2,AJ152)),MAX(AI1:AI151)+1,0) -> 0
A153: 152 | B153: اصفر | C153: ساندوتش | D153: 1.5سم | E153: اصفر ساندوتش 1.5سم | I153: =SUMIFS(MN!$G:$G,MN!$E:$E,A153,MN!B:B,"<>" & "") -> 0 | J153: =SUMIFS(MN!$I:$I,MN!$E:$E,A153,MN!$B:$B,"<>" & "") -> 0 | K153: =SUMIFS(MN!$J:$J,MN!$E:$E,A153,MN!$B:$B,"<>" & "") -> 0 | L153: =SUMIFS(MN!$G:$G,MN!$E:$E,A153,MN!$C:$C,"<>" & "") -> 0 | M153: =SUMIFS(MN!$I:$I,MN!$E:$E,A153,MN!$C:$C,"<>" & "") -> 0 | N153: =SUMIFS(MN!$J:$J,MN!$E:$E,A153,MN!$C:$C,"<>" & "") -> 0 | O153: =SUMIFS(MN!$G:$G,MN!$E:$E,A153,MN!$D:$D,"<>" & "") -> 0 | P153: =SUMIFS(MN!$I:$I,MN!$E:$E,A153,MN!$D:$D,"<>" & "") -> 0 | Q153: =SUMIFS(MN!$J:$J,MN!$E:$E,A153,MN!$D:$D,"<>" & "") -> 0 | R153: 0 | S153: 0 | T153: 0 | AG153: =IFERROR(VLOOKUP(ROWS(AG2:AG153),AI2:AJ186,2,0),"") ->  | AI153: =IF(ISNUMBER(SEARCH(AL2,AJ153)),MAX(AI1:AI152)+1,0) -> 0
A154: 153 | B154: بلو | C154: ساندوتش | D154: 1.5سم | E154: بلو ساندوتش 1.5سم | I154: =SUMIFS(MN!$G:$G,MN!$E:$E,A154,MN!B:B,"<>" & "") -> 0 | J154: =SUMIFS(MN!$I:$I,MN!$E:$E,A154,MN!$B:$B,"<>" & "") -> 0 | K154: =SUMIFS(MN!$J:$J,MN!$E:$E,A154,MN!$B:$B,"<>" & "") -> 0 | L154: =SUMIFS(MN!$G:$G,MN!$E:$E,A154,MN!$C:$C,"<>" & "") -> 0 | M154: =SUMIFS(MN!$I:$I,MN!$E:$E,A154,MN!$C:$C,"<>" & "") -> 0 | N154: =SUMIFS(MN!$J:$J,MN!$E:$E,A154,MN!$C:$C,"<>" & "") -> 0 | O154: =SUMIFS(MN!$G:$G,MN!$E:$E,A154,MN!$D:$D,"<>" & "") -> 0 | P154: =SUMIFS(MN!$I:$I,MN!$E:$E,A154,MN!$D:$D,"<>" & "") -> 0 | Q154: =SUMIFS(MN!$J:$J,MN!$E:$E,A154,MN!$D:$D,"<>" & "") -> 0 | R154: 0 | S154: 0 | T154: 0 | AG154: =IFERROR(VLOOKUP(ROWS(AG2:AG154),AI2:AJ186,2,0),"") ->  | AI154: =IF(ISNUMBER(SEARCH(AL2,AJ154)),MAX(AI1:AI153)+1,0) -> 0
A155: 154 | B155: زهرى | C155: كوردمخلوط | D155: 1سم | E155: زهرى كوردمخلوط 1سم | I155: =SUMIFS(MN!$G:$G,MN!$E:$E,A155,MN!B:B,"<>" & "") -> 0 | J155: =SUMIFS(MN!$I:$I,MN!$E:$E,A155,MN!$B:$B,"<>" & "") -> 0 | K155: =SUMIFS(MN!$J:$J,MN!$E:$E,A155,MN!$B:$B,"<>" & "") -> 0 | L155: =SUMIFS(MN!$G:$G,MN!$E:$E,A155,MN!$C:$C,"<>" & "") -> 0 | M155: =SUMIFS(MN!$I:$I,MN!$E:$E,A155,MN!$C:$C,"<>" & "") -> 0 | N155: =SUMIFS(MN!$J:$J,MN!$E:$E,A155,MN!$C:$C,"<>" & "") -> 0 | O155: =SUMIFS(MN!$G:$G,MN!$E:$E,A155,MN!$D:$D,"<>" & "") -> 0 | P155: =SUMIFS(MN!$I:$I,MN!$E:$E,A155,MN!$D:$D,"<>" & "") -> 0 | Q155: =SUMIFS(MN!$J:$J,MN!$E:$E,A155,MN!$D:$D,"<>" & "") -> 0 | R155: 0 | S155: 0 | T155: 0 | AG155: =IFERROR(VLOOKUP(ROWS(AG2:AG155),AI2:AJ186,2,0),"") ->  | AI155: =IF(ISNUMBER(SEARCH(AL2,AJ155)),MAX(AI1:AI154)+1,0) -> 0
A156: 155 | B156: فوشيا | C156: كوردمخلوط | D156: 1سم | E156: فوشيا كوردمخلوط 1سم | I156: =SUMIFS(MN!$G:$G,MN!$E:$E,A156,MN!B:B,"<>" & "") -> 0 | J156: =SUMIFS(MN!$I:$I,MN!$E:$E,A156,MN!$B:$B,"<>" & "") -> 0 | K156: =SUMIFS(MN!$J:$J,MN!$E:$E,A156,MN!$B:$B,"<>" & "") -> 0 | L156: =SUMIFS(MN!$G:$G,MN!$E:$E,A156,MN!$C:$C,"<>" & "") -> 0 | M156: =SUMIFS(MN!$I:$I,MN!$E:$E,A156,MN!$C:$C,"<>" & "") -> 0 | N156: =SUMIFS(MN!$J:$J,MN!$E:$E,A156,MN!$C:$C,"<>" & "") -> 0 | O156: =SUMIFS(MN!$G:$G,MN!$E:$E,A156,MN!$D:$D,"<>" & "") -> 0 | P156: =SUMIFS(MN!$I:$I,MN!$E:$E,A156,MN!$D:$D,"<>" & "") -> 0 | Q156: =SUMIFS(MN!$J:$J,MN!$E:$E,A156,MN!$D:$D,"<>" & "") -> 0 | R156: 0 | S156: 0 | T156: 0 | AG156: =IFERROR(VLOOKUP(ROWS(AG2:AG156),AI2:AJ186,2,0),"") ->  | AI156: =IF(ISNUMBER(SEARCH(AL2,AJ156)),MAX(AI1:AI155)+1,0) -> 0
A157: 156 | B157: بنك | C157: كوردمخلوط | D157: 1سم | E157: بنك كوردمخلوط 1سم | I157: =SUMIFS(MN!$G:$G,MN!$E:$E,A157,MN!B:B,"<>" & "") -> 0 | J157: =SUMIFS(MN!$I:$I,MN!$E:$E,A157,MN!$B:$B,"<>" & "") -> 0 | K157: =SUMIFS(MN!$J:$J,MN!$E:$E,A157,MN!$B:$B,"<>" & "") -> 0 | L157: =SUMIFS(MN!$G:$G,MN!$E:$E,A157,MN!$C:$C,"<>" & "") -> 0 | M157: =SUMIFS(MN!$I:$I,MN!$E:$E,A157,MN!$C:$C,"<>" & "") -> 0 | N157: =SUMIFS(MN!$J:$J,MN!$E:$E,A157,MN!$C:$C,"<>" & "") -> 0 | O157: =SUMIFS(MN!$G:$G,MN!$E:$E,A157,MN!$D:$D,"<>" & "") -> 0 | P157: =SUMIFS(MN!$I:$I,MN!$E:$E,A157,MN!$D:$D,"<>" & "") -> 0 | Q157: =SUMIFS(MN!$J:$J,MN!$E:$E,A157,MN!$D:$D,"<>" & "") -> 0 | R157: 0 | S157: 0 | T157: 0 | AG157: =IFERROR(VLOOKUP(ROWS(AG2:AG157),AI2:AJ186,2,0),"") ->  | AI157: =IF(ISNUMBER(SEARCH(AL2,AJ157)),MAX(AI1:AI156)+1,0) -> 0
A158: 157 | B158: زيتى | C158: كوردمخلوط | D158: 1سم | E158: زيتى كوردمخلوط 1سم | I158: =SUMIFS(MN!$G:$G,MN!$E:$E,A158,MN!B:B,"<>" & "") -> 0 | J158: =SUMIFS(MN!$I:$I,MN!$E:$E,A158,MN!$B:$B,"<>" & "") -> 0 | K158: =SUMIFS(MN!$J:$J,MN!$E:$E,A158,MN!$B:$B,"<>" & "") -> 0 | L158: =SUMIFS(MN!$G:$G,MN!$E:$E,A158,MN!$C:$C,"<>" & "") -> 0 | M158: =SUMIFS(MN!$I:$I,MN!$E:$E,A158,MN!$C:$C,"<>" & "") -> 0 | N158: =SUMIFS(MN!$J:$J,MN!$E:$E,A158,MN!$C:$C,"<>" & "") -> 0 | O158: =SUMIFS(MN!$G:$G,MN!$E:$E,A158,MN!$D:$D,"<>" & "") -> 0 | P158: =SUMIFS(MN!$I:$I,MN!$E:$E,A158,MN!$D:$D,"<>" & "") -> 0 | Q158: =SUMIFS(MN!$J:$J,MN!$E:$E,A158,MN!$D:$D,"<>" & "") -> 0 | R158: 0 | S158: 0 | T158: 0 | AG158: =IFERROR(VLOOKUP(ROWS(AG2:AG158),AI2:AJ186,2,0),"") ->  | AI158: =IF(ISNUMBER(SEARCH(AL2,AJ158)),MAX(AI1:AI157)+1,0) -> 0
A159: 158 | B159: اسود694 | C159: كورشيه | D159: 2سم | E159: اسود694 كورشيه 2سم | F159: 275.04 | G159: 24984 | I159: =SUMIFS(MN!$G:$G,MN!$E:$E,A159,MN!B:B,"<>" & "") -> 0 | J159: =SUMIFS(MN!$I:$I,MN!$E:$E,A159,MN!$B:$B,"<>" & "") -> 0 | K159: =SUMIFS(MN!$J:$J,MN!$E:$E,A159,MN!$B:$B,"<>" & "") -> 0 | L159: =SUMIFS(MN!$G:$G,MN!$E:$E,A159,MN!$C:$C,"<>" & "") -> 0 | M159: =SUMIFS(MN!$I:$I,MN!$E:$E,A159,MN!$C:$C,"<>" & "") -> 0 | N159: =SUMIFS(MN!$J:$J,MN!$E:$E,A159,MN!$C:$C,"<>" & "") -> 0 | O159: =SUMIFS(MN!$G:$G,MN!$E:$E,A159,MN!$D:$D,"<>" & "") -> 0 | P159: =SUMIFS(MN!$I:$I,MN!$E:$E,A159,MN!$D:$D,"<>" & "") -> 0 | Q159: =SUMIFS(MN!$J:$J,MN!$E:$E,A159,MN!$D:$D,"<>" & "") -> 0 | R159: 275.04 | S159: 24984 | T159: 0 | AG159: =IFERROR(VLOOKUP(ROWS(AG2:AG159),AI2:AJ186,2,0),"") ->  | AI159: =IF(ISNUMBER(SEARCH(AL2,AJ159)),MAX(AI1:AI158)+1,0) -> 0
A160: 159 | B160: اسود612.2 | C160: كورشيه | D160: 2سم | E160: اسود612.2 كورشيه 2سم | F160: 519.52 | G160: 41561.6 | I160: =SUMIFS(MN!$G:$G,MN!$E:$E,A160,MN!B:B,"<>" & "") -> 0 | J160: =SUMIFS(MN!$I:$I,MN!$E:$E,A160,MN!$B:$B,"<>" & "") -> 0 | K160: =SUMIFS(MN!$J:$J,MN!$E:$E,A160,MN!$B:$B,"<>" & "") -> 0 | L160: =SUMIFS(MN!$G:$G,MN!$E:$E,A160,MN!$C:$C,"<>" & "") -> 0 | M160: =SUMIFS(MN!$I:$I,MN!$E:$E,A160,MN!$C:$C,"<>" & "") -> 0 | N160: =SUMIFS(MN!$J:$J,MN!$E:$E,A160,MN!$C:$C,"<>" & "") -> 0 | O160: =SUMIFS(MN!$G:$G,MN!$E:$E,A160,MN!$D:$D,"<>" & "") -> 0 | P160: =SUMIFS(MN!$I:$I,MN!$E:$E,A160,MN!$D:$D,"<>" & "") -> 0 | Q160: =SUMIFS(MN!$J:$J,MN!$E:$E,A160,MN!$D:$D,"<>" & "") -> 0 | R160: 519.52 | S160: 41561.6 | T160: 0 | AG160: =IFERROR(VLOOKUP(ROWS(AG2:AG160),AI2:AJ186,2,0),"") ->  | AI160: =IF(ISNUMBER(SEARCH(AL2,AJ160)),MAX(AI1:AI159)+1,0) -> 0
A161: 160 | B161: ابيض636 | C161: كورشيه | D161: 2سم | E161: ابيض636 كورشيه 2سم | F161: 122.24 | G161: 10176 | I161: =SUMIFS(MN!$G:$G,MN!$E:$E,A161,MN!B:B,"<>" & "") -> 0 | J161: =SUMIFS(MN!$I:$I,MN!$E:$E,A161,MN!$B:$B,"<>" & "") -> 0 | K161: =SUMIFS(MN!$J:$J,MN!$E:$E,A161,MN!$B:$B,"<>" & "") -> 0 | L161: =SUMIFS(MN!$G:$G,MN!$E:$E,A161,MN!$C:$C,"<>" & "") -> 0 | M161: =SUMIFS(MN!$I:$I,MN!$E:$E,A161,MN!$C:$C,"<>" & "") -> 0 | N161: =SUMIFS(MN!$J:$J,MN!$E:$E,A161,MN!$C:$C,"<>" & "") -> 0 | O161: =SUMIFS(MN!$G:$G,MN!$E:$E,A161,MN!$D:$D,"<>" & "") -> 0 | P161: =SUMIFS(MN!$I:$I,MN!$E:$E,A161,MN!$D:$D,"<>" & "") -> 0 | Q161: =SUMIFS(MN!$J:$J,MN!$E:$E,A161,MN!$D:$D,"<>" & "") -> 0 | R161: 122.24 | S161: 10176 | T161: 0 | AG161: =IFERROR(VLOOKUP(ROWS(AG2:AG161),AI2:AJ186,2,0),"") ->  | AI161: =IF(ISNUMBER(SEARCH(AL2,AJ161)),MAX(AI1:AI160)+1,0) -> 0
A162: 161 | B162: اسود | C162: كورشيه | D162: 1.3سم | E162: اسود كورشيه 1.3سم | F162: 382 | G162: 38450 | I162: =SUMIFS(MN!$G:$G,MN!$E:$E,A162,MN!B:B,"<>" & "") -> 0 | J162: =SUMIFS(MN!$I:$I,MN!$E:$E,A162,MN!$B:$B,"<>" & "") -> 0 | K162: =SUMIFS(MN!$J:$J,MN!$E:$E,A162,MN!$B:$B,"<>" & "") -> 0 | L162: =SUMIFS(MN!$G:$G,MN!$E:$E,A162,MN!$C:$C,"<>" & "") -> 0 | M162: =SUMIFS(MN!$I:$I,MN!$E:$E,A162,MN!$C:$C,"<>" & "") -> 0 | N162: =SUMIFS(MN!$J:$J,MN!$E:$E,A162,MN!$C:$C,"<>" & "") -> 0 | O162: =SUMIFS(MN!$G:$G,MN!$E:$E,A162,MN!$D:$D,"<>" & "") -> 0 | P162: =SUMIFS(MN!$I:$I,MN!$E:$E,A162,MN!$D:$D,"<>" & "") -> 0 | Q162: =SUMIFS(MN!$J:$J,MN!$E:$E,A162,MN!$D:$D,"<>" & "") -> 0 | R162: 382 | S162: 38450 | T162: 0 | AG162: =IFERROR(VLOOKUP(ROWS(AG2:AG162),AI2:AJ186,2,0),"") ->  | AI162: =IF(ISNUMBER(SEARCH(AL2,AJ162)),MAX(AI1:AI161)+1,0) -> 0
A163: 162 | B163: اسود | C163: كروشية فابلوس | D163: 5سم | E163: اسود كروشية فابلوس 5سم | I163: =SUMIFS(MN!$G:$G,MN!$E:$E,A163,MN!B:B,"<>" & "") -> 0 | J163: =SUMIFS(MN!$I:$I,MN!$E:$E,A163,MN!$B:$B,"<>" & "") -> 0 | K163: =SUMIFS(MN!$J:$J,MN!$E:$E,A163,MN!$B:$B,"<>" & "") -> 0 | L163: =SUMIFS(MN!$G:$G,MN!$E:$E,A163,MN!$C:$C,"<>" & "") -> 0 | M163: =SUMIFS(MN!$I:$I,MN!$E:$E,A163,MN!$C:$C,"<>" & "") -> 0 | N163: =SUMIFS(MN!$J:$J,MN!$E:$E,A163,MN!$C:$C,"<>" & "") -> 0 | O163: =SUMIFS(MN!$G:$G,MN!$E:$E,A163,MN!$D:$D,"<>" & "") -> 0 | P163: =SUMIFS(MN!$I:$I,MN!$E:$E,A163,MN!$D:$D,"<>" & "") -> 0 | Q163: =SUMIFS(MN!$J:$J,MN!$E:$E,A163,MN!$D:$D,"<>" & "") -> 0 | R163: 0 | S163: 0 | T163: 0 | AG163: =IFERROR(VLOOKUP(ROWS(AG2:AG163),AI2:AJ186,2,0),"") ->  | AI163: =IF(ISNUMBER(SEARCH(AL2,AJ163)),MAX(AI1:AI162)+1,0) -> 0
A164: 163 | B164: ابيض | C164: كروشية اسك | D164: 5سم | E164: ابيض كروشية اسك 5سم | I164: =SUMIFS(MN!$G:$G,MN!$E:$E,A164,MN!B:B,"<>" & "") -> 0 | J164: =SUMIFS(MN!$I:$I,MN!$E:$E,A164,MN!$B:$B,"<>" & "") -> 0 | K164: =SUMIFS(MN!$J:$J,MN!$E:$E,A164,MN!$B:$B,"<>" & "") -> 0 | L164: =SUMIFS(MN!$G:$G,MN!$E:$E,A164,MN!$C:$C,"<>" & "") -> 0 | M164: =SUMIFS(MN!$I:$I,MN!$E:$E,A164,MN!$C:$C,"<>" & "") -> 0 | N164: =SUMIFS(MN!$J:$J,MN!$E:$E,A164,MN!$C:$C,"<>" & "") -> 0 | O164: =SUMIFS(MN!$G:$G,MN!$E:$E,A164,MN!$D:$D,"<>" & "") -> 0 | P164: =SUMIFS(MN!$I:$I,MN!$E:$E,A164,MN!$D:$D,"<>" & "") -> 0 | Q164: =SUMIFS(MN!$J:$J,MN!$E:$E,A164,MN!$D:$D,"<>" & "") -> 0 | R164: 0 | S164: 0 | T164: 0 | AG164: =IFERROR(VLOOKUP(ROWS(AG2:AG164),AI2:AJ186,2,0),"") ->  | AI164: =IF(ISNUMBER(SEARCH(AL2,AJ164)),MAX(AI1:AI163)+1,0) -> 0
A165: 164 | B165: ابيض | C165: كروشية المتحدة | D165: 4.5سم | E165: ابيض كروشية المتحدة 4.5سم | I165: =SUMIFS(MN!$G:$G,MN!$E:$E,A165,MN!B:B,"<>" & "") -> 0 | J165: =SUMIFS(MN!$I:$I,MN!$E:$E,A165,MN!$B:$B,"<>" & "") -> 0 | K165: =SUMIFS(MN!$J:$J,MN!$E:$E,A165,MN!$B:$B,"<>" & "") -> 0 | L165: =SUMIFS(MN!$G:$G,MN!$E:$E,A165,MN!$C:$C,"<>" & "") -> 0 | M165: =SUMIFS(MN!$I:$I,MN!$E:$E,A165,MN!$C:$C,"<>" & "") -> 0 | N165: =SUMIFS(MN!$J:$J,MN!$E:$E,A165,MN!$C:$C,"<>" & "") -> 0 | O165: =SUMIFS(MN!$G:$G,MN!$E:$E,A165,MN!$D:$D,"<>" & "") -> 0 | P165: =SUMIFS(MN!$I:$I,MN!$E:$E,A165,MN!$D:$D,"<>" & "") -> 0 | Q165: =SUMIFS(MN!$J:$J,MN!$E:$E,A165,MN!$D:$D,"<>" & "") -> 0 | R165: 0 | S165: 0 | T165: 0 | AG165: =IFERROR(VLOOKUP(ROWS(AG2:AG165),AI2:AJ186,2,0),"") ->  | AI165: =IF(ISNUMBER(SEARCH(AL2,AJ165)),MAX(AI1:AI164)+1,0) -> 0
A166: 165 | B166: اسود | C166: كروشية عجيبة | D166: 7مليمتر | E166: اسود كروشية عجيبة 7مليمتر | I166: =SUMIFS(MN!$G:$G,MN!$E:$E,A166,MN!B:B,"<>" & "") -> 0 | J166: =SUMIFS(MN!$I:$I,MN!$E:$E,A166,MN!$B:$B,"<>" & "") -> 0 | K166: =SUMIFS(MN!$J:$J,MN!$E:$E,A166,MN!$B:$B,"<>" & "") -> 0 | L166: =SUMIFS(MN!$G:$G,MN!$E:$E,A166,MN!$C:$C,"<>" & "") -> 0 | M166: =SUMIFS(MN!$I:$I,MN!$E:$E,A166,MN!$C:$C,"<>" & "") -> 0 | N166: =SUMIFS(MN!$J:$J,MN!$E:$E,A166,MN!$C:$C,"<>" & "") -> 0 | O166: =SUMIFS(MN!$G:$G,MN!$E:$E,A166,MN!$D:$D,"<>" & "") -> 0 | P166: =SUMIFS(MN!$I:$I,MN!$E:$E,A166,MN!$D:$D,"<>" & "") -> 0 | Q166: =SUMIFS(MN!$J:$J,MN!$E:$E,A166,MN!$D:$D,"<>" & "") -> 0 | R166: 0 | S166: 0 | T166: 0 | AG166: =IFERROR(VLOOKUP(ROWS(AG2:AG166),AI2:AJ186,2,0),"") ->  | AI166: =IF(ISNUMBER(SEARCH(AL2,AJ166)),MAX(AI1:AI165)+1,0) -> 0
A167: 166 | B167: ابيض | C167: كروشية عجيبة | D167: 7مليمتر | E167: ابيض كروشية عجيبة 7مليمتر | I167: =SUMIFS(MN!$G:$G,MN!$E:$E,A167,MN!B:B,"<>" & "") -> 0 | J167: =SUMIFS(MN!$I:$I,MN!$E:$E,A167,MN!$B:$B,"<>" & "") -> 0 | K167: =SUMIFS(MN!$J:$J,MN!$E:$E,A167,MN!$B:$B,"<>" & "") -> 0 | L167: =SUMIFS(MN!$G:$G,MN!$E:$E,A167,MN!$C:$C,"<>" & "") -> 0 | M167: =SUMIFS(MN!$I:$I,MN!$E:$E,A167,MN!$C:$C,"<>" & "") -> 0 | N167: =SUMIFS(MN!$J:$J,MN!$E:$E,A167,MN!$C:$C,"<>" & "") -> 0 | O167: =SUMIFS(MN!$G:$G,MN!$E:$E,A167,MN!$D:$D,"<>" & "") -> 0 | P167: =SUMIFS(MN!$I:$I,MN!$E:$E,A167,MN!$D:$D,"<>" & "") -> 0 | Q167: =SUMIFS(MN!$J:$J,MN!$E:$E,A167,MN!$D:$D,"<>" & "") -> 0 | R167: 0 | S167: 0 | T167: 0 | AG167: =IFERROR(VLOOKUP(ROWS(AG2:AG167),AI2:AJ186,2,0),"") ->  | AI167: =IF(ISNUMBER(SEARCH(AL2,AJ167)),MAX(AI1:AI166)+1,0) -> 0
A168: 167 | B168: ابيض | C168: كروشية جيت | D168: 5مليمتر | E168: ابيض كروشية جيت 5مليمتر | I168: =SUMIFS(MN!$G:$G,MN!$E:$E,A168,MN!B:B,"<>" & "") -> 0 | J168: =SUMIFS(MN!$I:$I,MN!$E:$E,A168,MN!$B:$B,"<>" & "") -> 0 | K168: =SUMIFS(MN!$J:$J,MN!$E:$E,A168,MN!$B:$B,"<>" & "") -> 0 | L168: =SUMIFS(MN!$G:$G,MN!$E:$E,A168,MN!$C:$C,"<>" & "") -> 0 | M168: =SUMIFS(MN!$I:$I,MN!$E:$E,A168,MN!$C:$C,"<>" & "") -> 0 | N168: =SUMIFS(MN!$J:$J,MN!$E:$E,A168,MN!$C:$C,"<>" & "") -> 0 | O168: =SUMIFS(MN!$G:$G,MN!$E:$E,A168,MN!$D:$D,"<>" & "") -> 0 | P168: =SUMIFS(MN!$I:$I,MN!$E:$E,A168,MN!$D:$D,"<>" & "") -> 0 | Q168: =SUMIFS(MN!$J:$J,MN!$E:$E,A168,MN!$D:$D,"<>" & "") -> 0 | R168: 0 | S168: 0 | T168: 0 | AG168: =IFERROR(VLOOKUP(ROWS(AG2:AG168),AI2:AJ186,2,0),"") ->  | AI168: =IF(ISNUMBER(SEARCH(AL2,AJ168)),MAX(AI1:AI167)+1,0) -> 0
A169: 168 | B169: اسود | C169: ويفين تاون جروب | D169: 4سم | E169: اسود ويفين تاون جروب 4سم | I169: =SUMIFS(MN!$G:$G,MN!$E:$E,A169,MN!B:B,"<>" & "") -> 0 | J169: =SUMIFS(MN!$I:$I,MN!$E:$E,A169,MN!$B:$B,"<>" & "") -> 0 | K169: =SUMIFS(MN!$J:$J,MN!$E:$E,A169,MN!$B:$B,"<>" & "") -> 0 | L169: =SUMIFS(MN!$G:$G,MN!$E:$E,A169,MN!$C:$C,"<>" & "") -> 0 | M169: =SUMIFS(MN!$I:$I,MN!$E:$E,A169,MN!$C:$C,"<>" & "") -> 0 | N169: =SUMIFS(MN!$J:$J,MN!$E:$E,A169,MN!$C:$C,"<>" & "") -> 0 | O169: =SUMIFS(MN!$G:$G,MN!$E:$E,A169,MN!$D:$D,"<>" & "") -> 0 | P169: =SUMIFS(MN!$I:$I,MN!$E:$E,A169,MN!$D:$D,"<>" & "") -> 0 | Q169: =SUMIFS(MN!$J:$J,MN!$E:$E,A169,MN!$D:$D,"<>" & "") -> 0 | R169: 0 | S169: 0 | T169: 0 | AG169: =IFERROR(VLOOKUP(ROWS(AG2:AG169),AI2:AJ186,2,0),"") ->  | AI169: =IF(ISNUMBER(SEARCH(AL2,AJ169)),MAX(AI1:AI168)+1,0) -> 0
A170: 169 | B170: اسود X رصاصى | C170: كوردبولستر فابلس | D170: 1سم | E170: اسود X رصاصى كوردبولستر فابلس 1سم | I170: =SUMIFS(MN!$G:$G,MN!$E:$E,A170,MN!B:B,"<>" & "") -> 0 | J170: =SUMIFS(MN!$I:$I,MN!$E:$E,A170,MN!$B:$B,"<>" & "") -> 0 | K170: =SUMIFS(MN!$J:$J,MN!$E:$E,A170,MN!$B:$B,"<>" & "") -> 0 | L170: =SUMIFS(MN!$G:$G,MN!$E:$E,A170,MN!$C:$C,"<>" & "") -> 0 | M170: =SUMIFS(MN!$I:$I,MN!$E:$E,A170,MN!$C:$C,"<>" & "") -> 0 | N170: =SUMIFS(MN!$J:$J,MN!$E:$E,A170,MN!$C:$C,"<>" & "") -> 0 | O170: =SUMIFS(MN!$G:$G,MN!$E:$E,A170,MN!$D:$D,"<>" & "") -> 0 | P170: =SUMIFS(MN!$I:$I,MN!$E:$E,A170,MN!$D:$D,"<>" & "") -> 0 | Q170: =SUMIFS(MN!$J:$J,MN!$E:$E,A170,MN!$D:$D,"<>" & "") -> 0 | R170: 0 | S170: 0 | T170: 0 | AG170: =IFERROR(VLOOKUP(ROWS(AG2:AG170),AI2:AJ186,2,0),"") ->  | AI170: =IF(ISNUMBER(SEARCH(AL2,AJ170)),MAX(AI1:AI169)+1,0) -> 0
A171: 170 | B171: ابيض | C171: كروشية جولدستار | D171: 3.5سم | E171: ابيض كروشية جولدستار 3.5سم | I171: =SUMIFS(MN!$G:$G,MN!$E:$E,A171,MN!B:B,"<>" & "") -> 0 | J171: =SUMIFS(MN!$I:$I,MN!$E:$E,A171,MN!$B:$B,"<>" & "") -> 0 | K171: =SUMIFS(MN!$J:$J,MN!$E:$E,A171,MN!$B:$B,"<>" & "") -> 0 | L171: =SUMIFS(MN!$G:$G,MN!$E:$E,A171,MN!$C:$C,"<>" & "") -> 0 | M171: =SUMIFS(MN!$I:$I,MN!$E:$E,A171,MN!$C:$C,"<>" & "") -> 0 | N171: =SUMIFS(MN!$J:$J,MN!$E:$E,A171,MN!$C:$C,"<>" & "") -> 0 | O171: =SUMIFS(MN!$G:$G,MN!$E:$E,A171,MN!$D:$D,"<>" & "") -> 0 | P171: =SUMIFS(MN!$I:$I,MN!$E:$E,A171,MN!$D:$D,"<>" & "") -> 0 | Q171: =SUMIFS(MN!$J:$J,MN!$E:$E,A171,MN!$D:$D,"<>" & "") -> 0 | R171: 0 | S171: 0 | T171: 0 | AG171: =IFERROR(VLOOKUP(ROWS(AG2:AG171),AI2:AJ186,2,0),"") ->  | AI171: =IF(ISNUMBER(SEARCH(AL2,AJ171)),MAX(AI1:AI170)+1,0) -> 0
A172: 171 | B172: اسود | C172: كروشية فابلس | D172: 4.5سم | E172: اسود كروشية فابلس 4.5سم | I172: =SUMIFS(MN!$G:$G,MN!$E:$E,A172,MN!B:B,"<>" & "") -> 0 | J172: =SUMIFS(MN!$I:$I,MN!$E:$E,A172,MN!$B:$B,"<>" & "") -> 0 | K172: =SUMIFS(MN!$J:$J,MN!$E:$E,A172,MN!$B:$B,"<>" & "") -> 0 | L172: =SUMIFS(MN!$G:$G,MN!$E:$E,A172,MN!$C:$C,"<>" & "") -> 0 | M172: =SUMIFS(MN!$I:$I,MN!$E:$E,A172,MN!$C:$C,"<>" & "") -> 0 | N172: =SUMIFS(MN!$J:$J,MN!$E:$E,A172,MN!$C:$C,"<>" & "") -> 0 | O172: =SUMIFS(MN!$G:$G,MN!$E:$E,A172,MN!$D:$D,"<>" & "") -> 0 | P172: =SUMIFS(MN!$I:$I,MN!$E:$E,A172,MN!$D:$D,"<>" & "") -> 0 | Q172: =SUMIFS(MN!$J:$J,MN!$E:$E,A172,MN!$D:$D,"<>" & "") -> 0 | R172: 0 | S172: 0 | T172: 0 | AG172: =IFERROR(VLOOKUP(ROWS(AG2:AG172),AI2:AJ186,2,0),"") ->  | AI172: =IF(ISNUMBER(SEARCH(AL2,AJ172)),MAX(AI1:AI171)+1,0) -> 0
A173: 172 | B173: ابيض | C173: كروشية اسك | D173: 3سم | E173: ابيض كروشية اسك 3سم | I173: =SUMIFS(MN!$G:$G,MN!$E:$E,A173,MN!B:B,"<>" & "") -> 0 | J173: =SUMIFS(MN!$I:$I,MN!$E:$E,A173,MN!$B:$B,"<>" & "") -> 0 | K173: =SUMIFS(MN!$J:$J,MN!$E:$E,A173,MN!$B:$B,"<>" & "") -> 0 | L173: =SUMIFS(MN!$G:$G,MN!$E:$E,A173,MN!$C:$C,"<>" & "") -> 0 | M173: =SUMIFS(MN!$I:$I,MN!$E:$E,A173,MN!$C:$C,"<>" & "") -> 0 | N173: =SUMIFS(MN!$J:$J,MN!$E:$E,A173,MN!$C:$C,"<>" & "") -> 0 | O173: =SUMIFS(MN!$G:$G,MN!$E:$E,A173,MN!$D:$D,"<>" & "") -> 0 | P173: =SUMIFS(MN!$I:$I,MN!$E:$E,A173,MN!$D:$D,"<>" & "") -> 0 | Q173: =SUMIFS(MN!$J:$J,MN!$E:$E,A173,MN!$D:$D,"<>" & "") -> 0 | R173: 0 | S173: 0 | T173: 0 | AG173: =IFERROR(VLOOKUP(ROWS(AG2:AG173),AI2:AJ186,2,0),"") ->  | AI173: =IF(ISNUMBER(SEARCH(AL2,AJ173)),MAX(AI1:AI172)+1,0) -> 0
A174: 173 | B174: ابيض | C174: ويفين ELVAN | D174: 2سم | E174: ابيض ويفين ELVAN 2سم | I174: =SUMIFS(MN!$G:$G,MN!$E:$E,A174,MN!B:B,"<>" & "") -> 0 | J174: =SUMIFS(MN!$I:$I,MN!$E:$E,A174,MN!$B:$B,"<>" & "") -> 0 | K174: =SUMIFS(MN!$J:$J,MN!$E:$E,A174,MN!$B:$B,"<>" & "") -> 0 | L174: =SUMIFS(MN!$G:$G,MN!$E:$E,A174,MN!$C:$C,"<>" & "") -> 0 | M174: =SUMIFS(MN!$I:$I,MN!$E:$E,A174,MN!$C:$C,"<>" & "") -> 0 | N174: =SUMIFS(MN!$J:$J,MN!$E:$E,A174,MN!$C:$C,"<>" & "") -> 0 | O174: =SUMIFS(MN!$G:$G,MN!$E:$E,A174,MN!$D:$D,"<>" & "") -> 0 | P174: =SUMIFS(MN!$I:$I,MN!$E:$E,A174,MN!$D:$D,"<>" & "") -> 0 | Q174: =SUMIFS(MN!$J:$J,MN!$E:$E,A174,MN!$D:$D,"<>" & "") -> 0 | R174: 0 | S174: 0 | T174: 0 | AG174: =IFERROR(VLOOKUP(ROWS(AG2:AG174),AI2:AJ186,2,0),"") ->  | AI174: =IF(ISNUMBER(SEARCH(AL2,AJ174)),MAX(AI1:AI173)+1,0) -> 0
A175: 174 | B175: ابيض | C175: الصياد SD-ING-19 | D175: 1.9سم | E175: ابيض الصياد SD-ING-19 1.9سم | G175: 26740 | I175: =SUMIFS(MN!$G:$G,MN!$E:$E,A175,MN!B:B,"<>" & "") -> 0 | J175: =SUMIFS(MN!$I:$I,MN!$E:$E,A175,MN!$B:$B,"<>" & "") -> 0 | K175: =SUMIFS(MN!$J:$J,MN!$E:$E,A175,MN!$B:$B,"<>" & "") -> 0 | L175: =SUMIFS(MN!$G:$G,MN!$E:$E,A175,MN!$C:$C,"<>" & "") -> 0 | M175: =SUMIFS(MN!$I:$I,MN!$E:$E,A175,MN!$C:$C,"<>" & "") -> 0 | N175: =SUMIFS(MN!$J:$J,MN!$E:$E,A175,MN!$C:$C,"<>" & "") -> 0 | O175: =SUMIFS(MN!$G:$G,MN!$E:$E,A175,MN!$D:$D,"<>" & "") -> 0 | P175: =SUMIFS(MN!$I:$I,MN!$E:$E,A175,MN!$D:$D,"<>" & "") -> 0 | Q175: =SUMIFS(MN!$J:$J,MN!$E:$E,A175,MN!$D:$D,"<>" & "") -> 0 | R175: 0 | S175: 26740 | T175: 0 | AG175: =IFERROR(VLOOKUP(ROWS(AG2:AG175),AI2:AJ186,2,0),"") ->  | AI175: =IF(ISNUMBER(SEARCH(AL2,AJ175)),MAX(AI1:AI174)+1,0) -> 0
A176: 175 | B176: ابيض | C176: اسك AS-IMG-40 | D176: 4سم | E176: ابيض اسك AS-IMG-40 4سم | I176: =SUMIFS(MN!$G:$G,MN!$E:$E,A176,MN!B:B,"<>" & "") -> 0 | J176: =SUMIFS(MN!$I:$I,MN!$E:$E,A176,MN!$B:$B,"<>" & "") -> 0 | K176: =SUMIFS(MN!$J:$J,MN!$E:$E,A176,MN!$B:$B,"<>" & "") -> 0 | L176: =SUMIFS(MN!$G:$G,MN!$E:$E,A176,MN!$C:$C,"<>" & "") -> 0 | M176: =SUMIFS(MN!$I:$I,MN!$E:$E,A176,MN!$C:$C,"<>" & "") -> 0 | N176: =SUMIFS(MN!$J:$J,MN!$E:$E,A176,MN!$C:$C,"<>" & "") -> 0 | O176: =SUMIFS(MN!$G:$G,MN!$E:$E,A176,MN!$D:$D,"<>" & "") -> 0 | P176: =SUMIFS(MN!$I:$I,MN!$E:$E,A176,MN!$D:$D,"<>" & "") -> 0 | Q176: =SUMIFS(MN!$J:$J,MN!$E:$E,A176,MN!$D:$D,"<>" & "") -> 0 | R176: 0 | S176: 0 | T176: 0 | AG176: =IFERROR(VLOOKUP(ROWS(AG2:AG176),AI2:AJ186,2,0),"") ->  | AI176: =IF(ISNUMBER(SEARCH(AL2,AJ176)),MAX(AI1:AI175)+1,0) -> 0
A177: 176 | B177: اسود | C177: كروشية اسك AS-IMG-50 | D177: 5سم | E177: اسود كروشية اسك AS-IMG-50 5سم | G177: 7360 | I177: =SUMIFS(MN!$G:$G,MN!$E:$E,A177,MN!B:B,"<>" & "") -> 0 | J177: =SUMIFS(MN!$I:$I,MN!$E:$E,A177,MN!$B:$B,"<>" & "") -> 0 | K177: =SUMIFS(MN!$J:$J,MN!$E:$E,A177,MN!$B:$B,"<>" & "") -> 0 | L177: =SUMIFS(MN!$G:$G,MN!$E:$E,A177,MN!$C:$C,"<>" & "") -> 0 | M177: =SUMIFS(MN!$I:$I,MN!$E:$E,A177,MN!$C:$C,"<>" & "") -> 0 | N177: =SUMIFS(MN!$J:$J,MN!$E:$E,A177,MN!$C:$C,"<>" & "") -> 0 | O177: =SUMIFS(MN!$G:$G,MN!$E:$E,A177,MN!$D:$D,"<>" & "") -> 0 | P177: =SUMIFS(MN!$I:$I,MN!$E:$E,A177,MN!$D:$D,"<>" & "") -> 0 | Q177: =SUMIFS(MN!$J:$J,MN!$E:$E,A177,MN!$D:$D,"<>" & "") -> 0 | R177: 0 | S177: 7360 | T177: 0 | AG177: =IFERROR(VLOOKUP(ROWS(AG2:AG177),AI2:AJ186,2,0),"") ->  | AI177: =IF(ISNUMBER(SEARCH(AL2,AJ177)),MAX(AI1:AI176)+1,0) -> 0
A178: 177 | B178: اسود | C178: كروشية سويت جيرل SG-IMG-35 | D178: 3.5سم | E178: اسود كروشية سويت جيرل SG-IMG-35 3.5سم | G178: 3920 | I178: =SUMIFS(MN!$G:$G,MN!$E:$E,A178,MN!B:B,"<>" & "") -> 0 | J178: =SUMIFS(MN!$I:$I,MN!$E:$E,A178,MN!$B:$B,"<>" & "") -> 0 | K178: =SUMIFS(MN!$J:$J,MN!$E:$E,A178,MN!$B:$B,"<>" & "") -> 0 | L178: =SUMIFS(MN!$G:$G,MN!$E:$E,A178,MN!$C:$C,"<>" & "") -> 0 | M178: =SUMIFS(MN!$I:$I,MN!$E:$E,A178,MN!$C:$C,"<>" & "") -> 0 | N178: =SUMIFS(MN!$J:$J,MN!$E:$E,A178,MN!$C:$C,"<>" & "") -> 0 | O178: =SUMIFS(MN!$G:$G,MN!$E:$E,A178,MN!$D:$D,"<>" & "") -> 0 | P178: =SUMIFS(MN!$I:$I,MN!$E:$E,A178,MN!$D:$D,"<>" & "") -> 0 | Q178: =SUMIFS(MN!$J:$J,MN!$E:$E,A178,MN!$D:$D,"<>" & "") -> 0 | R178: 0 | S178: 3920 | T178: 0 | AG178: =IFERROR(VLOOKUP(ROWS(AG2:AG178),AI2:AJ186,2,0),"") ->  | AI178: =IF(ISNUMBER(SEARCH(AL2,AJ178)),MAX(AI1:AI177)+1,0) -> 0
A179: 178 | B179: اسود | C179: كروشية المتحدةCO-IMG-65 | D179: 6.5سم | E179: اسود كروشية المتحدةCO-IMG-65 6.5سم | G179: 7986 | I179: =SUMIFS(MN!$G:$G,MN!$E:$E,A179,MN!B:B,"<>" & "") -> 0 | J179: =SUMIFS(MN!$I:$I,MN!$E:$E,A179,MN!$B:$B,"<>" & "") -> 0 | K179: =SUMIFS(MN!$J:$J,MN!$E:$E,A179,MN!$B:$B,"<>" & "") -> 0 | L179: =SUMIFS(MN!$G:$G,MN!$E:$E,A179,MN!$C:$C,"<>" & "") -> 0 | M179: =SUMIFS(MN!$I:$I,MN!$E:$E,A179,MN!$C:$C,"<>" & "") -> 0 | N179: =SUMIFS(MN!$J:$J,MN!$E:$E,A179,MN!$C:$C,"<>" & "") -> 0 | O179: =SUMIFS(MN!$G:$G,MN!$E:$E,A179,MN!$D:$D,"<>" & "") -> 0 | P179: =SUMIFS(MN!$I:$I,MN!$E:$E,A179,MN!$D:$D,"<>" & "") -> 0 | Q179: =SUMIFS(MN!$J:$J,MN!$E:$E,A179,MN!$D:$D,"<>" & "") -> 0 | R179: 0 | S179: 7986 | T179: 0 | AG179: =IFERROR(VLOOKUP(ROWS(AG2:AG179),AI2:AJ186,2,0),"") ->  | AI179: =IF(ISNUMBER(SEARCH(AL2,AJ179)),MAX(AI1:AI178)+1,0) -> 0
A180: 179 | B180: اسود | C180: كروشية سويت جيرل SG-IMG-50 | D180: 5سم | E180: اسود كروشية سويت جيرل SG-IMG-50 5سم | G180: 4980 | I180: =SUMIFS(MN!$G:$G,MN!$E:$E,A180,MN!B:B,"<>" & "") -> 0 | J180: =SUMIFS(MN!$I:$I,MN!$E:$E,A180,MN!$B:$B,"<>" & "") -> 0 | K180: =SUMIFS(MN!$J:$J,MN!$E:$E,A180,MN!$B:$B,"<>" & "") -> 0 | L180: =SUMIFS(MN!$G:$G,MN!$E:$E,A180,MN!$C:$C,"<>" & "") -> 0 | M180: =SUMIFS(MN!$I:$I,MN!$E:$E,A180,MN!$C:$C,"<>" & "") -> 0 | N180: =SUMIFS(MN!$J:$J,MN!$E:$E,A180,MN!$C:$C,"<>" & "") -> 0 | O180: =SUMIFS(MN!$G:$G,MN!$E:$E,A180,MN!$D:$D,"<>" & "") -> 0 | P180: =SUMIFS(MN!$I:$I,MN!$E:$E,A180,MN!$D:$D,"<>" & "") -> 0 | Q180: =SUMIFS(MN!$J:$J,MN!$E:$E,A180,MN!$D:$D,"<>" & "") -> 0 | R180: 0 | S180: 4980 | T180: 0 | AG180: =IFERROR(VLOOKUP(ROWS(AG2:AG180),AI2:AJ186,2,0),"") ->  | AI180: =IF(ISNUMBER(SEARCH(AL2,AJ180)),MAX(AI1:AI179)+1,0) -> 0
A181: 180 | B181: اسود | C181: كروشية المتحدة CO-IMG-63 | D181: 6.3سم | E181: اسود كروشية المتحدة CO-IMG-63 6.3سم | G181: 1024 | I181: =SUMIFS(MN!$G:$G,MN!$E:$E,A181,MN!B:B,"<>" & "") -> 0 | J181: =SUMIFS(MN!$I:$I,MN!$E:$E,A181,MN!$B:$B,"<>" & "") -> 0 | K181: =SUMIFS(MN!$J:$J,MN!$E:$E,A181,MN!$B:$B,"<>" & "") -> 0 | L181: =SUMIFS(MN!$G:$G,MN!$E:$E,A181,MN!$C:$C,"<>" & "") -> 0 | M181: =SUMIFS(MN!$I:$I,MN!$E:$E,A181,MN!$C:$C,"<>" & "") -> 0 | N181: =SUMIFS(MN!$J:$J,MN!$E:$E,A181,MN!$C:$C,"<>" & "") -> 0 | O181: =SUMIFS(MN!$G:$G,MN!$E:$E,A181,MN!$D:$D,"<>" & "") -> 0 | P181: =SUMIFS(MN!$I:$I,MN!$E:$E,A181,MN!$D:$D,"<>" & "") -> 0 | Q181: =SUMIFS(MN!$J:$J,MN!$E:$E,A181,MN!$D:$D,"<>" & "") -> 0 | R181: 0 | S181: 1024 | T181: 0 | AG181: =IFERROR(VLOOKUP(ROWS(AG2:AG181),AI2:AJ186,2,0),"") ->  | AI181: =IF(ISNUMBER(SEARCH(AL2,AJ181)),MAX(AI1:AI180)+1,0) -> 0
A182: 181 | B182: اسود | C182: كروشية سويت جيرل SG-IMG-55 | D182: 5.5سم | E182: اسود كروشية سويت جيرل SG-IMG-55 5.5سم | G182: 1006 | I182: =SUMIFS(MN!$G:$G,MN!$E:$E,A182,MN!B:B,"<>" & "") -> 0 | J182: =SUMIFS(MN!$I:$I,MN!$E:$E,A182,MN!$B:$B,"<>" & "") -> 0 | K182: =SUMIFS(MN!$J:$J,MN!$E:$E,A182,MN!$B:$B,"<>" & "") -> 0 | L182: =SUMIFS(MN!$G:$G,MN!$E:$E,A182,MN!$C:$C,"<>" & "") -> 0 | M182: =SUMIFS(MN!$I:$I,MN!$E:$E,A182,MN!$C:$C,"<>" & "") -> 0 | N182: =SUMIFS(MN!$J:$J,MN!$E:$E,A182,MN!$C:$C,"<>" & "") -> 0 | O182: =SUMIFS(MN!$G:$G,MN!$E:$E,A182,MN!$D:$D,"<>" & "") -> 0 | P182: =SUMIFS(MN!$I:$I,MN!$E:$E,A182,MN!$D:$D,"<>" & "") -> 0 | Q182: =SUMIFS(MN!$J:$J,MN!$E:$E,A182,MN!$D:$D,"<>" & "") -> 0 | R182: 0 | S182: 1006 | T182: 0 | AG182: =IFERROR(VLOOKUP(ROWS(AG2:AG182),AI2:AJ186,2,0),"") ->  | AI182: =IF(ISNUMBER(SEARCH(AL2,AJ182)),MAX(AI1:AI181)+1,0) -> 0
A183: 182 | B183: ابيض | C183: كروشية جولدستار G-IMG-45 | D183: 4.5سم | E183: ابيض كروشية جولدستار G-IMG-45 4.5سم | G183: 6650.38 | I183: =SUMIFS(MN!$G:$G,MN!$E:$E,A183,MN!B:B,"<>" & "") -> 0 | J183: =SUMIFS(MN!$I:$I,MN!$E:$E,A183,MN!$B:$B,"<>" & "") -> 0 | K183: =SUMIFS(MN!$J:$J,MN!$E:$E,A183,MN!$B:$B,"<>" & "") -> 0 | L183: =SUMIFS(MN!$G:$G,MN!$E:$E,A183,MN!$C:$C,"<>" & "") -> 0 | M183: =SUMIFS(MN!$I:$I,MN!$E:$E,A183,MN!$C:$C,"<>" & "") -> 0 | N183: =SUMIFS(MN!$J:$J,MN!$E:$E,A183,MN!$C:$C,"<>" & "") -> 0 | O183: =SUMIFS(MN!$G:$G,MN!$E:$E,A183,MN!$D:$D,"<>" & "") -> 0 | P183: =SUMIFS(MN!$I:$I,MN!$E:$E,A183,MN!$D:$D,"<>" & "") -> 0 | Q183: =SUMIFS(MN!$J:$J,MN!$E:$E,A183,MN!$D:$D,"<>" & "") -> 0 | R183: 0 | S183: 6650.38 | T183: 0 | AG183: =IFERROR(VLOOKUP(ROWS(AG2:AG183),AI2:AJ186,2,0),"") ->  | AI183: =IF(ISNUMBER(SEARCH(AL2,AJ183)),MAX(AI1:AI182)+1,0) -> 0
A184: 183 | B184: ابيض | C184: كروشية جولدستارG-IMG-6 | D184: 6سم | E184: ابيض كروشية جولدستارG-IMG-6 6سم | G184: 4370 | I184: =SUMIFS(MN!$G:$G,MN!$E:$E,A184,MN!B:B,"<>" & "") -> 0 | J184: =SUMIFS(MN!$I:$I,MN!$E:$E,A184,MN!$B:$B,"<>" & "") -> 0 | K184: =SUMIFS(MN!$J:$J,MN!$E:$E,A184,MN!$B:$B,"<>" & "") -> 0 | L184: =SUMIFS(MN!$G:$G,MN!$E:$E,A184,MN!$C:$C,"<>" & "") -> 0 | M184: =SUMIFS(MN!$I:$I,MN!$E:$E,A184,MN!$C:$C,"<>" & "") -> 0 | N184: =SUMIFS(MN!$J:$J,MN!$E:$E,A184,MN!$C:$C,"<>" & "") -> 0 | O184: =SUMIFS(MN!$G:$G,MN!$E:$E,A184,MN!$D:$D,"<>" & "") -> 0 | P184: =SUMIFS(MN!$I:$I,MN!$E:$E,A184,MN!$D:$D,"<>" & "") -> 0 | Q184: =SUMIFS(MN!$J:$J,MN!$E:$E,A184,MN!$D:$D,"<>" & "") -> 0 | R184: 0 | S184: 4370 | T184: 0 | AG184: =IFERROR(VLOOKUP(ROWS(AG2:AG184),AI2:AJ186,2,0),"") ->  | AI184: =IF(ISNUMBER(SEARCH(AL2,AJ184)),MAX(AI1:AI183)+1,0) -> 0
A185: 184 | B185: اسود | C185: كروشية سويت جيرل SG-IMG-35 | D185: 3.5سم | E185: اسود كروشية سويت جيرل SG-IMG-35 3.5سم | G185: 898 | I185: =SUMIFS(MN!$G:$G,MN!$E:$E,A185,MN!B:B,"<>" & "") -> 0 | J185: =SUMIFS(MN!$I:$I,MN!$E:$E,A185,MN!$B:$B,"<>" & "") -> 0 | K185: =SUMIFS(MN!$J:$J,MN!$E:$E,A185,MN!$B:$B,"<>" & "") -> 0 | L185: =SUMIFS(MN!$G:$G,MN!$E:$E,A185,MN!$C:$C,"<>" & "") -> 0 | M185: =SUMIFS(MN!$I:$I,MN!$E:$E,A185,MN!$C:$C,"<>" & "") -> 0 | N185: =SUMIFS(MN!$J:$J,MN!$E:$E,A185,MN!$C:$C,"<>" & "") -> 0 | O185: =SUMIFS(MN!$G:$G,MN!$E:$E,A185,MN!$D:$D,"<>" & "") -> 0 | P185: =SUMIFS(MN!$I:$I,MN!$E:$E,A185,MN!$D:$D,"<>" & "") -> 0 | Q185: =SUMIFS(MN!$J:$J,MN!$E:$E,A185,MN!$D:$D,"<>" & "") -> 0 | R185: 0 | S185: 898 | T185: 0 | AG185: =IFERROR(VLOOKUP(ROWS(AG2:AG185),AI2:AJ186,2,0),"") ->  | AI185: =IF(ISNUMBER(SEARCH(AL2,AJ185)),MAX(AI1:AI184)+1,0) -> 0
A186: 185 | B186: اسود | C186: كروشية المتحدة CO-IMG-62 | D186: 6.2سم | E186: اسود كروشية المتحدة CO-IMG-62 6.2سم | G186: 1792 | I186: =SUMIFS(MN!$G:$G,MN!$E:$E,A186,MN!B:B,"<>" & "") -> 0 | J186: =SUMIFS(MN!$I:$I,MN!$E:$E,A186,MN!$B:$B,"<>" & "") -> 0 | K186: =SUMIFS(MN!$J:$J,MN!$E:$E,A186,MN!$B:$B,"<>" & "") -> 0 | L186: =SUMIFS(MN!$G:$G,MN!$E:$E,A186,MN!$C:$C,"<>" & "") -> 0 | M186: =SUMIFS(MN!$I:$I,MN!$E:$E,A186,MN!$C:$C,"<>" & "") -> 0 | N186: =SUMIFS(MN!$J:$J,MN!$E:$E,A186,MN!$C:$C,"<>" & "") -> 0 | O186: =SUMIFS(MN!$G:$G,MN!$E:$E,A186,MN!$D:$D,"<>" & "") -> 0 | P186: =SUMIFS(MN!$I:$I,MN!$E:$E,A186,MN!$D:$D,"<>" & "") -> 0 | Q186: =SUMIFS(MN!$J:$J,MN!$E:$E,A186,MN!$D:$D,"<>" & "") -> 0 | R186: 0 | S186: 1792 | T186: 0 | AG186: =IFERROR(VLOOKUP(ROWS(AG2:AG186),AI2:AJ186,2,0),"") ->  | AI186: =IF(ISNUMBER(SEARCH(AL2,AJ186)),MAX(AI1:AI185)+1,0) -> 0

Sheet الوارد
A1: التاريخ | B1: أذن أضافة | C1: الكود | D1: اللون | E1: الكمية بالكيلو | F1: الكمية بالامتار | G1: وزن المتر | H1: الكمية بالقطع | I1: العميل | J1: b
A2: 15-2 | B2: 1 | C2: 6 | D2: =IFERROR(VLOOKUP(C2,التكويد!$A$2:$R$186,5,0),"") -> ابيض كروشيه 1سم | E2: 4 | F2: =IFERROR(SUM(G2*E2),"") -> 20 | G2: 5 | H2: 6 | I2: a | AA2: 5
A3: 15-2 | B3: 2 | C3: 6 | D3: =IFERROR(VLOOKUP(C3,التكويد!$A$2:$R$186,5,0),"") -> ابيض كروشيه 1سم | E3: 7 | F3: =IFERROR(SUM(G3*E3),"") -> 56 | G3: 8 | H3: 9 | AA3: 10
A4: 15-2 | B4: 3 | C4: 6 | D4: =IFERROR(VLOOKUP(C4,التكويد!$A$2:$R$186,5,0),"") -> ابيض كروشيه 1سم | E4: 100 | F4: 10000 | G4: 100 | H4: 100 | AA4: 15
A5: 15-2 | B5: 4 | C5: 6 | D5: =IFERROR(VLOOKUP(C5,التكويد!$A$2:$R$186,5,0),"") -> ابيض كروشيه 1سم | E5: 100 | F5: 10000 | G5: 100 | H5: 100 | AA5: 20
A6: 15-3 | B6: 8 | C6: 6 | D6: =IFERROR(VLOOKUP(C6,التكويد!$A$2:$R$186,5,0),"") -> ابيض كروشيه 1سم | E6: 10 | F6: 100 | G6: 10 | H6: 10 | I6: jjj | AA6: 25
A7: 15-2 | B7: 8 | C7: 7 | D7: =IFERROR(VLOOKUP(C7,التكويد!$A$2:$R$186,5,0),"") -> ابيض كروشيه 2.2سم | E7: 10 | F7: 100 | G7: 10 | H7: 10 | I7: a | AA7: 30
D8: =IFERROR(VLOOKUP(C8,التكويد!$A$2:$R$186,5,0),"") ->  | F8: 0 | AA8: 35
D9: =IFERROR(VLOOKUP(C9,التكويد!$A$2:$R$186,5,0),"") ->  | F9: 0 | AA9: 40
D10: =IFERROR(VLOOKUP(C10,التكويد!$A$2:$R$186,5,0),"") ->  | F10: 0 | AA10: 45
D11: =IFERROR(VLOOKUP(C11,التكويد!$A$2:$R$186,5,0),"") ->  | F11: 0 | AA11: 50
D12: =IFERROR(VLOOKUP(C12,التكويد!$A$2:$R$186,5,0),"") ->  | F12: 0 | AA12: 55
D13: =IFERROR(VLOOKUP(C13,التكويد!$A$2:$R$186,5,0),"") ->  | F13: 0 | AA13: 60
D14: =IFERROR(VLOOKUP(C14,التكويد!$A$2:$R$186,5,0),"") ->  | F14: 0 | AA14: 65
D15: =IFERROR(VLOOKUP(C15,التكويد!$A$2:$R$186,5,0),"") ->  | F15: 0 | AA15: 70
D16: =IFERROR(VLOOKUP(C16,التكويد!$A$2:$R$186,5,0),"") ->  | F16: 0 | AA16: 75
D17: =IFERROR(VLOOKUP(C17,التكويد!$A$2:$R$186,5,0),"") ->  | F17: 0 | AA17: 80
D18: =IFERROR(VLOOKUP(C18,التكويد!$A$2:$R$186,5,0),"") ->  | F18: 0 | AA18: 85
D19: =IFERROR(VLOOKUP(C19,التكويد!$A$2:$R$186,5,0),"") ->  | F19: 0 | AA19: 90
D20: =IFERROR(VLOOKUP(C20,التكويد!$A$2:$R$186,5,0),"") ->  | F20: 0 | AA20: 95
D21: =IFERROR(VLOOKUP(C21,التكويد!$A$2:$R$186,5,0),"") ->  | F21: 0 | AA21: 100
D22: =IFERROR(VLOOKUP(C22,التكويد!$A$2:$R$186,5,0),"") ->  | F22: 0 | AA22: 105
D23: =IFERROR(VLOOKUP(C23,التكويد!$A$2:$R$186,5,0),"") ->  | F23: 0 | AA23: 110
D24: =IFERROR(VLOOKUP(C24,التكويد!$A$2:$R$186,5,0),"") ->  | F24: 0 | AA24: 115
D25: =IFERROR(VLOOKUP(C25,التكويد!$A$2:$R$186,5,0),"") ->  | F25: 0 | AA25: 120
D26: =IFERROR(VLOOKUP(C26,التكويد!$A$2:$R$186,5,0),"") ->  | F26: 0 | AA26: 125
D27: =IFERROR(VLOOKUP(C27,التكويد!$A$2:$R$186,5,0),"") ->  | F27: 0 | AA27: 130
D28: =IFERROR(VLOOKUP(C28,التكويد!$A$2:$R$186,5,0),"") ->  | F28: 0 | AA28: 135
D29: =IFERROR(VLOOKUP(C29,التكويد!$A$2:$R$186,5,0),"") ->  | F29: 0 | AA29: 140
D30: =IFERROR(VLOOKUP(C30,التكويد!$A$2:$R$186,5,0),"") ->  | F30: 0 | AA30: 145
D31: =IFERROR(VLOOKUP(C31,التكويد!$A$2:$R$186,5,0),"") ->  | F31: 0 | AA31: 150
D32: =IFERROR(VLOOKUP(C32,التكويد!$A$2:$R$186,5,0),"") ->  | F32: 0 | AA32: 155
D33: =IFERROR(VLOOKUP(C33,التكويد!$A$2:$R$186,5,0),"") ->  | F33: 0 | AA33: 160
D34: =IFERROR(VLOOKUP(C34,التكويد!$A$2:$R$186,5,0),"") ->  | F34: 0 | AA34: 165
D35: =IFERROR(VLOOKUP(C35,التكويد!$A$2:$R$186,5,0),"") ->  | F35: 0 | AA35: 170
D36: =IFERROR(VLOOKUP(C36,التكويد!$A$2:$R$186,5,0),"") ->  | F36: 0 | AA36: 175
D37: =IFERROR(VLOOKUP(C37,التكويد!$A$2:$R$186,5,0),"") ->  | F37: 0 | AA37: 180
D38: =IFERROR(VLOOKUP(C38,التكويد!$A$2:$R$186,5,0),"") ->  | F38: 0 | AA38: 185
D39: =IFERROR(VLOOKUP(C39,التكويد!$A$2:$R$186,5,0),"") ->  | F39: 0 | AA39: 190
D40: =IFERROR(VLOOKUP(C40,التكويد!$A$2:$R$186,5,0),"") ->  | F40: 0 | AA40: 195
D41: =IFERROR(VLOOKUP(C41,التكويد!$A$2:$R$186,5,0),"") ->  | F41: 0 | AA41: 200
D42: =IFERROR(VLOOKUP(C42,التكويد!$A$2:$R$186,5,0),"") ->  | F42: 0 | AA42: 205
D43: =IFERROR(VLOOKUP(C43,التكويد!$A$2:$R$186,5,0),"") ->  | F43: 0 | AA43: 210
D44: =IFERROR(VLOOKUP(C44,التكويد!$A$2:$R$186,5,0),"") ->  | F44: 0 | AA44: 215
D45: =IFERROR(VLOOKUP(C45,التكويد!$A$2:$R$186,5,0),"") ->  | F45: 0 | AA45: 220
D46: =IFERROR(VLOOKUP(C46,التكويد!$A$2:$R$186,5,0),"") ->  | F46: 0 | AA46: 225
D47: =IFERROR(VLOOKUP(C47,التكويد!$A$2:$R$186,5,0),"") ->  | F47: 0 | AA47: 230
D48: =IFERROR(VLOOKUP(C48,التكويد!$A$2:$R$186,5,0),"") ->  | F48: 0 | AA48: 235
D49: =IFERROR(VLOOKUP(C49,التكويد!$A$2:$R$186,5,0),"") ->  | F49: 0 | AA49: 240
D50: =IFERROR(VLOOKUP(C50,التكويد!$A$2:$R$186,5,0),"") ->  | F50: 0 | AA50: 245
D51: =IFERROR(VLOOKUP(C51,التكويد!$A$2:$R$186,5,0),"") ->  | F51: 0 | AA51: 250
D52: =IFERROR(VLOOKUP(C52,التكويد!$A$2:$R$186,5,0),"") ->  | F52: 0 | AA52: 255
D53: =IFERROR(VLOOKUP(C53,التكويد!$A$2:$R$186,5,0),"") ->  | F53: 0 | AA53: 260
D54: =IFERROR(VLOOKUP(C54,التكويد!$A$2:$R$186,5,0),"") ->  | F54: 0 | AA54: 265
D55: =IFERROR(VLOOKUP(C55,التكويد!$A$2:$R$186,5,0),"") ->  | F55: 0 | AA55: 270
D56: =IFERROR(VLOOKUP(C56,التكويد!$A$2:$R$186,5,0),"") ->  | F56: 0 | AA56: 275
D57: =IFERROR(VLOOKUP(C57,التكويد!$A$2:$R$186,5,0),"") ->  | F57: 0 | AA57: 280
D58: =IFERROR(VLOOKUP(C58,التكويد!$A$2:$R$186,5,0),"") ->  | F58: 0 | AA58: 285
D59: =IFERROR(VLOOKUP(C59,التكويد!$A$2:$R$186,5,0),"") ->  | F59: 0 | AA59: 290
D60: =IFERROR(VLOOKUP(C60,التكويد!$A$2:$R$186,5,0),"") ->  | F60: 0 | AA60: 295
D61: =IFERROR(VLOOKUP(C61,التكويد!$A$2:$R$186,5,0),"") ->  | F61: 0 | AA61: 300
D62: =IFERROR(VLOOKUP(C62,التكويد!$A$2:$R$186,5,0),"") ->  | F62: 0 | AA62: 305
D63: =IFERROR(VLOOKUP(C63,التكويد!$A$2:$R$186,5,0),"") ->  | F63: 0 | AA63: 310
D64: =IFERROR(VLOOKUP(C64,التكويد!$A$2:$R$186,5,0),"") ->  | F64: 0 | AA64: 315
D65: =IFERROR(VLOOKUP(C65,التكويد!$A$2:$R$186,5,0),"") ->  | F65: 0 | AA65: 320
D66: =IFERROR(VLOOKUP(C66,التكويد!$A$2:$R$186,5,0),"") ->  | F66: 0 | AA66: 325
D67: =IFERROR(VLOOKUP(C67,التكويد!$A$2:$R$186,5,0),"") ->  | F67: =IFERROR(SUM(G67*E67),"") -> 0 | AA67: 330
D68: =IFERROR(VLOOKUP(C68,التكويد!$A$2:$R$186,5,0),"") ->  | F68: 0 | AA68: 335
D69: =IFERROR(VLOOKUP(C69,التكويد!$A$2:$R$186,5,0),"") ->  | F69: 0 | AA69: 340
D70: =IFERROR(VLOOKUP(C70,التكويد!$A$2:$R$186,5,0),"") ->  | F70: 0 | AA70: 345
D71: =IFERROR(VLOOKUP(C71,التكويد!$A$2:$R$186,5,0),"") ->  | F71: 0 | AA71: 350
D72: =IFERROR(VLOOKUP(C72,التكويد!$A$2:$R$186,5,0),"") ->  | F72: 0 | AA72: 355
D73: =IFERROR(VLOOKUP(C73,التكويد!$A$2:$R$186,5,0),"") ->  | F73: 0 | AA73: 360
D74: =IFERROR(VLOOKUP(C74,التكويد!$A$2:$R$186,5,0),"") ->  | F74: 0 | AA74: 365
D75: =IFERROR(VLOOKUP(C75,التكويد!$A$2:$R$186,5,0),"") ->  | F75: 0 | AA75: 370
D76: =IFERROR(VLOOKUP(C76,التكويد!$A$2:$R$186,5,0),"") ->  | F76: 0 | AA76: 375
D77: =IFERROR(VLOOKUP(C77,التكويد!$A$2:$R$186,5,0),"") ->  | F77: 0 | AA77: 380
D78: =IFERROR(VLOOKUP(C78,التكويد!$A$2:$R$186,5,0),"") ->  | F78: 0 | AA78: 385
D79: =IFERROR(VLOOKUP(C79,التكويد!$A$2:$R$186,5,0),"") ->  | F79: 0 | AA79: 390
D80: =IFERROR(VLOOKUP(C80,التكويد!$A$2:$R$186,5,0),"") ->  | F80: 0 | AA80: 395
D81: =IFERROR(VLOOKUP(C81,التكويد!$A$2:$R$186,5,0),"") ->  | F81: 0 | AA81: 400
D82: =IFERROR(VLOOKUP(C82,التكويد!$A$2:$R$186,5,0),"") ->  | F82: 0 | AA82: 405
D83: =IFERROR(VLOOKUP(C83,التكويد!$A$2:$R$186,5,0),"") ->  | F83: 0 | AA83: 410
D84: =IFERROR(VLOOKUP(C84,التكويد!$A$2:$R$186,5,0),"") ->  | F84: 0 | AA84: 415
D85: =IFERROR(VLOOKUP(C85,التكويد!$A$2:$R$186,5,0),"") ->  | F85: 0 | AA85: 420
D86: =IFERROR(VLOOKUP(C86,التكويد!$A$2:$R$186,5,0),"") ->  | F86: 0 | AA86: 425
D87: =IFERROR(VLOOKUP(C87,التكويد!$A$2:$R$186,5,0),"") ->  | F87: 0 | AA87: 430
D88: =IFERROR(VLOOKUP(C88,التكويد!$A$2:$R$186,5,0),"") ->  | F88: 0 | AA88: 435
D89: =IFERROR(VLOOKUP(C89,التكويد!$A$2:$R$186,5,0),"") ->  | F89: 0 | AA89: 440
D90: =IFERROR(VLOOKUP(C90,التكويد!$A$2:$R$186,5,0),"") ->  | F90: 0 | AA90: 445
D91: =IFERROR(VLOOKUP(C91,التكويد!$A$2:$R$186,5,0),"") ->  | F91: 0 | AA91: 450
D92: =IFERROR(VLOOKUP(C92,التكويد!$A$2:$R$186,5,0),"") ->  | F92: 0 | AA92: 455
D93: =IFERROR(VLOOKUP(C93,التكويد!$A$2:$R$186,5,0),"") ->  | F93: 0 | AA93: 460
D94: =IFERROR(VLOOKUP(C94,التكويد!$A$2:$R$186,5,0),"") ->  | F94: 0 | AA94: 465
D95: =IFERROR(VLOOKUP(C95,التكويد!$A$2:$R$186,5,0),"") ->  | F95: 0 | AA95: 470
D96: =IFERROR(VLOOKUP(C96,التكويد!$A$2:$R$186,5,0),"") ->  | F96: 0 | AA96: 475
D97: =IFERROR(VLOOKUP(C97,التكويد!$A$2:$R$186,5,0),"") ->  | F97: 0 | AA97: 480
D98: =IFERROR(VLOOKUP(C98,التكويد!$A$2:$R$186,5,0),"") ->  | F98: 0 | AA98: 485
D99: =IFERROR(VLOOKUP(C99,التكويد!$A$2:$R$186,5,0),"") ->  | F99: 0 | AA99: 490
D100: =IFERROR(VLOOKUP(C100,التكويد!$A$2:$R$186,5,0),"") ->  | F100: 0 | AA100: 495
D101: =IFERROR(VLOOKUP(C101,التكويد!$A$2:$R$186,5,0),"") ->  | F101: 0 | AA101: 500
D102: =IFERROR(VLOOKUP(C102,التكويد!$A$2:$R$186,5,0),"") ->  | F102: 0 | AA102: 505
D103: =IFERROR(VLOOKUP(C103,التكويد!$A$2:$R$186,5,0),"") ->  | F103: 0 | AA103: 510
D104: =IFERROR(VLOOKUP(C104,التكويد!$A$2:$R$186,5,0),"") ->  | F104: 0 | AA104: 515
D105: =IFERROR(VLOOKUP(C105,التكويد!$A$2:$R$186,5,0),"") ->  | F105: 0 | AA105: 520
D106: =IFERROR(VLOOKUP(C106,التكويد!$A$2:$R$186,5,0),"") ->  | F106: 0 | AA106: 525
D107: =IFERROR(VLOOKUP(C107,التكويد!$A$2:$R$186,5,0),"") ->  | F107: 0 | AA107: 530
D108: =IFERROR(VLOOKUP(C108,التكويد!$A$2:$R$186,5,0),"") ->  | F108: 0 | AA108: 535
D109: =IFERROR(VLOOKUP(C109,التكويد!$A$2:$R$186,5,0),"") ->  | F109: 0 | AA109: 540
D110: =IFERROR(VLOOKUP(C110,التكويد!$A$2:$R$186,5,0),"") ->  | F110: 0 | AA110: 545
D111: =IFERROR(VLOOKUP(C111,التكويد!$A$2:$R$186,5,0),"") ->  | F111: 0 | AA111: 550
D112: =IFERROR(VLOOKUP(C112,التكويد!$A$2:$R$186,5,0),"") ->  | F112: 0 | AA112: 555
D113: =IFERROR(VLOOKUP(C113,التكويد!$A$2:$R$186,5,0),"") ->  | F113: 0 | AA113: 560
D114: =IFERROR(VLOOKUP(C114,التكويد!$A$2:$R$186,5,0),"") ->  | F114: 0 | AA114: 565
D115: =IFERROR(VLOOKUP(C115,التكويد!$A$2:$R$186,5,0),"") ->  | F115: 0 | AA115: 570
D116: =IFERROR(VLOOKUP(C116,التكويد!$A$2:$R$186,5,0),"") ->  | F116: 0 | AA116: 575
D117: =IFERROR(VLOOKUP(C117,التكويد!$A$2:$R$186,5,0),"") ->  | F117: 0 | AA117: 580
D118: =IFERROR(VLOOKUP(C118,التكويد!$A$2:$R$186,5,0),"") ->  | F118: 0 | AA118: 585
D119: =IFERROR(VLOOKUP(C119,التكويد!$A$2:$R$186,5,0),"") ->  | F119: 0 | AA119: 590
D120: =IFERROR(VLOOKUP(C120,التكويد!$A$2:$R$186,5,0),"") ->  | F120: 0 | AA120: 595
D121: =IFERROR(VLOOKUP(C121,التكويد!$A$2:$R$186,5,0),"") ->  | F121: 0 | AA121: 600
D122: =IFERROR(VLOOKUP(C122,التكويد!$A$2:$R$186,5,0),"") ->  | F122: 0 | AA122: 605
D123: =IFERROR(VLOOKUP(C123,التكويد!$A$2:$R$186,5,0),"") ->  | F123: 0 | AA123: 610
D124: =IFERROR(VLOOKUP(C124,التكويد!$A$2:$R$186,5,0),"") ->  | F124: 0 | AA124: 615
D125: =IFERROR(VLOOKUP(C125,التكويد!$A$2:$R$186,5,0),"") ->  | F125: 0 | AA125: 620
D126: =IFERROR(VLOOKUP(C126,التكويد!$A$2:$R$186,5,0),"") ->  | F126: 0 | AA126: 625
D127: =IFERROR(VLOOKUP(C127,التكويد!$A$2:$R$186,5,0),"") ->  | F127: 0 | AA127: 630
D128: =IFERROR(VLOOKUP(C128,التكويد!$A$2:$R$186,5,0),"") ->  | F128: 0 | AA128: 635
D129: =IFERROR(VLOOKUP(C129,التكويد!$A$2:$R$186,5,0),"") ->  | F129: 0 | AA129: 640
D130: =IFERROR(VLOOKUP(C130,التكويد!$A$2:$R$186,5,0),"") ->  | F130: 0 | AA130: 645
D131: =IFERROR(VLOOKUP(C131,التكويد!$A$2:$R$186,5,0),"") ->  | F131: =IFERROR(SUM(G131*E131),"") -> 0 | AA131: 650
D132: =IFERROR(VLOOKUP(C132,التكويد!$A$2:$R$186,5,0),"") ->  | F132: 0 | AA132: 655
D133: =IFERROR(VLOOKUP(C133,التكويد!$A$2:$R$186,5,0),"") ->  | F133: 0 | AA133: 660
D134: =IFERROR(VLOOKUP(C134,التكويد!$A$2:$R$186,5,0),"") ->  | F134: 0 | AA134: 665
D135: =IFERROR(VLOOKUP(C135,التكويد!$A$2:$R$186,5,0),"") ->  | F135: 0 | AA135: 670
D136: =IFERROR(VLOOKUP(C136,التكويد!$A$2:$R$186,5,0),"") ->  | F136: 0 | AA136: 675
D137: =IFERROR(VLOOKUP(C137,التكويد!$A$2:$R$186,5,0),"") ->  | F137: 0 | AA137: 680
D138: =IFERROR(VLOOKUP(C138,التكويد!$A$2:$R$186,5,0),"") ->  | F138: 0 | AA138: 685
D139: =IFERROR(VLOOKUP(C139,التكويد!$A$2:$R$186,5,0),"") ->  | F139: 0 | AA139: 690
D140: =IFERROR(VLOOKUP(C140,التكويد!$A$2:$R$186,5,0),"") ->  | F140: 0 | AA140: 695
D141: =IFERROR(VLOOKUP(C141,التكويد!$A$2:$R$186,5,0),"") ->  | F141: 0 | AA141: 700
D142: =IFERROR(VLOOKUP(C142,التكويد!$A$2:$R$186,5,0),"") ->  | F142: 0 | AA142: 705
D143: =IFERROR(VLOOKUP(C143,التكويد!$A$2:$R$186,5,0),"") ->  | F143: 0 | AA143: 710
D144: =IFERROR(VLOOKUP(C144,التكويد!$A$2:$R$186,5,0),"") ->  | F144: 0
D145: =IFERROR(VLOOKUP(C145,التكويد!$A$2:$R$186,5,0),"") ->  | F145: 0
D146: =IFERROR(VLOOKUP(C146,التكويد!$A$2:$R$186,5,0),"") ->  | F146: 0
D147: =IFERROR(VLOOKUP(C147,التكويد!$A$2:$R$186,5,0),"") ->  | F147: 0
D148: =IFERROR(VLOOKUP(C148,التكويد!$A$2:$R$186,5,0),"") ->  | F148: 0
D149: =IFERROR(VLOOKUP(C149,التكويد!$A$2:$R$186,5,0),"") ->  | F149: 0
D150: =IFERROR(VLOOKUP(C150,التكويد!$A$2:$R$186,5,0),"") ->  | F150: 0
D151: =IFERROR(VLOOKUP(C151,التكويد!$A$2:$R$186,5,0),"") ->  | F151: 0
D152: =IFERROR(VLOOKUP(C152,التكويد!$A$2:$R$186,5,0),"") ->  | F152: 0
D153: =IFERROR(VLOOKUP(C153,التكويد!$A$2:$R$186,5,0),"") ->  | F153: 0
D154: =IFERROR(VLOOKUP(C154,التكويد!$A$2:$R$186,5,0),"") ->  | F154: 0
D155: =IFERROR(VLOOKUP(C155,التكويد!$A$2:$R$186,5,0),"") ->  | F155: 0
D156: =IFERROR(VLOOKUP(C156,التكويد!$A$2:$R$186,5,0),"") ->  | F156: 0
D157: =IFERROR(VLOOKUP(C157,التكويد!$A$2:$R$186,5,0),"") ->  | F157: 0
D158: =IFERROR(VLOOKUP(C158,التكويد!$A$2:$R$186,5,0),"") ->  | F158: 0
D159: =IFERROR(VLOOKUP(C159,التكويد!$A$2:$R$186,5,0),"") ->  | F159: 0
D160: =IFERROR(VLOOKUP(C160,التكويد!$A$2:$R$186,5,0),"") ->  | F160: 0
D161: =IFERROR(VLOOKUP(C161,التكويد!$A$2:$R$186,5,0),"") ->  | F161: 0
D162: =IFERROR(VLOOKUP(C162,التكويد!$A$2:$R$186,5,0),"") ->  | F162: 0
D163: =IFERROR(VLOOKUP(C163,التكويد!$A$2:$R$186,5,0),"") ->  | F163: 0
D164: =IFERROR(VLOOKUP(C164,التكويد!$A$2:$R$186,5,0),"") ->  | F164: 0
D165: =IFERROR(VLOOKUP(C165,التكويد!$A$2:$R$186,5,0),"") ->  | F165: 0
D166: =IFERROR(VLOOKUP(C166,التكويد!$A$2:$R$186,5,0),"") ->  | F166: 0
D167: =IFERROR(VLOOKUP(C167,التكويد!$A$2:$R$186,5,0),"") ->  | F167: 0
D168: =IFERROR(VLOOKUP(C168,التكويد!$A$2:$R$186,5,0),"") ->  | F168: 0
D169: =IFERROR(VLOOKUP(C169,التكويد!$A$2:$R$186,5,0),"") ->  | F169: 0
D170: =IFERROR(VLOOKUP(C170,التكويد!$A$2:$R$186,5,0),"") ->  | F170: 0
D171: =IFERROR(VLOOKUP(C171,التكويد!$A$2:$R$186,5,0),"") ->  | F171: 0
D172: =IFERROR(VLOOKUP(C172,التكويد!$A$2:$R$186,5,0),"") ->  | F172: 0
D173: =IFERROR(VLOOKUP(C173,التكويد!$A$2:$R$186,5,0),"") ->  | F173: 0
D174: =IFERROR(VLOOKUP(C174,التكويد!$A$2:$R$186,5,0),"") ->  | F174: 0
D175: =IFERROR(VLOOKUP(C175,التكويد!$A$2:$R$186,5,0),"") ->  | F175: 0
D176: =IFERROR(VLOOKUP(C176,التكويد!$A$2:$R$186,5,0),"") ->  | F176: 0
D177: =IFERROR(VLOOKUP(C177,التكويد!$A$2:$R$186,5,0),"") ->  | F177: 0
D178: =IFERROR(VLOOKUP(C178,التكويد!$A$2:$R$186,5,0),"") ->  | F178: 0
D179: =IFERROR(VLOOKUP(C179,التكويد!$A$2:$R$186,5,0),"") ->  | F179: 0
D180: =IFERROR(VLOOKUP(C180,التكويد!$A$2:$R$186,5,0),"") ->  | F180: 0
D181: =IFERROR(VLOOKUP(C181,التكويد!$A$2:$R$186,5,0),"") ->  | F181: 0
D182: =IFERROR(VLOOKUP(C182,التكويد!$A$2:$R$186,5,0),"") ->  | F182: 0
D183: =IFERROR(VLOOKUP(C183,التكويد!$A$2:$R$186,5,0),"") ->  | F183: 0
D184: =IFERROR(VLOOKUP(C184,التكويد!$A$2:$R$186,5,0),"") ->  | F184: 0
D185: =IFERROR(VLOOKUP(C185,التكويد!$A$2:$R$186,5,0),"") ->  | F185: 0
D186: =IFERROR(VLOOKUP(C186,التكويد!$A$2:$R$186,5,0),"") ->  | F186: 0
D187: =IFERROR(VLOOKUP(C187,التكويد!$A$2:$R$186,5,0),"") ->  | F187: 0
D188: =IFERROR(VLOOKUP(C188,التكويد!$A$2:$R$186,5,0),"") ->  | F188: 0
D189: =IFERROR(VLOOKUP(C189,التكويد!$A$2:$R$186,5,0),"") ->  | F189: 0
D190: =IFERROR(VLOOKUP(C190,التكويد!$A$2:$R$186,5,0),"") ->  | F190: 0
D191: =IFERROR(VLOOKUP(C191,التكويد!$A$2:$R$186,5,0),"") ->  | F191: 0
D192: =IFERROR(VLOOKUP(C192,التكويد!$A$2:$R$186,5,0),"") ->  | F192: 0
D193: =IFERROR(VLOOKUP(C193,التكويد!$A$2:$R$186,5,0),"") ->  | F193: 0
D194: =IFERROR(VLOOKUP(C194,التكويد!$A$2:$R$186,5,0),"") ->  | F194: 0
D195: =IFERROR(VLOOKUP(C195,التكويد!$A$2:$R$186,5,0),"") ->  | F195: =IFERROR(SUM(G195*E195),"") -> 0
D196: =IFERROR(VLOOKUP(C196,التكويد!$A$2:$R$186,5,0),"") ->  | F196: 0
D197: =IFERROR(VLOOKUP(C197,التكويد!$A$2:$R$186,5,0),"") ->  | F197: 0
D198: =IFERROR(VLOOKUP(C198,التكويد!$A$2:$R$186,5,0),"") ->  | F198: 0
D199: =IFERROR(VLOOKUP(C199,التكويد!$A$2:$R$186,5,0),"") ->  | F199: 0
D200: =IFERROR(VLOOKUP(C200,التكويد!$A$2:$R$186,5,0),"") ->  | F200: 0
... 4800 more rows

Sheet المنصرف
A1: التاريخ | B1: أذن الصرف | C1: الكود | D1: اللون | E1: الكمية بالكيلو | F1: الكمية بالامتار | G1: وزن المتر | H1: الكمية بالقطع | I1: العميل | J1: b
A2: 15-2 | B2: 1 | C2: 6 | D2: =IFERROR(VLOOKUP(C2,التكويد!$A$2:$R$186,5,0),"") -> ابيض كروشيه 1سم | E2: 10 | F2: =IFERROR(SUM(G2*E2),"") -> 100 | G2: 10 | H2: 10
A3: 15-2 | B3: 2 | C3: 6 | D3: =IFERROR(VLOOKUP(C3,التكويد!$A$2:$R$186,5,0),"") -> ابيض كروشيه 1سم | E3: 10 | F3: =IFERROR(SUM(G3*E3),"") -> 100 | G3: 10 | H3: 10
A4: 15-2 | B4: 3 | C4: 6 | D4: =IFERROR(VLOOKUP(C4,التكويد!$A$2:$R$186,5,0),"") -> ابيض كروشيه 1سم | E4: 10 | F4: 100 | G4: 10 | H4: 10
A5: 15-2 | B5: 4 | C5: 6 | D5: =IFERROR(VLOOKUP(C5,التكويد!$A$2:$R$186,5,0),"") -> ابيض كروشيه 1سم | E5: 5 | F5: 50 | G5: 10 | H5: 0
D6: =IFERROR(VLOOKUP(C6,التكويد!$A$2:$R$186,5,0),"") ->  | F6: 0
D7: =IFERROR(VLOOKUP(C7,التكويد!$A$2:$R$186,5,0),"") ->  | F7: 0
D8: =IFERROR(VLOOKUP(C8,التكويد!$A$2:$R$186,5,0),"") ->  | F8: 0
D9: =IFERROR(VLOOKUP(C9,التكويد!$A$2:$R$186,5,0),"") ->  | F9: 0
D10: =IFERROR(VLOOKUP(C10,التكويد!$A$2:$R$186,5,0),"") ->  | F10: 0
D11: =IFERROR(VLOOKUP(C11,التكويد!$A$2:$R$186,5,0),"") ->  | F11: 0
D12: =IFERROR(VLOOKUP(C12,التكويد!$A$2:$R$186,5,0),"") ->  | F12: 0
D13: =IFERROR(VLOOKUP(C13,التكويد!$A$2:$R$186,5,0),"") ->  | F13: 0
D14: =IFERROR(VLOOKUP(C14,التكويد!$A$2:$R$186,5,0),"") ->  | F14: 0
D15: =IFERROR(VLOOKUP(C15,التكويد!$A$2:$R$186,5,0),"") ->  | F15: 0
D16: =IFERROR(VLOOKUP(C16,التكويد!$A$2:$R$186,5,0),"") ->  | F16: 0
D17: =IFERROR(VLOOKUP(C17,التكويد!$A$2:$R$186,5,0),"") ->  | F17: 0
D18: =IFERROR(VLOOKUP(C18,التكويد!$A$2:$R$186,5,0),"") ->  | F18: 0
D19: =IFERROR(VLOOKUP(C19,التكويد!$A$2:$R$186,5,0),"") ->  | F19: 0
D20: =IFERROR(VLOOKUP(C20,التكويد!$A$2:$R$186,5,0),"") ->  | F20: 0
D21: =IFERROR(VLOOKUP(C21,التكويد!$A$2:$R$186,5,0),"") ->  | F21: 0
D22: =IFERROR(VLOOKUP(C22,التكويد!$A$2:$R$186,5,0),"") ->  | F22: 0
D23: =IFERROR(VLOOKUP(C23,التكويد!$A$2:$R$186,5,0),"") ->  | F23: 0
D24: =IFERROR(VLOOKUP(C24,التكويد!$A$2:$R$186,5,0),"") ->  | F24: 0
D25: =IFERROR(VLOOKUP(C25,التكويد!$A$2:$R$186,5,0),"") ->  | F25: 0
D26: =IFERROR(VLOOKUP(C26,التكويد!$A$2:$R$186,5,0),"") ->  | F26: 0
D27: =IFERROR(VLOOKUP(C27,التكويد!$A$2:$R$186,5,0),"") ->  | F27: 0
D28: =IFERROR(VLOOKUP(C28,التكويد!$A$2:$R$186,5,0),"") ->  | F28: 0
D29: =IFERROR(VLOOKUP(C29,التكويد!$A$2:$R$186,5,0),"") ->  | F29: 0
D30: =IFERROR(VLOOKUP(C30,التكويد!$A$2:$R$186,5,0),"") ->  | F30: 0
D31: =IFERROR(VLOOKUP(C31,التكويد!$A$2:$R$186,5,0),"") ->  | F31: 0
D32: =IFERROR(VLOOKUP(C32,التكويد!$A$2:$R$186,5,0),"") ->  | F32: 0
D33: =IFERROR(VLOOKUP(C33,التكويد!$A$2:$R$186,5,0),"") ->  | F33: 0
D34: =IFERROR(VLOOKUP(C34,التكويد!$A$2:$R$186,5,0),"") ->  | F34: 0
D35: =IFERROR(VLOOKUP(C35,التكويد!$A$2:$R$186,5,0),"") ->  | F35: 0
D36: =IFERROR(VLOOKUP(C36,التكويد!$A$2:$R$186,5,0),"") ->  | F36: 0
D37: =IFERROR(VLOOKUP(C37,التكويد!$A$2:$R$186,5,0),"") ->  | F37: 0
D38: =IFERROR(VLOOKUP(C38,التكويد!$A$2:$R$186,5,0),"") ->  | F38: 0
D39: =IFERROR(VLOOKUP(C39,التكويد!$A$2:$R$186,5,0),"") ->  | F39: 0
D40: =IFERROR(VLOOKUP(C40,التكويد!$A$2:$R$186,5,0),"") ->  | F40: 0
D41: =IFERROR(VLOOKUP(C41,التكويد!$A$2:$R$186,5,0),"") ->  | F41: 0
D42: =IFERROR(VLOOKUP(C42,التكويد!$A$2:$R$186,5,0),"") ->  | F42: 0
D43: =IFERROR(VLOOKUP(C43,التكويد!$A$2:$R$186,5,0),"") ->  | F43: 0
D44: =IFERROR(VLOOKUP(C44,التكويد!$A$2:$R$186,5,0),"") ->  | F44: 0
D45: =IFERROR(VLOOKUP(C45,التكويد!$A$2:$R$186,5,0),"") ->  | F45: 0
D46: =IFERROR(VLOOKUP(C46,التكويد!$A$2:$R$186,5,0),"") ->  | F46: 0
D47: =IFERROR(VLOOKUP(C47,التكويد!$A$2:$R$186,5,0),"") ->  | F47: 0
D48: =IFERROR(VLOOKUP(C48,التكويد!$A$2:$R$186,5,0),"") ->  | F48: 0
D49: =IFERROR(VLOOKUP(C49,التكويد!$A$2:$R$186,5,0),"") ->  | F49: 0
D50: =IFERROR(VLOOKUP(C50,التكويد!$A$2:$R$186,5,0),"") ->  | F50: 0
D51: =IFERROR(VLOOKUP(C51,التكويد!$A$2:$R$186,5,0),"") ->  | F51: 0
D52: =IFERROR(VLOOKUP(C52,التكويد!$A$2:$R$186,5,0),"") ->  | F52: 0
D53: =IFERROR(VLOOKUP(C53,التكويد!$A$2:$R$186,5,0),"") ->  | F53: 0
D54: =IFERROR(VLOOKUP(C54,التكويد!$A$2:$R$186,5,0),"") ->  | F54: 0
D55: =IFERROR(VLOOKUP(C55,التكويد!$A$2:$R$186,5,0),"") ->  | F55: 0
D56: =IFERROR(VLOOKUP(C56,التكويد!$A$2:$R$186,5,0),"") ->  | F56: 0
D57: =IFERROR(VLOOKUP(C57,التكويد!$A$2:$R$186,5,0),"") ->  | F57: 0
D58: =IFERROR(VLOOKUP(C58,التكويد!$A$2:$R$186,5,0),"") ->  | F58: 0
D59: =IFERROR(VLOOKUP(C59,التكويد!$A$2:$R$186,5,0),"") ->  | F59: 0
D60: =IFERROR(VLOOKUP(C60,التكويد!$A$2:$R$186,5,0),"") ->  | F60: 0
D61: =IFERROR(VLOOKUP(C61,التكويد!$A$2:$R$186,5,0),"") ->  | F61: 0
D62: =IFERROR(VLOOKUP(C62,التكويد!$A$2:$R$186,5,0),"") ->  | F62: 0
D63: =IFERROR(VLOOKUP(C63,التكويد!$A$2:$R$186,5,0),"") ->  | F63: 0
D64: =IFERROR(VLOOKUP(C64,التكويد!$A$2:$R$186,5,0),"") ->  | F64: 0
D65: =IFERROR(VLOOKUP(C65,التكويد!$A$2:$R$186,5,0),"") ->  | F65: 0
D66: =IFERROR(VLOOKUP(C66,التكويد!$A$2:$R$186,5,0),"") ->  | F66: 0
D67: =IFERROR(VLOOKUP(C67,التكويد!$A$2:$R$186,5,0),"") ->  | F67: =IFERROR(SUM(G67*E67),"") -> 0
D68: =IFERROR(VLOOKUP(C68,التكويد!$A$2:$R$186,5,0),"") ->  | F68: 0
D69: =IFERROR(VLOOKUP(C69,التكويد!$A$2:$R$186,5,0),"") ->  | F69: 0
D70: =IFERROR(VLOOKUP(C70,التكويد!$A$2:$R$186,5,0),"") ->  | F70: 0
D71: =IFERROR(VLOOKUP(C71,التكويد!$A$2:$R$186,5,0),"") ->  | F71: 0
D72: =IFERROR(VLOOKUP(C72,التكويد!$A$2:$R$186,5,0),"") ->  | F72: 0
D73: =IFERROR(VLOOKUP(C73,التكويد!$A$2:$R$186,5,0),"") ->  | F73: 0
D74: =IFERROR(VLOOKUP(C74,التكويد!$A$2:$R$186,5,0),"") ->  | F74: 0
D75: =IFERROR(VLOOKUP(C75,التكويد!$A$2:$R$186,5,0),"") ->  | F75: 0
D76: =IFERROR(VLOOKUP(C76,التكويد!$A$2:$R$186,5,0),"") ->  | F76: 0
D77: =IFERROR(VLOOKUP(C77,التكويد!$A$2:$R$186,5,0),"") ->  | F77: 0
D78: =IFERROR(VLOOKUP(C78,التكويد!$A$2:$R$186,5,0),"") ->  | F78: 0
D79: =IFERROR(VLOOKUP(C79,التكويد!$A$2:$R$186,5,0),"") ->  | F79: 0
D80: =IFERROR(VLOOKUP(C80,التكويد!$A$2:$R$186,5,0),"") ->  | F80: 0
D81: =IFERROR(VLOOKUP(C81,التكويد!$A$2:$R$186,5,0),"") ->  | F81: 0
D82: =IFERROR(VLOOKUP(C82,التكويد!$A$2:$R$186,5,0),"") ->  | F82: 0
D83: =IFERROR(VLOOKUP(C83,التكويد!$A$2:$R$186,5,0),"") ->  | F83: 0
D84: =IFERROR(VLOOKUP(C84,التكويد!$A$2:$R$186,5,0),"") ->  | F84: 0
D85: =IFERROR(VLOOKUP(C85,التكويد!$A$2:$R$186,5,0),"") ->  | F85: 0
D86: =IFERROR(VLOOKUP(C86,التكويد!$A$2:$R$186,5,0),"") ->  | F86: 0
D87: =IFERROR(VLOOKUP(C87,التكويد!$A$2:$R$186,5,0),"") ->  | F87: 0
D88: =IFERROR(VLOOKUP(C88,التكويد!$A$2:$R$186,5,0),"") ->  | F88: 0
D89: =IFERROR(VLOOKUP(C89,التكويد!$A$2:$R$186,5,0),"") ->  | F89: 0
D90: =IFERROR(VLOOKUP(C90,التكويد!$A$2:$R$186,5,0),"") ->  | F90: 0
D91: =IFERROR(VLOOKUP(C91,التكويد!$A$2:$R$186,5,0),"") ->  | F91: 0
D92: =IFERROR(VLOOKUP(C92,التكويد!$A$2:$R$186,5,0),"") ->  | F92: 0
D93: =IFERROR(VLOOKUP(C93,التكويد!$A$2:$R$186,5,0),"") ->  | F93: 0
D94: =IFERROR(VLOOKUP(C94,التكويد!$A$2:$R$186,5,0),"") ->  | F94: 0
D95: =IFERROR(VLOOKUP(C95,التكويد!$A$2:$R$186,5,0),"") ->  | F95: 0
D96: =IFERROR(VLOOKUP(C96,التكويد!$A$2:$R$186,5,0),"") ->  | F96: 0
D97: =IFERROR(VLOOKUP(C97,التكويد!$A$2:$R$186,5,0),"") ->  | F97: 0
D98: =IFERROR(VLOOKUP(C98,التكويد!$A$2:$R$186,5,0),"") ->  | F98: 0
D99: =IFERROR(VLOOKUP(C99,التكويد!$A$2:$R$186,5,0),"") ->  | F99: 0
D100: =IFERROR(VLOOKUP(C100,التكويد!$A$2:$R$186,5,0),"") ->  | F100: 0
D101: =IFERROR(VLOOKUP(C101,التكويد!$A$2:$R$186,5,0),"") ->  | F101: 0
D102: =IFERROR(VLOOKUP(C102,التكويد!$A$2:$R$186,5,0),"") ->  | F102: 0
D103: =IFERROR(VLOOKUP(C103,التكويد!$A$2:$R$186,5,0),"") ->  | F103: 0
D104: =IFERROR(VLOOKUP(C104,التكويد!$A$2:$R$186,5,0),"") ->  | F104: 0
D105: =IFERROR(VLOOKUP(C105,التكويد!$A$2:$R$186,5,0),"") ->  | F105: 0
D106: =IFERROR(VLOOKUP(C106,التكويد!$A$2:$R$186,5,0),"") ->  | F106: 0
D107: =IFERROR(VLOOKUP(C107,التكويد!$A$2:$R$186,5,0),"") ->  | F107: 0
D108: =IFERROR(VLOOKUP(C108,التكويد!$A$2:$R$186,5,0),"") ->  | F108: 0
D109: =IFERROR(VLOOKUP(C109,التكويد!$A$2:$R$186,5,0),"") ->  | F109: 0
D110: =IFERROR(VLOOKUP(C110,التكويد!$A$2:$R$186,5,0),"") ->  | F110: 0
D111: =IFERROR(VLOOKUP(C111,التكويد!$A$2:$R$186,5,0),"") ->  | F111: 0
D112: =IFERROR(VLOOKUP(C112,التكويد!$A$2:$R$186,5,0),"") ->  | F112: 0
D113: =IFERROR(VLOOKUP(C113,التكويد!$A$2:$R$186,5,0),"") ->  | F113: 0
D114: =IFERROR(VLOOKUP(C114,التكويد!$A$2:$R$186,5,0),"") ->  | F114: 0
D115: =IFERROR(VLOOKUP(C115,التكويد!$A$2:$R$186,5,0),"") ->  | F115: 0
D116: =IFERROR(VLOOKUP(C116,التكويد!$A$2:$R$186,5,0),"") ->  | F116: 0
D117: =IFERROR(VLOOKUP(C117,التكويد!$A$2:$R$186,5,0),"") ->  | F117: 0
D118: =IFERROR(VLOOKUP(C118,التكويد!$A$2:$R$186,5,0),"") ->  | F118: 0
D119: =IFERROR(VLOOKUP(C119,التكويد!$A$2:$R$186,5,0),"") ->  | F119: 0
D120: =IFERROR(VLOOKUP(C120,التكويد!$A$2:$R$186,5,0),"") ->  | F120: 0
D121: =IFERROR(VLOOKUP(C121,التكويد!$A$2:$R$186,5,0),"") ->  | F121: 0
D122: =IFERROR(VLOOKUP(C122,التكويد!$A$2:$R$186,5,0),"") ->  | F122: 0
D123: =IFERROR(VLOOKUP(C123,التكويد!$A$2:$R$186,5,0),"") ->  | F123: 0
D124: =IFERROR(VLOOKUP(C124,التكويد!$A$2:$R$186,5,0),"") ->  | F124: 0
D125: =IFERROR(VLOOKUP(C125,التكويد!$A$2:$R$186,5,0),"") ->  | F125: 0
D126: =IFERROR(VLOOKUP(C126,التكويد!$A$2:$R$186,5,0),"") ->  | F126: 0
D127: =IFERROR(VLOOKUP(C127,التكويد!$A$2:$R$186,5,0),"") ->  | F127: 0
D128: =IFERROR(VLOOKUP(C128,التكويد!$A$2:$R$186,5,0),"") ->  | F128: 0
D129: =IFERROR(VLOOKUP(C129,التكويد!$A$2:$R$186,5,0),"") ->  | F129: 0
D130: =IFERROR(VLOOKUP(C130,التكويد!$A$2:$R$186,5,0),"") ->  | F130: 0
D131: =IFERROR(VLOOKUP(C131,التكويد!$A$2:$R$186,5,0),"") ->  | F131: =IFERROR(SUM(G131*E131),"") -> 0
D132: =IFERROR(VLOOKUP(C132,التكويد!$A$2:$R$186,5,0),"") ->  | F132: 0
D133: =IFERROR(VLOOKUP(C133,التكويد!$A$2:$R$186,5,0),"") ->  | F133: 0
D134: =IFERROR(VLOOKUP(C134,التكويد!$A$2:$R$186,5,0),"") ->  | F134: 0
D135: =IFERROR(VLOOKUP(C135,التكويد!$A$2:$R$186,5,0),"") ->  | F135: 0
D136: =IFERROR(VLOOKUP(C136,التكويد!$A$2:$R$186,5,0),"") ->  | F136: 0
D137: =IFERROR(VLOOKUP(C137,التكويد!$A$2:$R$186,5,0),"") ->  | F137: 0
D138: =IFERROR(VLOOKUP(C138,التكويد!$A$2:$R$186,5,0),"") ->  | F138: 0
D139: =IFERROR(VLOOKUP(C139,التكويد!$A$2:$R$186,5,0),"") ->  | F139: 0
D140: =IFERROR(VLOOKUP(C140,التكويد!$A$2:$R$186,5,0),"") ->  | F140: 0
D141: =IFERROR(VLOOKUP(C141,التكويد!$A$2:$R$186,5,0),"") ->  | F141: 0
D142: =IFERROR(VLOOKUP(C142,التكويد!$A$2:$R$186,5,0),"") ->  | F142: 0
D143: =IFERROR(VLOOKUP(C143,التكويد!$A$2:$R$186,5,0),"") ->  | F143: 0
D144: =IFERROR(VLOOKUP(C144,التكويد!$A$2:$R$186,5,0),"") ->  | F144: 0
D145: =IFERROR(VLOOKUP(C145,التكويد!$A$2:$R$186,5,0),"") ->  | F145: 0
D146: =IFERROR(VLOOKUP(C146,التكويد!$A$2:$R$186,5,0),"") ->  | F146: 0
D147: =IFERROR(VLOOKUP(C147,التكويد!$A$2:$R$186,5,0),"") ->  | F147: 0
D148: =IFERROR(VLOOKUP(C148,التكويد!$A$2:$R$186,5,0),"") ->  | F148: 0
D149: =IFERROR(VLOOKUP(C149,التكويد!$A$2:$R$186,5,0),"") ->  | F149: 0
D150: =IFERROR(VLOOKUP(C150,التكويد!$A$2:$R$186,5,0),"") ->  | F150: 0
D151: =IFERROR(VLOOKUP(C151,التكويد!$A$2:$R$186,5,0),"") ->  | F151: 0
D152: =IFERROR(VLOOKUP(C152,التكويد!$A$2:$R$186,5,0),"") ->  | F152: 0
D153: =IFERROR(VLOOKUP(C153,التكويد!$A$2:$R$186,5,0),"") ->  | F153: 0
D154: =IFERROR(VLOOKUP(C154,التكويد!$A$2:$R$186,5,0),"") ->  | F154: 0
D155: =IFERROR(VLOOKUP(C155,التكويد!$A$2:$R$186,5,0),"") ->  | F155: 0
D156: =IFERROR(VLOOKUP(C156,التكويد!$A$2:$R$186,5,0),"") ->  | F156: 0
D157: =IFERROR(VLOOKUP(C157,التكويد!$A$2:$R$186,5,0),"") ->  | F157: 0
D158: =IFERROR(VLOOKUP(C158,التكويد!$A$2:$R$186,5,0),"") ->  | F158: 0
D159: =IFERROR(VLOOKUP(C159,التكويد!$A$2:$R$186,5,0),"") ->  | F159: 0
D160: =IFERROR(VLOOKUP(C160,التكويد!$A$2:$R$186,5,0),"") ->  | F160: 0
D161: =IFERROR(VLOOKUP(C161,التكويد!$A$2:$R$186,5,0),"") ->  | F161: 0
D162: =IFERROR(VLOOKUP(C162,التكويد!$A$2:$R$186,5,0),"") ->  | F162: 0
D163: =IFERROR(VLOOKUP(C163,التكويد!$A$2:$R$186,5,0),"") ->  | F163: 0
D164: =IFERROR(VLOOKUP(C164,التكويد!$A$2:$R$186,5,0),"") ->  | F164: 0
D165: =IFERROR(VLOOKUP(C165,التكويد!$A$2:$R$186,5,0),"") ->  | F165: 0
D166: =IFERROR(VLOOKUP(C166,التكويد!$A$2:$R$186,5,0),"") ->  | F166: 0
D167: =IFERROR(VLOOKUP(C167,التكويد!$A$2:$R$186,5,0),"") ->  | F167: 0
D168: =IFERROR(VLOOKUP(C168,التكويد!$A$2:$R$186,5,0),"") ->  | F168: 0
D169: =IFERROR(VLOOKUP(C169,التكويد!$A$2:$R$186,5,0),"") ->  | F169: 0
D170: =IFERROR(VLOOKUP(C170,التكويد!$A$2:$R$186,5,0),"") ->  | F170: 0
D171: =IFERROR(VLOOKUP(C171,التكويد!$A$2:$R$186,5,0),"") ->  | F171: 0
D172: =IFERROR(VLOOKUP(C172,التكويد!$A$2:$R$186,5,0),"") ->  | F172: 0
D173: =IFERROR(VLOOKUP(C173,التكويد!$A$2:$R$186,5,0),"") ->  | F173: 0
D174: =IFERROR(VLOOKUP(C174,التكويد!$A$2:$R$186,5,0),"") ->  | F174: 0
D175: =IFERROR(VLOOKUP(C175,التكويد!$A$2:$R$186,5,0),"") ->  | F175: 0
D176: =IFERROR(VLOOKUP(C176,التكويد!$A$2:$R$186,5,0),"") ->  | F176: 0
D177: =IFERROR(VLOOKUP(C177,التكويد!$A$2:$R$186,5,0),"") ->  | F177: 0
D178: =IFERROR(VLOOKUP(C178,التكويد!$A$2:$R$186,5,0),"") ->  | F178: 0
D179: =IFERROR(VLOOKUP(C179,التكويد!$A$2:$R$186,5,0),"") ->  | F179: 0
D180: =IFERROR(VLOOKUP(C180,التكويد!$A$2:$R$186,5,0),"") ->  | F180: 0
D181: =IFERROR(VLOOKUP(C181,التكويد!$A$2:$R$186,5,0),"") ->  | F181: 0
D182: =IFERROR(VLOOKUP(C182,التكويد!$A$2:$R$186,5,0),"") ->  | F182: 0
D183: =IFERROR(VLOOKUP(C183,التكويد!$A$2:$R$186,5,0),"") ->  | F183: 0
D184: =IFERROR(VLOOKUP(C184,التكويد!$A$2:$R$186,5,0),"") ->  | F184: 0
D185: =IFERROR(VLOOKUP(C185,التكويد!$A$2:$R$186,5,0),"") ->  | F185: 0
D186: =IFERROR(VLOOKUP(C186,التكويد!$A$2:$R$186,5,0),"") ->  | F186: 0
D187: =IFERROR(VLOOKUP(C187,التكويد!$A$2:$R$186,5,0),"") ->  | F187: 0
D188: =IFERROR(VLOOKUP(C188,التكويد!$A$2:$R$186,5,0),"") ->  | F188: 0
D189: =IFERROR(VLOOKUP(C189,التكويد!$A$2:$R$186,5,0),"") ->  | F189: 0
D190: =IFERROR(VLOOKUP(C190,التكويد!$A$2:$R$186,5,0),"") ->  | F190: 0
D191: =IFERROR(VLOOKUP(C191,التكويد!$A$2:$R$186,5,0),"") ->  | F191: 0
D192: =IFERROR(VLOOKUP(C192,التكويد!$A$2:$R$186,5,0),"") ->  | F192: 0
D193: =IFERROR(VLOOKUP(C193,التكويد!$A$2:$R$186,5,0),"") ->  | F193: 0
D194: =IFERROR(VLOOKUP(C194,التكويد!$A$2:$R$186,5,0),"") ->  | F194: 0
D195: =IFERROR(VLOOKUP(C195,التكويد!$A$2:$R$186,5,0),"") ->  | F195: =IFERROR(SUM(G195*E195),"") -> 0
D196: =IFERROR(VLOOKUP(C196,التكويد!$A$2:$R$186,5,0),"") ->  | F196: 0
D197: =IFERROR(VLOOKUP(C197,التكويد!$A$2:$R$186,5,0),"") ->  | F197: 0
D198: =IFERROR(VLOOKUP(C198,التكويد!$A$2:$R$186,5,0),"") ->  | F198: 0
D199: =IFERROR(VLOOKUP(C199,التكويد!$A$2:$R$186,5,0),"") ->  | F199: 0
D200: =IFERROR(VLOOKUP(C200,التكويد!$A$2:$R$186,5,0),"") ->  | F200: 0
... 4800 more rows

Sheet المرتجع
A1: التاريخ | B1: أذن المرتجع | C1: الكود | D1: اللون | E1: الكمية بالكيلو | F1: الكمية بالامتار | G1: وزن المتر | H1: الكمية بالقطع | I1: العميل | J1: b
A2: 15-2 | B2: 1 | C2: 6 | D2: =IFERROR(VLOOKUP(C2,التكويد!$A$2:$R$186,5,0),"") -> ابيض كروشيه 1سم | E2: 100 | F2: =IFERROR(SUM(G2*E2),"") -> 10000 | G2: 100 | H2: 100
A3: 15-2 | B3: 2 | C3: 6 | D3: =IFERROR(VLOOKUP(C3,التكويد!$A$2:$R$186,5,0),"") -> ابيض كروشيه 1سم | E3: 100 | F3: =IFERROR(SUM(G3*E3),"") -> 10000 | G3: 100 | H3: 100
A4: 15-2 | B4: 3 | C4: 6 | D4: =IFERROR(VLOOKUP(C4,التكويد!$A$2:$R$186,5,0),"") -> ابيض كروشيه 1سم | E4: 100 | F4: 10000 | G4: 100 | H4: 100
A5: 15-2 | B5: 4 | C5: 6 | D5: =IFERROR(VLOOKUP(C5,التكويد!$A$2:$R$186,5,0),"") -> ابيض كروشيه 1سم | E5: 100 | F5: 10000 | G5: 100 | H5: 100
A6: 15-2 | B6: 5 | C6: 6 | D6: =IFERROR(VLOOKUP(C6,التكويد!$A$2:$R$186,5,0),"") -> ابيض كروشيه 1سم | E6: 100 | F6: 10000 | G6: 100 | H6: 100
A7: 15-2 | B7: 6 | C7: 6 | D7: =IFERROR(VLOOKUP(C7,التكويد!$A$2:$R$186,5,0),"") -> ابيض كروشيه 1سم | E7: 100 | F7: 10000 | G7: 100 | H7: 100
D8: =IFERROR(VLOOKUP(C8,التكويد!$A$2:$R$186,5,0),"") ->  | F8: 0
D9: =IFERROR(VLOOKUP(C9,التكويد!$A$2:$R$186,5,0),"") ->  | F9: 0
D10: =IFERROR(VLOOKUP(C10,التكويد!$A$2:$R$186,5,0),"") ->  | F10: 0
D11: =IFERROR(VLOOKUP(C11,التكويد!$A$2:$R$186,5,0),"") ->  | F11: 0
D12: =IFERROR(VLOOKUP(C12,التكويد!$A$2:$R$186,5,0),"") ->  | F12: 0
D13: =IFERROR(VLOOKUP(C13,التكويد!$A$2:$R$186,5,0),"") ->  | F13: 0
D14: =IFERROR(VLOOKUP(C14,التكويد!$A$2:$R$186,5,0),"") ->  | F14: 0
D15: =IFERROR(VLOOKUP(C15,التكويد!$A$2:$R$186,5,0),"") ->  | F15: 0
D16: =IFERROR(VLOOKUP(C16,التكويد!$A$2:$R$186,5,0),"") ->  | F16: 0
D17: =IFERROR(VLOOKUP(C17,التكويد!$A$2:$R$186,5,0),"") ->  | F17: 0
D18: =IFERROR(VLOOKUP(C18,التكويد!$A$2:$R$186,5,0),"") ->  | F18: 0
D19: =IFERROR(VLOOKUP(C19,التكويد!$A$2:$R$186,5,0),"") ->  | F19: 0
D20: =IFERROR(VLOOKUP(C20,التكويد!$A$2:$R$186,5,0),"") ->  | F20: 0
D21: =IFERROR(VLOOKUP(C21,التكويد!$A$2:$R$186,5,0),"") ->  | F21: 0
D22: =IFERROR(VLOOKUP(C22,التكويد!$A$2:$R$186,5,0),"") ->  | F22: 0
D23: =IFERROR(VLOOKUP(C23,التكويد!$A$2:$R$186,5,0),"") ->  | F23: 0
D24: =IFERROR(VLOOKUP(C24,التكويد!$A$2:$R$186,5,0),"") ->  | F24: 0
D25: =IFERROR(VLOOKUP(C25,التكويد!$A$2:$R$186,5,0),"") ->  | F25: 0
D26: =IFERROR(VLOOKUP(C26,التكويد!$A$2:$R$186,5,0),"") ->  | F26: 0
D27: =IFERROR(VLOOKUP(C27,التكويد!$A$2:$R$186,5,0),"") ->  | F27: 0
D28: =IFERROR(VLOOKUP(C28,التكويد!$A$2:$R$186,5,0),"") ->  | F28: 0
D29: =IFERROR(VLOOKUP(C29,التكويد!$A$2:$R$186,5,0),"") ->  | F29: 0
D30: =IFERROR(VLOOKUP(C30,التكويد!$A$2:$R$186,5,0),"") ->  | F30: 0
D31: =IFERROR(VLOOKUP(C31,التكويد!$A$2:$R$186,5,0),"") ->  | F31: 0
D32: =IFERROR(VLOOKUP(C32,التكويد!$A$2:$R$186,5,0),"") ->  | F32: 0
D33: =IFERROR(VLOOKUP(C33,التكويد!$A$2:$R$186,5,0),"") ->  | F33: 0
D34: =IFERROR(VLOOKUP(C34,التكويد!$A$2:$R$186,5,0),"") ->  | F34: 0
D35: =IFERROR(VLOOKUP(C35,التكويد!$A$2:$R$186,5,0),"") ->  | F35: 0
D36: =IFERROR(VLOOKUP(C36,التكويد!$A$2:$R$186,5,0),"") ->  | F36: 0
D37: =IFERROR(VLOOKUP(C37,التكويد!$A$2:$R$186,5,0),"") ->  | F37: 0
D38: =IFERROR(VLOOKUP(C38,التكويد!$A$2:$R$186,5,0),"") ->  | F38: 0
D39: =IFERROR(VLOOKUP(C39,التكويد!$A$2:$R$186,5,0),"") ->  | F39: 0
D40: =IFERROR(VLOOKUP(C40,التكويد!$A$2:$R$186,5,0),"") ->  | F40: 0
D41: =IFERROR(VLOOKUP(C41,التكويد!$A$2:$R$186,5,0),"") ->  | F41: 0
D42: =IFERROR(VLOOKUP(C42,التكويد!$A$2:$R$186,5,0),"") ->  | F42: 0
D43: =IFERROR(VLOOKUP(C43,التكويد!$A$2:$R$186,5,0),"") ->  | F43: 0
D44: =IFERROR(VLOOKUP(C44,التكويد!$A$2:$R$186,5,0),"") ->  | F44: 0
D45: =IFERROR(VLOOKUP(C45,التكويد!$A$2:$R$186,5,0),"") ->  | F45: 0
D46: =IFERROR(VLOOKUP(C46,التكويد!$A$2:$R$186,5,0),"") ->  | F46: 0
D47: =IFERROR(VLOOKUP(C47,التكويد!$A$2:$R$186,5,0),"") ->  | F47: 0
D48: =IFERROR(VLOOKUP(C48,التكويد!$A$2:$R$186,5,0),"") ->  | F48: 0
D49: =IFERROR(VLOOKUP(C49,التكويد!$A$2:$R$186,5,0),"") ->  | F49: 0
D50: =IFERROR(VLOOKUP(C50,التكويد!$A$2:$R$186,5,0),"") ->  | F50: 0
D51: =IFERROR(VLOOKUP(C51,التكويد!$A$2:$R$186,5,0),"") ->  | F51: 0
D52: =IFERROR(VLOOKUP(C52,التكويد!$A$2:$R$186,5,0),"") ->  | F52: 0
D53: =IFERROR(VLOOKUP(C53,التكويد!$A$2:$R$186,5,0),"") ->  | F53: 0
D54: =IFERROR(VLOOKUP(C54,التكويد!$A$2:$R$186,5,0),"") ->  | F54: 0
D55: =IFERROR(VLOOKUP(C55,التكويد!$A$2:$R$186,5,0),"") ->  | F55: 0
D56: =IFERROR(VLOOKUP(C56,التكويد!$A$2:$R$186,5,0),"") ->  | F56: 0
D57: =IFERROR(VLOOKUP(C57,التكويد!$A$2:$R$186,5,0),"") ->  | F57: 0
D58: =IFERROR(VLOOKUP(C58,التكويد!$A$2:$R$186,5,0),"") ->  | F58: 0
D59: =IFERROR(VLOOKUP(C59,التكويد!$A$2:$R$186,5,0),"") ->  | F59: 0
D60: =IFERROR(VLOOKUP(C60,التكويد!$A$2:$R$186,5,0),"") ->  | F60: 0
D61: =IFERROR(VLOOKUP(C61,التكويد!$A$2:$R$186,5,0),"") ->  | F61: 0
D62: =IFERROR(VLOOKUP(C62,التكويد!$A$2:$R$186,5,0),"") ->  | F62: 0
D63: =IFERROR(VLOOKUP(C63,التكويد!$A$2:$R$186,5,0),"") ->  | F63: 0
D64: =IFERROR(VLOOKUP(C64,التكويد!$A$2:$R$186,5,0),"") ->  | F64: 0
D65: =IFERROR(VLOOKUP(C65,التكويد!$A$2:$R$186,5,0),"") ->  | F65: 0
D66: =IFERROR(VLOOKUP(C66,التكويد!$A$2:$R$186,5,0),"") ->  | F66: 0
D67: =IFERROR(VLOOKUP(C67,التكويد!$A$2:$R$186,5,0),"") ->  | F67: =IFERROR(SUM(G67*E67),"") -> 0
D68: =IFERROR(VLOOKUP(C68,التكويد!$A$2:$R$186,5,0),"") ->  | F68: 0
D69: =IFERROR(VLOOKUP(C69,التكويد!$A$2:$R$186,5,0),"") ->  | F69: 0
D70: =IFERROR(VLOOKUP(C70,التكويد!$A$2:$R$186,5,0),"") ->  | F70: 0
D71: =IFERROR(VLOOKUP(C71,التكويد!$A$2:$R$186,5,0),"") ->  | F71: 0
D72: =IFERROR(VLOOKUP(C72,التكويد!$A$2:$R$186,5,0),"") ->  | F72: 0
D73: =IFERROR(VLOOKUP(C73,التكويد!$A$2:$R$186,5,0),"") ->  | F73: 0
D74: =IFERROR(VLOOKUP(C74,التكويد!$A$2:$R$186,5,0),"") ->  | F74: 0
D75: =IFERROR(VLOOKUP(C75,التكويد!$A$2:$R$186,5,0),"") ->  | F75: 0
D76: =IFERROR(VLOOKUP(C76,التكويد!$A$2:$R$186,5,0),"") ->  | F76: 0
D77: =IFERROR(VLOOKUP(C77,التكويد!$A$2:$R$186,5,0),"") ->  | F77: 0
D78: =IFERROR(VLOOKUP(C78,التكويد!$A$2:$R$186,5,0),"") ->  | F78: 0
D79: =IFERROR(VLOOKUP(C79,التكويد!$A$2:$R$186,5,0),"") ->  | F79: 0
D80: =IFERROR(VLOOKUP(C80,التكويد!$A$2:$R$186,5,0),"") ->  | F80: 0
D81: =IFERROR(VLOOKUP(C81,التكويد!$A$2:$R$186,5,0),"") ->  | F81: 0
D82: =IFERROR(VLOOKUP(C82,التكويد!$A$2:$R$186,5,0),"") ->  | F82: 0
D83: =IFERROR(VLOOKUP(C83,التكويد!$A$2:$R$186,5,0),"") ->  | F83: 0
D84: =IFERROR(VLOOKUP(C84,التكويد!$A$2:$R$186,5,0),"") ->  | F84: 0
D85: =IFERROR(VLOOKUP(C85,التكويد!$A$2:$R$186,5,0),"") ->  | F85: 0
D86: =IFERROR(VLOOKUP(C86,التكويد!$A$2:$R$186,5,0),"") ->  | F86: 0
D87: =IFERROR(VLOOKUP(C87,التكويد!$A$2:$R$186,5,0),"") ->  | F87: 0
D88: =IFERROR(VLOOKUP(C88,التكويد!$A$2:$R$186,5,0),"") ->  | F88: 0
D89: =IFERROR(VLOOKUP(C89,التكويد!$A$2:$R$186,5,0),"") ->  | F89: 0
D90: =IFERROR(VLOOKUP(C90,التكويد!$A$2:$R$186,5,0),"") ->  | F90: 0
D91: =IFERROR(VLOOKUP(C91,التكويد!$A$2:$R$186,5,0),"") ->  | F91: 0
D92: =IFERROR(VLOOKUP(C92,التكويد!$A$2:$R$186,5,0),"") ->  | F92: 0
D93: =IFERROR(VLOOKUP(C93,التكويد!$A$2:$R$186,5,0),"") ->  | F93: 0
D94: =IFERROR(VLOOKUP(C94,التكويد!$A$2:$R$186,5,0),"") ->  | F94: 0
D95: =IFERROR(VLOOKUP(C95,التكويد!$A$2:$R$186,5,0),"") ->  | F95: 0
D96: =IFERROR(VLOOKUP(C96,التكويد!$A$2:$R$186,5,0),"") ->  | F96: 0
D97: =IFERROR(VLOOKUP(C97,التكويد!$A$2:$R$186,5,0),"") ->  | F97: 0
D98: =IFERROR(VLOOKUP(C98,التكويد!$A$2:$R$186,5,0),"") ->  | F98: 0
D99: =IFERROR(VLOOKUP(C99,التكويد!$A$2:$R$186,5,0),"") ->  | F99: 0
D100: =IFERROR(VLOOKUP(C100,التكويد!$A$2:$R$186,5,0),"") ->  | F100: 0
D101: =IFERROR(VLOOKUP(C101,التكويد!$A$2:$R$186,5,0),"") ->  | F101: 0
D102: =IFERROR(VLOOKUP(C102,التكويد!$A$2:$R$186,5,0),"") ->  | F102: 0
D103: =IFERROR(VLOOKUP(C103,التكويد!$A$2:$R$186,5,0),"") ->  | F103: 0
D104: =IFERROR(VLOOKUP(C104,التكويد!$A$2:$R$186,5,0),"") ->  | F104: 0
D105: =IFERROR(VLOOKUP(C105,التكويد!$A$2:$R$186,5,0),"") ->  | F105: 0
D106: =IFERROR(VLOOKUP(C106,التكويد!$A$2:$R$186,5,0),"") ->  | F106: 0
D107: =IFERROR(VLOOKUP(C107,التكويد!$A$2:$R$186,5,0),"") ->  | F107: 0
D108: =IFERROR(VLOOKUP(C108,التكويد!$A$2:$R$186,5,0),"") ->  | F108: 0
D109: =IFERROR(VLOOKUP(C109,التكويد!$A$2:$R$186,5,0),"") ->  | F109: 0
D110: =IFERROR(VLOOKUP(C110,التكويد!$A$2:$R$186,5,0),"") ->  | F110: 0
D111: =IFERROR(VLOOKUP(C111,التكويد!$A$2:$R$186,5,0),"") ->  | F111: 0
D112: =IFERROR(VLOOKUP(C112,التكويد!$A$2:$R$186,5,0),"") ->  | F112: 0
D113: =IFERROR(VLOOKUP(C113,التكويد!$A$2:$R$186,5,0),"") ->  | F113: 0
D114: =IFERROR(VLOOKUP(C114,التكويد!$A$2:$R$186,5,0),"") ->  | F114: 0
D115: =IFERROR(VLOOKUP(C115,التكويد!$A$2:$R$186,5,0),"") ->  | F115: 0
D116: =IFERROR(VLOOKUP(C116,التكويد!$A$2:$R$186,5,0),"") ->  | F116: 0
D117: =IFERROR(VLOOKUP(C117,التكويد!$A$2:$R$186,5,0),"") ->  | F117: 0
D118: =IFERROR(VLOOKUP(C118,التكويد!$A$2:$R$186,5,0),"") ->  | F118: 0
D119: =IFERROR(VLOOKUP(C119,التكويد!$A$2:$R$186,5,0),"") ->  | F119: 0
D120: =IFERROR(VLOOKUP(C120,التكويد!$A$2:$R$186,5,0),"") ->  | F120: 0
D121: =IFERROR(VLOOKUP(C121,التكويد!$A$2:$R$186,5,0),"") ->  | F121: 0
D122: =IFERROR(VLOOKUP(C122,التكويد!$A$2:$R$186,5,0),"") ->  | F122: 0
D123: =IFERROR(VLOOKUP(C123,التكويد!$A$2:$R$186,5,0),"") ->  | F123: 0
D124: =IFERROR(VLOOKUP(C124,التكويد!$A$2:$R$186,5,0),"") ->  | F124: 0
D125: =IFERROR(VLOOKUP(C125,التكويد!$A$2:$R$186,5,0),"") ->  | F125: 0
D126: =IFERROR(VLOOKUP(C126,التكويد!$A$2:$R$186,5,0),"") ->  | F126: 0
D127: =IFERROR(VLOOKUP(C127,التكويد!$A$2:$R$186,5,0),"") ->  | F127: 0
D128: =IFERROR(VLOOKUP(C128,التكويد!$A$2:$R$186,5,0),"") ->  | F128: 0
D129: =IFERROR(VLOOKUP(C129,التكويد!$A$2:$R$186,5,0),"") ->  | F129: 0
D130: =IFERROR(VLOOKUP(C130,التكويد!$A$2:$R$186,5,0),"") ->  | F130: 0
D131: =IFERROR(VLOOKUP(C131,التكويد!$A$2:$R$186,5,0),"") ->  | F131: =IFERROR(SUM(G131*E131),"") -> 0
D132: =IFERROR(VLOOKUP(C132,التكويد!$A$2:$R$186,5,0),"") ->  | F132: 0
D133: =IFERROR(VLOOKUP(C133,التكويد!$A$2:$R$186,5,0),"") ->  | F133: 0
D134: =IFERROR(VLOOKUP(C134,التكويد!$A$2:$R$186,5,0),"") ->  | F134: 0
D135: =IFERROR(VLOOKUP(C135,التكويد!$A$2:$R$186,5,0),"") ->  | F135: 0
D136: =IFERROR(VLOOKUP(C136,التكويد!$A$2:$R$186,5,0),"") ->  | F136: 0
D137: =IFERROR(VLOOKUP(C137,التكويد!$A$2:$R$186,5,0),"") ->  | F137: 0
D138: =IFERROR(VLOOKUP(C138,التكويد!$A$2:$R$186,5,0),"") ->  | F138: 0
D139: =IFERROR(VLOOKUP(C139,التكويد!$A$2:$R$186,5,0),"") ->  | F139: 0
D140: =IFERROR(VLOOKUP(C140,التكويد!$A$2:$R$186,5,0),"") ->  | F140: 0
D141: =IFERROR(VLOOKUP(C141,التكويد!$A$2:$R$186,5,0),"") ->  | F141: 0
D142: =IFERROR(VLOOKUP(C142,التكويد!$A$2:$R$186,5,0),"") ->  | F142: 0
D143: =IFERROR(VLOOKUP(C143,التكويد!$A$2:$R$186,5,0),"") ->  | F143: 0
D144: =IFERROR(VLOOKUP(C144,التكويد!$A$2:$R$186,5,0),"") ->  | F144: 0
D145: =IFERROR(VLOOKUP(C145,التكويد!$A$2:$R$186,5,0),"") ->  | F145: 0
D146: =IFERROR(VLOOKUP(C146,التكويد!$A$2:$R$186,5,0),"") ->  | F146: 0
D147: =IFERROR(VLOOKUP(C147,التكويد!$A$2:$R$186,5,0),"") ->  | F147: 0
D148: =IFERROR(VLOOKUP(C148,التكويد!$A$2:$R$186,5,0),"") ->  | F148: 0
D149: =IFERROR(VLOOKUP(C149,التكويد!$A$2:$R$186,5,0),"") ->  | F149: 0
D150: =IFERROR(VLOOKUP(C150,التكويد!$A$2:$R$186,5,0),"") ->  | F150: 0
D151: =IFERROR(VLOOKUP(C151,التكويد!$A$2:$R$186,5,0),"") ->  | F151: 0
D152: =IFERROR(VLOOKUP(C152,التكويد!$A$2:$R$186,5,0),"") ->  | F152: 0
D153: =IFERROR(VLOOKUP(C153,التكويد!$A$2:$R$186,5,0),"") ->  | F153: 0
D154: =IFERROR(VLOOKUP(C154,التكويد!$A$2:$R$186,5,0),"") ->  | F154: 0
D155: =IFERROR(VLOOKUP(C155,التكويد!$A$2:$R$186,5,0),"") ->  | F155: 0
D156: =IFERROR(VLOOKUP(C156,التكويد!$A$2:$R$186,5,0),"") ->  | F156: 0
D157: =IFERROR(VLOOKUP(C157,التكويد!$A$2:$R$186,5,0),"") ->  | F157: 0
D158: =IFERROR(VLOOKUP(C158,التكويد!$A$2:$R$186,5,0),"") ->  | F158: 0
D159: =IFERROR(VLOOKUP(C159,التكويد!$A$2:$R$186,5,0),"") ->  | F159: 0
D160: =IFERROR(VLOOKUP(C160,التكويد!$A$2:$R$186,5,0),"") ->  | F160: 0
D161: =IFERROR(VLOOKUP(C161,التكويد!$A$2:$R$186,5,0),"") ->  | F161: 0
D162: =IFERROR(VLOOKUP(C162,التكويد!$A$2:$R$186,5,0),"") ->  | F162: 0
D163: =IFERROR(VLOOKUP(C163,التكويد!$A$2:$R$186,5,0),"") ->  | F163: 0
D164: =IFERROR(VLOOKUP(C164,التكويد!$A$2:$R$186,5,0),"") ->  | F164: 0
D165: =IFERROR(VLOOKUP(C165,التكويد!$A$2:$R$186,5,0),"") ->  | F165: 0
D166: =IFERROR(VLOOKUP(C166,التكويد!$A$2:$R$186,5,0),"") ->  | F166: 0
D167: =IFERROR(VLOOKUP(C167,التكويد!$A$2:$R$186,5,0),"") ->  | F167: 0
D168: =IFERROR(VLOOKUP(C168,التكويد!$A$2:$R$186,5,0),"") ->  | F168: 0
D169: =IFERROR(VLOOKUP(C169,التكويد!$A$2:$R$186,5,0),"") ->  | F169: 0
D170: =IFERROR(VLOOKUP(C170,التكويد!$A$2:$R$186,5,0),"") ->  | F170: 0
D171: =IFERROR(VLOOKUP(C171,التكويد!$A$2:$R$186,5,0),"") ->  | F171: 0
D172: =IFERROR(VLOOKUP(C172,التكويد!$A$2:$R$186,5,0),"") ->  | F172: 0
D173: =IFERROR(VLOOKUP(C173,التكويد!$A$2:$R$186,5,0),"") ->  | F173: 0
D174: =IFERROR(VLOOKUP(C174,التكويد!$A$2:$R$186,5,0),"") ->  | F174: 0
D175: =IFERROR(VLOOKUP(C175,التكويد!$A$2:$R$186,5,0),"") ->  | F175: 0
D176: =IFERROR(VLOOKUP(C176,التكويد!$A$2:$R$186,5,0),"") ->  | F176: 0
D177: =IFERROR(VLOOKUP(C177,التكويد!$A$2:$R$186,5,0),"") ->  | F177: 0
D178: =IFERROR(VLOOKUP(C178,التكويد!$A$2:$R$186,5,0),"") ->  | F178: 0
D179: =IFERROR(VLOOKUP(C179,التكويد!$A$2:$R$186,5,0),"") ->  | F179: 0
D180: =IFERROR(VLOOKUP(C180,التكويد!$A$2:$R$186,5,0),"") ->  | F180: 0
D181: =IFERROR(VLOOKUP(C181,التكويد!$A$2:$R$186,5,0),"") ->  | F181: 0
D182: =IFERROR(VLOOKUP(C182,التكويد!$A$2:$R$186,5,0),"") ->  | F182: 0
D183: =IFERROR(VLOOKUP(C183,التكويد!$A$2:$R$186,5,0),"") ->  | F183: 0
D184: =IFERROR(VLOOKUP(C184,التكويد!$A$2:$R$186,5,0),"") ->  | F184: 0
D185: =IFERROR(VLOOKUP(C185,التكويد!$A$2:$R$186,5,0),"") ->  | F185: 0
D186: =IFERROR(VLOOKUP(C186,التكويد!$A$2:$R$186,5,0),"") ->  | F186: 0
D187: =IFERROR(VLOOKUP(C187,التكويد!$A$2:$R$186,5,0),"") ->  | F187: 0
D188: =IFERROR(VLOOKUP(C188,التكويد!$A$2:$R$186,5,0),"") ->  | F188: 0
D189: =IFERROR(VLOOKUP(C189,التكويد!$A$2:$R$186,5,0),"") ->  | F189: 0
D190: =IFERROR(VLOOKUP(C190,التكويد!$A$2:$R$186,5,0),"") ->  | F190: 0
D191: =IFERROR(VLOOKUP(C191,التكويد!$A$2:$R$186,5,0),"") ->  | F191: 0
D192: =IFERROR(VLOOKUP(C192,التكويد!$A$2:$R$186,5,0),"") ->  | F192: 0
D193: =IFERROR(VLOOKUP(C193,التكويد!$A$2:$R$186,5,0),"") ->  | F193: 0
D194: =IFERROR(VLOOKUP(C194,التكويد!$A$2:$R$186,5,0),"") ->  | F194: 0
D195: =IFERROR(VLOOKUP(C195,التكويد!$A$2:$R$186,5,0),"") ->  | F195: =IFERROR(SUM(G195*E195),"") -> 0
D196: =IFERROR(VLOOKUP(C196,التكويد!$A$2:$R$186,5,0),"") ->  | F196: 0
D197: =IFERROR(VLOOKUP(C197,التكويد!$A$2:$R$186,5,0),"") ->  | F197: 0
D198: =IFERROR(VLOOKUP(C198,التكويد!$A$2:$R$186,5,0),"") ->  | F198: 0
D199: =IFERROR(VLOOKUP(C199,التكويد!$A$2:$R$186,5,0),"") ->  | F199: 0
D200: =IFERROR(VLOOKUP(C200,التكويد!$A$2:$R$186,5,0),"") ->  | F200: 0
... 4800 more rows

Sheet MN
A1: التاريخ | B1: أذن أضافة | C1: أذن الصرف | D1: أذن المرتجع | E1: الكود | F1: اللون | G1: الكمية بالكيلو | H1: الكمية بالامتار | I1: وزن المتر | J1: الكمية بالقطع | K1: العميل | L1: b
A2: 15-2 | B2: 1 | E2: 1 | F2: =IFERROR(VLOOKUP(E2,التكويد!$A$2:$R$186,5,0),"") -> ابيض استك طبي | G2: 4 | H2: =IFERROR(SUM(I2*G2),"") -> 20 | I2: 5 | J2: 6 | K2: a | X2: 5
A3: 15-2 | C3: 2 | E3: 1 | F3: =IFERROR(VLOOKUP(E3,التكويد!$A$2:$R$186,5,0),"") -> ابيض استك طبي | G3: 7 | H3: =IFERROR(SUM(I3*G3),"") -> 56 | I3: 8 | J3: 9 | X3: 10
A4: 15-2 | D4: 3 | E4: 1 | F4: =IFERROR(VLOOKUP(E4,التكويد!$A$2:$R$186,5,0),"") -> ابيض استك طبي | G4: 10 | H4: 110 | I4: 11 | J4: 12 | X4: 15
A5: 15-2 | B5: 4 | E5: 2 | F5: =IFERROR(VLOOKUP(E5,التكويد!$A$2:$R$186,5,0),"") -> ابيض كروشيه 1.2سم | G5: 13 | H5: 182 | I5: 14 | J5: 15 | X5: 20
A6: 15-3 | C6: 5 | E6: 2 | F6: =IFERROR(VLOOKUP(E6,التكويد!$A$2:$R$186,5,0),"") -> ابيض كروشيه 1.2سم | G6: 16 | H6: 272 | I6: 17 | J6: 18 | K6: jjj | X6: 25
A7: 15-2 | D7: 6 | E7: 2 | F7: =IFERROR(VLOOKUP(E7,التكويد!$A$2:$R$186,5,0),"") -> ابيض كروشيه 1.2سم | G7: 19 | H7: 380 | I7: 20 | J7: 21 | K7: a | X7: 30
A8: 15-3 | B8: 3 | E8: 1 | F8: =IFERROR(VLOOKUP(E8,التكويد!$A$2:$R$186,5,0),"") -> ابيض استك طبي | G8: 1 | H8: 1 | I8: 1 | J8: 3 | K8: محمد | X8: 35
A9: 15-4 | B9: 5 | E9: 1 | F9: =IFERROR(VLOOKUP(E9,التكويد!$A$2:$R$186,5,0),"") -> ابيض استك طبي | G9: 100 | H9: 10000 | I9: 100 | J9: 100 | K9: AHMED | X9: 40
A10: 15-4 | C10: 6 | E10: 1 | F10: =IFERROR(VLOOKUP(E10,التكويد!$A$2:$R$186,5,0),"") -> ابيض استك طبي | G10: 10 | H10: 100 | I10: 10 | J10: 10 | K10: A
A11: 15-4 | E11: 1 | F11: =IFERROR(VLOOKUP(E11,التكويد!$A$2:$R$186,5,0),"") -> ابيض استك طبي | G11: 15 | H11: 225 | I11: 15
A12: 15 | B12: 4 | E12: 1 | F12: =IFERROR(VLOOKUP(E12,التكويد!$A$2:$R$186,5,0),"") -> ابيض استك طبي | G12: 1 | H12: 2 | I12: 2 | J12: 3 | K12: G
A13: 15 | C13: 4 | E13: 1 | F13: =IFERROR(VLOOKUP(E13,التكويد!$A$2:$R$186,5,0),"") -> ابيض استك طبي | G13: 1 | H13: 2 | I13: 2 | J13: 3 | K13: G
A14: 15 | D14: 4 | E14: 1 | F14: =IFERROR(VLOOKUP(E14,التكويد!$A$2:$R$186,5,0),"") -> ابيض استك طبي | G14: 1 | H14: 2 | I14: 2 | J14: 3 | K14: G
A15: 15 | B15: 4 | E15: 1 | F15: =IFERROR(VLOOKUP(E15,التكويد!$A$2:$R$186,5,0),"") -> ابيض استك طبي | G15: 1 | H15: 2 | I15: 2 | J15: 3 | K15: A
A16: 15 | B16: 4 | E16: 1 | F16: =IFERROR(VLOOKUP(E16,التكويد!$A$2:$R$186,5,0),"") -> ابيض استك طبي | G16: 1 | H16: 2 | I16: 2 | J16: 3 | K16: A
A17: 10 | C17: 10 | E17: 1 | F17: =IFERROR(VLOOKUP(E17,التكويد!$A$2:$R$186,5,0),"") -> ابيض استك طبي | G17: 10 | H17: 100 | I17: 10 | J17: 10 | K17: 10
A18: 20 | C18: 20 | E18: 1 | F18: =IFERROR(VLOOKUP(E18,التكويد!$A$2:$R$186,5,0),"") -> ابيض استك طبي | G18: 20 | H18: 400 | I18: 20 | J18: 20 | K18: 20
A19: 30 | C19: 30 | E19: 1 | F19: =IFERROR(VLOOKUP(E19,التكويد!$A$2:$R$186,5,0),"") -> ابيض استك طبي | G19: 30 | H19: 900 | I19: 30 | J19: 30 | K19: 30
A20: 10 | B20: 10 | E20: 10 | F20: =IFERROR(VLOOKUP(E20,التكويد!$A$2:$R$186,5,0),"") -> ابيض كروشيه 3.2سم | G20: 10 | H20: 100 | I20: 10 | J20: 10 | K20: 10
A21: 10 | C21: 10 | E21: 10 | F21: =IFERROR(VLOOKUP(E21,التكويد!$A$2:$R$186,5,0),"") -> ابيض كروشيه 3.2سم | G21: 10 | H21: 100 | I21: 10 | J21: 10 | K21: 10
A22: 10 | C22: 10 | E22: 1 | F22: =IFERROR(VLOOKUP(E22,التكويد!$A$2:$R$186,5,0),"") -> ابيض استك طبي | G22: 10 | H22: 100 | I22: 10 | J22: 0 | K22: 10
A23: 1 | C23: 0 | E23: 1 | F23: =IFERROR(VLOOKUP(E23,التكويد!$A$2:$R$186,5,0),"") -> ابيض استك طبي | G23: 1 | H23: 1 | I23: 1 | J23: 1 | K23: 1
